Workbook

Sheet Prezenční listina (hidden)
A1: ="Prezenční listina - Malý svratecký maraton "&O2 -> Prezenční listina - Malý svratecký maraton 2018
A2: # | B2: Příjmení | C2: Jméno | D2: Narození | E2: Oddíl / Bydliště | F2: Startovní číslo | G2: E-mail | H2: Kategorie | I2: Datum on-line registrace | J2: Město | O2: 2018 | S2: Pohlaví
A3: 1 | B3: Faja | C3: Ondřej | D3: 1976 | E3: Brno | F3: 22 | G3: ondra.faja@seznam.cz | H3: =IF(S3<>"Ž",IF($O$2-D3>39,IF($O$2-D3>49,IF($O$2-D3>59,IF($O$2-D3>69,IF($O$2-D3>90,"","E"),"D"),"C"),"B"),"A"),IF(S3="Ž",IF($O$2-D3>34,IF($O$2-D3>44,IF($O$2-D3>90,"","H"),"G"),"F"))) -> B | I3: 2018-08-13 | J3: Brno | S3: =IF(LEN(B3)=0," ",IF(MID(B3,LEN(B3),1)="á","Ž","M")) -> M
A4: =IF(B4<>0,A3+1,"") -> 2 | B4: Fanfrdla | C4: Dalimil | D4: 1973 | E4: Matyteam Brno | F4: 27 | G4: dalimil.salvator@centrum.cz | H4: B | I4: 2018-08-18 | J4: Brno | S4: M
A5: 3 | B5: Glier | C5: Michal | D5: 1982 | E5: SDH Doubravník | F5: 49 | G5: Michalglier@seznam.cz | H5: A | I5: 2018-08-06 | J5: Doubravník | S5: M
A6: 4 | B6: Glierová | C6: Renata | D6: 1985 | E6: SDH Doubravník | F6: 48 | G6: renataglierova@seznam.cz | H6: F | I6: 2018-08-17 | J6: Doubravník | K6: Rok nastavit v buňce O2 | S6: Ž
A7: 5 | B7: Hakl | C7: Zdeněk | D7: 1982 | E7: SK Tri Cyklochlubna Žďár nad Sázavou | G7: haklzdenek@seznam.cz | H7: A | I7: 2018-08-18 | J7: Žďár nad Sázavou | S7: M
A8: 6 | B8: Hanák | C8: Jakub | D8: 1986 | E8: Plant Powered Runners | G8: jacobakiro@gmail.com | H8: A | I8: 2018-05-27 | J8: Vír | S8: M
A9: 7 | B9: Hanslová | C9: Lenka | D9: 1973 | E9: Žďár nad Sázavou | F9: 28 | G9: brabcoval@seznam.cz | H9: H | I9: 2018-08-18 | J9: Žďár nad Sázavou | S9: Ž
A10: 8 | B10: Hýbl | C10: Jiří | D10: 1967 | E10: Hrušovany u Brna | F10: 35 | G10: hybljura@seznam.cz | H10: C | I10: 2018-08-05 | J10: Hrušovany u Brna | S10: M
A11: 9 | B11: Johaníková | C11: Lucie | D11: 1986 | E11: AC Moravská Slavia Brno | F11: 44 | G11: johanikova.l@email.cz | H11: F | I11: 2018-08-17 | J11: Brno | S11: Ž
A12: 10 | B12: Juránek | C12: Jakub | D12: 1995 | E12: S.U.P.I. Martinice | F12: 14 | G12: juranekj@centrum.cz | H12: A | I12: 2018-03-21 | J12: Martinice | S12: M
A13: 11 | B13: Kalich | C13: Radim | D13: 1985 | E13: Odranec | F13: 4 | G13: r.kalich@seznam.cz | H13: A | I13: 2018-08-16 | J13: Odranec | S13: M
A14: 12 | B14: Klíma | C14: Miroslav | D14: 1975 | E14: Emanovy červené trenýrky Brno | F14: 25 | G14: klima.miroslav@atlas.cz | H14: B | I14: 2018-08-16 | J14: Brno | S14: M
A15: 13 | B15: Komárková | C15: Zdeňka | D15: 1974 | E15: SDH Bolešín | F15: 1 | G15: zdekom252@seznam.cz | H15: G | I15: 2018-08-08 | J15: Olešnice na Mor. | S15: Ž
A16: 14 | B16: Kopečný | C16: Dušan | D16: 1973 | E16: Liga 100 Olomouc | F16: 10 | G16: dusankopecny@seznam.cz | H16: B | I16: 2018-07-04 | J16: Prostějov | S16: M
A17: 15 | B17: Košek | C17: Martin | D17: 1984 | E17: Brno | F17: 38 | G17: martin.kosek@gmail.com | H17: A | I17: 2018-04-29 | J17: Brno | S17: M
A18: 16 | B18: Koutský | C18: Tomáš | D18: 1987 | E18: Ledová stěna Vír | F18: 23 | G18: koutskyt@gmail.com | H18: A | I18: 2018-04-19 | S18: M
A19: 17 | B19: Král | C19: Jan | D19: 1981 | E19: Brno | F19: 16 | G19: mnaf86@centrum.cz | H19: A | I19: 2018-08-04 | J19: Brno | S19: M
A20: 18 | B20: Král | C20: Josef | D20: 1958 | E20: SDH Bystré | F20: 50 | G20: demoshbrno@email.cz | H20: D | I20: 2018-08-17 | J20: Bystré | S20: M
A21: 19 | B21: Kratochvíl | C21: Jaroslav | D21: 1977 | E21: SDH Hluboké | F21: 64 | G21: kratochviljaroslav77@seznam.cz | H21: B | I21: 2018-08-18 | J21: Moravany | S21: M
A22: 20 | B22: Kresta | C22: Roman | D22: 1965 | E22: Orel Židenice | F22: 13 | G22: opa.va@seznam.cz | H22: C | I22: 2018-08-10 | J22: Brno | S22: M
A23: 21 | B23: Kropáček | C23: Jaroslav | D23: 1970 | E23: Brno | G23: jarda.krop@email.cz | H23: B | I23: 2018-08-11 | J23: Brno | S23: M
A24: 22 | B24: Kříž | C24: Miloslav | D24: 1961 | E24: Aspire Dobrochov | F24: 57 | G24: slavek.kriz@post.cz | H24: C | I24: 2018-08-16 | J24: 79807 Dobrochov 100 | S24: M
A25: 23 | B25: Kuncová | C25: Markéta | D25: 1982 | E25: Rožná | F25: 53 | G25: kuncmarketa@centrum.cz | H25: G | I25: 2018-06-28 | J25: Rožná | S25: Ž
A26: 24 | B26: Lorenčík | C26: Aleš | D26: 1973 | E26: Chrudim | F26: 52 | G26: Ales.Lorencik@seznam.cz | H26: B | I26: 2018-08-06 | J26: 53701 Chrudim 4, Gorkého 581 | S26: M
A27: 25 | B27: Mareš | C27: Bohumil | D27: 1951 | E27: Posilovna Průvan Brno | F27: 42 | G27: maresbo@seznam.cz | H27: D | I27: 2018-08-07 | J27: Brno | S27: M
A28: 26 | B28: Mlčáková | C28: Hana | D28: 1981 | E28: Strážnice | F28: 3 | G28: beruna-ja@seznam.cz | H28: G | I28: 2018-07-05 | J28: Strážnice | S28: Ž
A29: 27 | B29: Novotný | C29: Petr | D29: 1965 | E29: AK Kuřim | G29: gitus@atlas.cz | H29: C | I29: 2018-03-07 | J29: Kuřim | S29: M
A30: 28 | B30: Novotný | C30: Jaroslav | D30: 1955 | E30: TEP Trutnov | G30: novotny.ez@volny.cz | H30: D | I30: 2018-06-06 | J30: Trutnov | S30: M
A31: 29 | B31: Orálek | C31: Daniel | D31: 1970 | E31: behejbrno.com | F31: 63 | G31: dao@anet-brno.cz | H31: B | I31: 2018-08-06 | J31: Brno | S31: M
A32: 30 | B32: Paleček | C32: Miloš | D32: 1985 | E32: BIKEŘI ROVE | F32: 58 | G32: m.palecek@gmail.com | H32: A | I32: 2018-08-17 | S32: M
A33: 31 | B33: Pichová | C33: Dagmar | D33: 1977 | E33: Brno | F33: 8 | G33: DPichova@seznam.cz | H33: G | I33: 2018-08-16 | J33: Brno | S33: Ž
A34: 32 | B34: Ptáček | C34: Michal | D34: 1986 | E34: Hrdá Ves | F34: 2 | G34: ptacek.sova@gmail.com | H34: A | I34: 2018-08-05 | J34: Vír | S34: M
A35: 33 | B35: Řezníček | C35: Petr | D35: 1973 | E35: Polnička | F35: 39 | G35: romanreznicek@seznam.cz | H35: =IF(S35<>"Ž",IF($O$2-D35>39,IF($O$2-D35>49,IF($O$2-D35>59,IF($O$2-D35>69,IF($O$2-D35>90,"","E"),"D"),"C"),"B"),"A"),IF(S35="Ž",IF($O$2-D35>34,IF($O$2-D35>44,IF($O$2-D35>90,"","H"),"G"),"F"))) -> B | I35: 2018-08-11 | J35: Polnička | S35: =IF(LEN(B35)=0," ",IF(MID(B35,LEN(B35),1)="á","Ž","M")) -> M
A36: =IF(B36<>0,A35+1,"") -> 34 | B36: Skula | C36: Miroslav | D36: 1988 | E36: SRTG Žďár nad Sázavou | F36: 24 | G36: msmira@seznam.cz | H36: A | I36: 2018-06-08 | J36: Domanín | S36: M
A37: 35 | B37: Svoboda | C37: Petr | D37: 1968 | E37: AC Moravská Slavia Brno | F37: 37 | G37: pesvoboda@bvk.cz | H37: C | I37: 2018-08-16 | J37: Brno | S37: M
A38: 36 | B38: Šerák | C38: Martin | D38: 1978 | E38: Liga 100 Olomouc | F38: 6 | G38: sherry@sendmail.cz | H38: B | I38: 2018-08-08 | J38: Bílovice nad Svitavou | S38: M
A39: 37 | B39: Šimunek | C39: Martin | D39: 1966 | E39: Botanka Running Modřice | F39: 34 | G39: simunek@servisdmychadel.cz | H39: C | I39: 2018-08-17 | J39: Modřice | S39: M
A40: 38 | B40: Tesařová | C40: Marie | D40: 1954 | E40: Křižanov | F40: 9 | G40: tesarova54@seznam.cz | H40: H | I40: 2018-08-16 | J40: Křižanov | S40: Ž
A41: 39 | B41: Vintrlík | C41: Martin | D41: 1977 | E41: Triatlon křepice | F41: 30 | G41: vintrlik@gmail.com | H41: B | I41: 2018-08-09 | J41: Křepice | S41: M
A42: 40 | B42: Viščor | C42: Pavel | D42: 1974 | E42: Brno | F42: 40 | G42: pava@volny.cz | H42: B | I42: 2018-08-18 | J42: Brno | S42: M
A43: 41 | B43: Vondrová | C43: Ludmila | D43: 1986 | E43: Dalečín | F43: 51 | G43: lida.vondrova@centrum.cz | H43: F | I43: 2018-08-10 | J43: Dalečín | S43: Ž
A44: 42 | B44: Zejda | C44: Ivo | D44: 1958 | E44: AC Moravská Slavia Brno | F44: 12 | G44: zdenek.sudoma@centrum.cz | H44: D | I44: 2018-08-17 | J44: Brno | S44: M
A45: 43 | B45: Žličař | C45: Karel | D45: 1977 | E45: Železárny Štěpánov | F45: 41 | G45: karel.zlicar@zelezarny.cz | H45: B | I45: 2018-06-26 | J45: Polička | S45: M
A46: 44 | B46: Jamrichová | C46: Kristina | D46: 1987 | E46: Brno | F46: 55 | G46: m.pavlasek@gmail.com | H46: F | I46: 2018-08-23 | J46: Slepá 29, Brno | S46: Ž
A47: 45 | B47: Pavlásek | C47: Michal | D47: 1983 | E47: Brno | F47: 54 | G47: m.pavlasek@gmail.com | H47: A | I47: 2018-08-23 | J47: Vinohrady 26, Brno | S47: M
A48: 46 | B48: Kocur | C48: Lukáš | D48: 1977 | E48: Orel Šitbořice | F48: 43 | G48: kocur.lukas85@gmail.com | H48: B | S48: M
A49: 47 | B49: Ježová | C49: Martina | D49: 1975 | E49: Brno | F49: 5 | G49: martinajezova@email.cz | H49: G | S49: Ž
A50: 48 | B50: Podsedník | C50: Marek | D50: 1985 | E50: Brno | F50: 7 | G50: info@mpcolor.cz | H50: A | S50: M
A51: 49 | B51: Holý | C51: Josef | D51: 1941 | E51: AC Moravská Slavia Brno | F51: 11 | G51: holyjosef@upcmail.cz | H51: E | S51: M
A52: 50 | B52: Bělehrádek | C52: Pavel | D52: 1958 | E52: TJ ČOLEK | F52: 15 | G52: belehradekpavel@seznam.cz | H52: D | S52: M
A53: 51 | B53: Bečička | C53: Petr | D53: 1960 | E53: HAL3000 | F53: 17 | G53: ld-deklarace@volny.cz | H53: C | S53: M
A54: 52 | B54: Dostálová | C54: Vendula | D54: 1981 | E54: HAL3000 | F54: 18 | G54: ld-deklarace@volny.cz | H54: G | S54: Ž
A55: 53 | B55: Pivec | C55: Jan | D55: 1981 | E55: HAL3000 | F55: 19 | G55: ld-deklarace@volny.cz | H55: A | S55: M
A56: 54 | B56: Forýtek | C56: Michal | D56: 1982 | E56: HAL3000 | F56: 20 | G56: ld-deklarace@volny.cz | H56: =IF(S56<>"Ž",IF($O$2-D56>39,IF($O$2-D56>49,IF($O$2-D56>59,IF($O$2-D56>69,IF($O$2-D56>90,"","E"),"D"),"C"),"B"),"A"),IF(S56="Ž",IF($O$2-D56>34,IF($O$2-D56>44,IF($O$2-D56>90,"","H"),"G"),"F"))) -> A | S56: M
A57: 55 | B57: Trefilová | C57: Ester | D57: 1993 | E57: Vír | F57: 21 | G57: trefilovaester@seznam.cz | H57: F | S57: Ž
A58: 56 | B58: Bartoňková | C58: Nina | D58: 1990 | E58: AK Drnovice | F58: 26 | G58: n.nefertti@gmail.com | H58: F | S58: Ž
A59: 57 | B59: Dvořák | C59: Vojtěch | D59: 1975 | E59: Brno | F59: 29 | G59: demoshbrno@email.cz | H59: B | S59: M
A60: 58 | B60: Pešáková | C60: Mirka | D60: 1985 | E60: AC RACERS, Tetčice | F60: 31 | G60: Pesakova.Mirka@seznam.cz | H60: F | S60: Ž
A61: 59 | B61: Sinkule | C61: Pavel | D61: 1981 | E61: SRTG Brno | F61: 32 | G61: Pavelsinkule@seznam.cz | H61: A | S61: M
A62: 60 | B62: Komárek | C62: Michal | D62: 1981 | E62: Bystřice nad Pernštejnem | F62: 33 | G62: dderik@seznam.cz | H62: A | S62: M
A63: 61 | B63: Nováček | C63: Tomáš | D63: 1983 | E63: SDH Kamenná | F63: 36 | G63: novacekt@seznam.cz | H63: A | S63: M
A64: 62 | B64: Kohut | C64: Jan | D64: 1985 | E64: Univerzita Brno | F64: 45 | G64: Hkohut@seznam.cz | H64: A | S64: M
A65: 63 | B65: Dvořáček | C65: Jiří | D65: 1968 | E65: Univerzita Brno | F65: 46 | G65: dvorjiri@centrum.cz | H65: C | S65: M
A66: 64 | B66: Fric | C66: Petr | D66: 1970 | E66: Bystré | F66: 47 | G66: petta70@seznam.cz | H66: B | S66: M
A67: 65 | B67: Benc | C67: Karel | D67: 1975 | E67: Pivonice | F67: 56 | G67: benc.karel@seznam.cz | H67: =IF(S67<>"Ž",IF($O$2-D67>39,IF($O$2-D67>49,IF($O$2-D67>59,IF($O$2-D67>69,IF($O$2-D67>90,"","E"),"D"),"C"),"B"),"A"),IF(S67="Ž",IF($O$2-D67>34,IF($O$2-D67>44,IF($O$2-D67>90,"","H"),"G"),"F"))) -> B | S67: =IF(LEN(B67)=0," ",IF(MID(B67,LEN(B67),1)="á","Ž","M")) -> M
A68: 66 | B68: Pokorný | C68: Václav | D68: 1978 | E68: Brno | F68: 59 | G68: vasekpokorny@centrum.cz | H68: B | S68: M
A69: 67 | B69: Tyleček | C69: Pavel | D69: 1973 | E69: Jundrováci | F69: 60 | G69: paaja@centrum.cz | H69: B | S69: M
A70: 68 | B70: Podmelová | C70: Vilma | D70: 1962 | E70: AC Moravská Slavia Brno | F70: 61 | G70: vilka@centrum.cz | H70: H | S70: Ž
A71: 69 | B71: Exner | C71: Jakub | D71: 1983 | E71: P-Team | F71: 62 | G71: kolo.J@seznam.cz | H71: A | S71: M
A72: 70 | B72: Konečný | C72: Libor | D72: 1971 | E72: Kuřim | F72: 65 | G72: kovokonecny@seznam.cz | H72: B | S72: M
A73: 71 | B73: Zourek | C73: Karel | D73: 1959 | E73: Bedřichovice | F73: 66 | G73: Karel.zourek@seznam.cz | H73: C | S73: M
A74: 72 | B74: Příhoda | C74: Jan | D74: 1983 | E74: Ždánice | F74: 67 | G74: bolzano33@seznam.cz | H74: A | S74: M
H99: =IF(S99<>"Ž",IF($O$2-D99>39,IF($O$2-D99>49,IF($O$2-D99>59,IF($O$2-D99>69,IF($O$2-D99>90,"","E"),"D"),"C"),"B"),"A"),IF(S99="Ž",IF($O$2-D99>34,IF($O$2-D99>44,IF($O$2-D99>90,"","H"),"G"),"F"))) ->  | S99: =IF(LEN(B99)=0," ",IF(MID(B99,LEN(B99),1)="á","Ž","M")) -> 
A100: =IF(B100<>0,A99+1,"") -> 
H131: =IF(S131<>"Ž",IF($O$2-D131>39,IF($O$2-D131>49,IF($O$2-D131>59,IF($O$2-D131>69,IF($O$2-D131>90,"","E"),"D"),"C"),"B"),"A"),IF(S131="Ž",IF($O$2-D131>34,IF($O$2-D131>44,IF($O$2-D131>90,"","H"),"G"),"F"))) ->  | S131: =IF(LEN(B131)=0," ",IF(MID(B131,LEN(B131),1)="á","Ž","M")) -> 

Sheet Startovní listina
A1: ="Startovní listina - Malý svratecký maraton "&'Prezenční listina'!O2 -> Startovní listina - Malý svratecký maraton 2018
A2: 2018-08-25 | I2: Počet přihlášených v jednotlivých kategoriích
A3: ='Prezenční listina'!O2-1953&". ročník" -> 65. ročník | L3: Celkem startujících
A4: # | B4: Startovní číslo | C4: Příjmení | D4: Jméno | E4: Narození | F4: Oddíl / Bydliště | G4: Kategorie
A5: 1 | B5: =IF('Prezenční listina'!F15=0,"",'Prezenční listina'!F15) -> 1 | C5: =IF('Prezenční listina'!F15=0,"",'Prezenční listina'!B15) -> Komárková | D5: =IF('Prezenční listina'!F15=0,"",'Prezenční listina'!C15) -> Zdeňka | E5: =IF('Prezenční listina'!F15=0,"",'Prezenční listina'!D15) -> 1974 | F5: =IF('Prezenční listina'!F15=0,"",'Prezenční listina'!E15) -> SDH Bolešín | G5: =IF('Prezenční listina'!F15=0,"",'Prezenční listina'!H15) -> G | I5: A: | J5: =COUNTIF($G$5:$G$141,"A") -> 19 | L5: =COUNT(B5:B141) -> 67
A6: =IF(C6="","",A5+1) -> 2 | B6: =IF('Prezenční listina'!F34=0,"",'Prezenční listina'!F34) -> 2 | C6: =IF('Prezenční listina'!F34=0,"",'Prezenční listina'!B34) -> Ptáček | D6: =IF('Prezenční listina'!F34=0,"",'Prezenční listina'!C34) -> Michal | E6: =IF('Prezenční listina'!F34=0,"",'Prezenční listina'!D34) -> 1986 | F6: =IF('Prezenční listina'!F34=0,"",'Prezenční listina'!E34) -> Hrdá Ves | G6: =IF('Prezenční listina'!F34=0,"",'Prezenční listina'!H34) -> A | I6: B: | J6: =COUNTIF($G$5:$G$141,"B") -> 19
A7: 3 | B7: =IF('Prezenční listina'!F28=0,"",'Prezenční listina'!F28) -> 3 | C7: =IF('Prezenční listina'!F28=0,"",'Prezenční listina'!B28) -> Mlčáková | D7: =IF('Prezenční listina'!F28=0,"",'Prezenční listina'!C28) -> Hana | E7: =IF('Prezenční listina'!F28=0,"",'Prezenční listina'!D28) -> 1981 | F7: =IF('Prezenční listina'!F28=0,"",'Prezenční listina'!E28) -> Strážnice | G7: =IF('Prezenční listina'!F28=0,"",'Prezenční listina'!H28) -> G | I7: C: | J7: =COUNTIF($G$5:$G$141,"C") -> 8
A8: 4 | B8: =IF('Prezenční listina'!F13=0,"",'Prezenční listina'!F13) -> 4 | C8: =IF('Prezenční listina'!F13=0,"",'Prezenční listina'!B13) -> Kalich | D8: =IF('Prezenční listina'!F13=0,"",'Prezenční listina'!C13) -> Radim | E8: =IF('Prezenční listina'!F13=0,"",'Prezenční listina'!D13) -> 1985 | F8: =IF('Prezenční listina'!F13=0,"",'Prezenční listina'!E13) -> Odranec | G8: =IF('Prezenční listina'!F13=0,"",'Prezenční listina'!H13) -> A | I8: D: | J8: =COUNTIF($G$5:$G$141,"D") -> 4
A9: 5 | B9: =IF('Prezenční listina'!F49=0,"",'Prezenční listina'!F49) -> 5 | C9: =IF('Prezenční listina'!F49=0,"",'Prezenční listina'!B49) -> Ježová | D9: =IF('Prezenční listina'!F49=0,"",'Prezenční listina'!C49) -> Martina | E9: =IF('Prezenční listina'!F49=0,"",'Prezenční listina'!D49) -> 1975 | F9: =IF('Prezenční listina'!F49=0,"",'Prezenční listina'!E49) -> Brno | G9: =IF('Prezenční listina'!F49=0,"",'Prezenční listina'!H49) -> G | I9: E: | J9: =COUNTIF($G$5:$G$141,"E") -> 1
A10: 6 | B10: =IF('Prezenční listina'!F38=0,"",'Prezenční listina'!F38) -> 6 | C10: =IF('Prezenční listina'!F38=0,"",'Prezenční listina'!B38) -> Šerák | D10: =IF('Prezenční listina'!F38=0,"",'Prezenční listina'!C38) -> Martin | E10: =IF('Prezenční listina'!F38=0,"",'Prezenční listina'!D38) -> 1978 | F10: =IF('Prezenční listina'!F38=0,"",'Prezenční listina'!E38) -> Liga 100 Olomouc | G10: =IF('Prezenční listina'!F38=0,"",'Prezenční listina'!H38) -> B | I10: F: | J10: =COUNTIF($G$5:$G$141,"F") -> 7
A11: 7 | B11: =IF('Prezenční listina'!F50=0,"",'Prezenční listina'!F50) -> 7 | C11: =IF('Prezenční listina'!F50=0,"",'Prezenční listina'!B50) -> Podsedník | D11: =IF('Prezenční listina'!F50=0,"",'Prezenční listina'!C50) -> Marek | E11: =IF('Prezenční listina'!F50=0,"",'Prezenční listina'!D50) -> 1985 | F11: =IF('Prezenční listina'!F50=0,"",'Prezenční listina'!E50) -> Brno | G11: =IF('Prezenční listina'!F50=0,"",'Prezenční listina'!H50) -> A | I11: G: | J11: =COUNTIF($G$5:$G$141,"G") -> 6
A12: 8 | B12: =IF('Prezenční listina'!F33=0,"",'Prezenční listina'!F33) -> 8 | C12: =IF('Prezenční listina'!F33=0,"",'Prezenční listina'!B33) -> Pichová | D12: =IF('Prezenční listina'!F33=0,"",'Prezenční listina'!C33) -> Dagmar | E12: =IF('Prezenční listina'!F33=0,"",'Prezenční listina'!D33) -> 1977 | F12: =IF('Prezenční listina'!F33=0,"",'Prezenční listina'!E33) -> Brno | G12: =IF('Prezenční listina'!F33=0,"",'Prezenční listina'!H33) -> G | I12: H: | J12: =COUNTIF($G$5:$G$141,"H") -> 3
A13: 9 | B13: =IF('Prezenční listina'!F40=0,"",'Prezenční listina'!F40) -> 9 | C13: =IF('Prezenční listina'!F40=0,"",'Prezenční listina'!B40) -> Tesařová | D13: =IF('Prezenční listina'!F40=0,"",'Prezenční listina'!C40) -> Marie | E13: =IF('Prezenční listina'!F40=0,"",'Prezenční listina'!D40) -> 1954 | F13: =IF('Prezenční listina'!F40=0,"",'Prezenční listina'!E40) -> Křižanov | G13: =IF('Prezenční listina'!F40=0,"",'Prezenční listina'!H40) -> H
A14: 10 | B14: =IF('Prezenční listina'!F16=0,"",'Prezenční listina'!F16) -> 10 | C14: =IF('Prezenční listina'!F16=0,"",'Prezenční listina'!B16) -> Kopečný | D14: =IF('Prezenční listina'!F16=0,"",'Prezenční listina'!C16) -> Dušan | E14: =IF('Prezenční listina'!F16=0,"",'Prezenční listina'!D16) -> 1973 | F14: =IF('Prezenční listina'!F16=0,"",'Prezenční listina'!E16) -> Liga 100 Olomouc | G14: =IF('Prezenční listina'!F16=0,"",'Prezenční listina'!H16) -> B
A15: 11 | B15: =IF('Prezenční listina'!F51=0,"",'Prezenční listina'!F51) -> 11 | C15: =IF('Prezenční listina'!F51=0,"",'Prezenční listina'!B51) -> Holý | D15: =IF('Prezenční listina'!F51=0,"",'Prezenční listina'!C51) -> Josef | E15: =IF('Prezenční listina'!F51=0,"",'Prezenční listina'!D51) -> 1941 | F15: =IF('Prezenční listina'!F51=0,"",'Prezenční listina'!E51) -> AC Moravská Slavia Brno | G15: =IF('Prezenční listina'!F51=0,"",'Prezenční listina'!H51) -> E
A16: 12 | B16: =IF('Prezenční listina'!F44=0,"",'Prezenční listina'!F44) -> 12 | C16: =IF('Prezenční listina'!F44=0,"",'Prezenční listina'!B44) -> Zejda | D16: =IF('Prezenční listina'!F44=0,"",'Prezenční listina'!C44) -> Ivo | E16: =IF('Prezenční listina'!F44=0,"",'Prezenční listina'!D44) -> 1958 | F16: =IF('Prezenční listina'!F44=0,"",'Prezenční listina'!E44) -> AC Moravská Slavia Brno | G16: =IF('Prezenční listina'!F44=0,"",'Prezenční listina'!H44) -> D
A17: 13 | B17: =IF('Prezenční listina'!F22=0,"",'Prezenční listina'!F22) -> 13 | C17: =IF('Prezenční listina'!F22=0,"",'Prezenční listina'!B22) -> Kresta | D17: =IF('Prezenční listina'!F22=0,"",'Prezenční listina'!C22) -> Roman | E17: =IF('Prezenční listina'!F22=0,"",'Prezenční listina'!D22) -> 1965 | F17: =IF('Prezenční listina'!F22=0,"",'Prezenční listina'!E22) -> Orel Židenice | G17: =IF('Prezenční listina'!F22=0,"",'Prezenční listina'!H22) -> C
A18: 14 | B18: =IF('Prezenční listina'!F12=0,"",'Prezenční listina'!F12) -> 14 | C18: =IF('Prezenční listina'!F12=0,"",'Prezenční listina'!B12) -> Juránek | D18: =IF('Prezenční listina'!F12=0,"",'Prezenční listina'!C12) -> Jakub | E18: =IF('Prezenční listina'!F12=0,"",'Prezenční listina'!D12) -> 1995 | F18: =IF('Prezenční listina'!F12=0,"",'Prezenční listina'!E12) -> S.U.P.I. Martinice | G18: =IF('Prezenční listina'!F12=0,"",'Prezenční listina'!H12) -> A
A19: 15 | B19: =IF('Prezenční listina'!F52=0,"",'Prezenční listina'!F52) -> 15 | C19: =IF('Prezenční listina'!F52=0,"",'Prezenční listina'!B52) -> Bělehrádek | D19: =IF('Prezenční listina'!F52=0,"",'Prezenční listina'!C52) -> Pavel | E19: =IF('Prezenční listina'!F52=0,"",'Prezenční listina'!D52) -> 1958 | F19: =IF('Prezenční listina'!F52=0,"",'Prezenční listina'!E52) -> TJ ČOLEK | G19: =IF('Prezenční listina'!F52=0,"",'Prezenční listina'!H52) -> D
A20: 16 | B20: =IF('Prezenční listina'!F19=0,"",'Prezenční listina'!F19) -> 16 | C20: =IF('Prezenční listina'!F19=0,"",'Prezenční listina'!B19) -> Král | D20: =IF('Prezenční listina'!F19=0,"",'Prezenční listina'!C19) -> Jan | E20: =IF('Prezenční listina'!F19=0,"",'Prezenční listina'!D19) -> 1981 | F20: =IF('Prezenční listina'!F19=0,"",'Prezenční listina'!E19) -> Brno | G20: =IF('Prezenční listina'!F19=0,"",'Prezenční listina'!H19) -> A
A21: 17 | B21: =IF('Prezenční listina'!F53=0,"",'Prezenční listina'!F53) -> 17 | C21: =IF('Prezenční listina'!F53=0,"",'Prezenční listina'!B53) -> Bečička | D21: =IF('Prezenční listina'!F53=0,"",'Prezenční listina'!C53) -> Petr | E21: =IF('Prezenční listina'!F53=0,"",'Prezenční listina'!D53) -> 1960 | F21: =IF('Prezenční listina'!F53=0,"",'Prezenční listina'!E53) -> HAL3000 | G21: =IF('Prezenční listina'!F53=0,"",'Prezenční listina'!H53) -> C
A22: 18 | B22: =IF('Prezenční listina'!F54=0,"",'Prezenční listina'!F54) -> 18 | C22: =IF('Prezenční listina'!F54=0,"",'Prezenční listina'!B54) -> Dostálová | D22: =IF('Prezenční listina'!F54=0,"",'Prezenční listina'!C54) -> Vendula | E22: =IF('Prezenční listina'!F54=0,"",'Prezenční listina'!D54) -> 1981 | F22: =IF('Prezenční listina'!F54=0,"",'Prezenční listina'!E54) -> HAL3000 | G22: =IF('Prezenční listina'!F54=0,"",'Prezenční listina'!H54) -> G
A23: 19 | B23: =IF('Prezenční listina'!F55=0,"",'Prezenční listina'!F55) -> 19 | C23: =IF('Prezenční listina'!F55=0,"",'Prezenční listina'!B55) -> Pivec | D23: =IF('Prezenční listina'!F55=0,"",'Prezenční listina'!C55) -> Jan | E23: =IF('Prezenční listina'!F55=0,"",'Prezenční listina'!D55) -> 1981 | F23: =IF('Prezenční listina'!F55=0,"",'Prezenční listina'!E55) -> HAL3000 | G23: =IF('Prezenční listina'!F55=0,"",'Prezenční listina'!H55) -> A
A24: 20 | B24: =IF('Prezenční listina'!F56=0,"",'Prezenční listina'!F56) -> 20 | C24: =IF('Prezenční listina'!F56=0,"",'Prezenční listina'!B56) -> Forýtek | D24: =IF('Prezenční listina'!F56=0,"",'Prezenční listina'!C56) -> Michal | E24: =IF('Prezenční listina'!F56=0,"",'Prezenční listina'!D56) -> 1982 | F24: =IF('Prezenční listina'!F56=0,"",'Prezenční listina'!E56) -> HAL3000 | G24: =IF('Prezenční listina'!F56=0,"",'Prezenční listina'!H56) -> A
A25: 21 | B25: =IF('Prezenční listina'!F57=0,"",'Prezenční listina'!F57) -> 21 | C25: =IF('Prezenční listina'!F57=0,"",'Prezenční listina'!B57) -> Trefilová | D25: =IF('Prezenční listina'!F57=0,"",'Prezenční listina'!C57) -> Ester | E25: =IF('Prezenční listina'!F57=0,"",'Prezenční listina'!D57) -> 1993 | F25: =IF('Prezenční listina'!F57=0,"",'Prezenční listina'!E57) -> Vír | G25: =IF('Prezenční listina'!F57=0,"",'Prezenční listina'!H57) -> F
A26: 22 | B26: =IF('Prezenční listina'!F3=0,"",'Prezenční listina'!F3) -> 22 | C26: =IF('Prezenční listina'!F3=0,"",'Prezenční listina'!B3) -> Faja | D26: =IF('Prezenční listina'!F3=0,"",'Prezenční listina'!C3) -> Ondřej | E26: =IF('Prezenční listina'!F3=0,"",'Prezenční listina'!D3) -> 1976 | F26: =IF('Prezenční listina'!F3=0,"",'Prezenční listina'!E3) -> Brno | G26: =IF('Prezenční listina'!F3=0,"",'Prezenční listina'!H3) -> B
A27: 23 | B27: =IF('Prezenční listina'!F18=0,"",'Prezenční listina'!F18) -> 23 | C27: =IF('Prezenční listina'!F18=0,"",'Prezenční listina'!B18) -> Koutský | D27: =IF('Prezenční listina'!F18=0,"",'Prezenční listina'!C18) -> Tomáš | E27: =IF('Prezenční listina'!F18=0,"",'Prezenční listina'!D18) -> 1987 | F27: =IF('Prezenční listina'!F18=0,"",'Prezenční listina'!E18) -> Ledová stěna Vír | G27: =IF('Prezenční listina'!F18=0,"",'Prezenční listina'!H18) -> A
A28: 24 | B28: =IF('Prezenční listina'!F36=0,"",'Prezenční listina'!F36) -> 24 | C28: =IF('Prezenční listina'!F36=0,"",'Prezenční listina'!B36) -> Skula | D28: =IF('Prezenční listina'!F36=0,"",'Prezenční listina'!C36) -> Miroslav | E28: =IF('Prezenční listina'!F36=0,"",'Prezenční listina'!D36) -> 1988 | F28: =IF('Prezenční listina'!F36=0,"",'Prezenční listina'!E36) -> SRTG Žďár nad Sázavou | G28: =IF('Prezenční listina'!F36=0,"",'Prezenční listina'!H36) -> A
A29: 25 | B29: =IF('Prezenční listina'!F14=0,"",'Prezenční listina'!F14) -> 25 | C29: =IF('Prezenční listina'!F14=0,"",'Prezenční listina'!B14) -> Klíma | D29: =IF('Prezenční listina'!F14=0,"",'Prezenční listina'!C14) -> Miroslav | E29: =IF('Prezenční listina'!F14=0,"",'Prezenční listina'!D14) -> 1975 | F29: =IF('Prezenční listina'!F14=0,"",'Prezenční listina'!E14) -> Emanovy červené trenýrky Brno | G29: =IF('Prezenční listina'!F14=0,"",'Prezenční listina'!H14) -> B
A30: 26 | B30: =IF('Prezenční listina'!F58=0,"",'Prezenční listina'!F58) -> 26 | C30: =IF('Prezenční listina'!F58=0,"",'Prezenční listina'!B58) -> Bartoňková | D30: =IF('Prezenční listina'!F58=0,"",'Prezenční listina'!C58) -> Nina | E30: =IF('Prezenční listina'!F58=0,"",'Prezenční listina'!D58) -> 1990 | F30: =IF('Prezenční listina'!F58=0,"",'Prezenční listina'!E58) -> AK Drnovice | G30: =IF('Prezenční listina'!F58=0,"",'Prezenční listina'!H58) -> F
A31: 27 | B31: =IF('Prezenční listina'!F4=0,"",'Prezenční listina'!F4) -> 27 | C31: =IF('Prezenční listina'!F4=0,"",'Prezenční listina'!B4) -> Fanfrdla | D31: =IF('Prezenční listina'!F4=0,"",'Prezenční listina'!C4) -> Dalimil | E31: =IF('Prezenční listina'!F4=0,"",'Prezenční listina'!D4) -> 1973 | F31: =IF('Prezenční listina'!F4=0,"",'Prezenční listina'!E4) -> Matyteam Brno | G31: =IF('Prezenční listina'!F4=0,"",'Prezenční listina'!H4) -> B
A32: 28 | B32: =IF('Prezenční listina'!F9=0,"",'Prezenční listina'!F9) -> 28 | C32: =IF('Prezenční listina'!F9=0,"",'Prezenční listina'!B9) -> Hanslová | D32: =IF('Prezenční listina'!F9=0,"",'Prezenční listina'!C9) -> Lenka | E32: =IF('Prezenční listina'!F9=0,"",'Prezenční listina'!D9) -> 1973 | F32: =IF('Prezenční listina'!F9=0,"",'Prezenční listina'!E9) -> Žďár nad Sázavou | G32: =IF('Prezenční listina'!F9=0,"",'Prezenční listina'!H9) -> H
A33: 29 | B33: =IF('Prezenční listina'!F59=0,"",'Prezenční listina'!F59) -> 29 | C33: =IF('Prezenční listina'!F59=0,"",'Prezenční listina'!B59) -> Dvořák | D33: =IF('Prezenční listina'!F59=0,"",'Prezenční listina'!C59) -> Vojtěch | E33: =IF('Prezenční listina'!F59=0,"",'Prezenční listina'!D59) -> 1975 | F33: =IF('Prezenční listina'!F59=0,"",'Prezenční listina'!E59) -> Brno | G33: =IF('Prezenční listina'!F59=0,"",'Prezenční listina'!H59) -> B
A34: 30 | B34: =IF('Prezenční listina'!F41=0,"",'Prezenční listina'!F41) -> 30 | C34: =IF('Prezenční listina'!F41=0,"",'Prezenční listina'!B41) -> Vintrlík | D34: =IF('Prezenční listina'!F41=0,"",'Prezenční listina'!C41) -> Martin | E34: =IF('Prezenční listina'!F41=0,"",'Prezenční listina'!D41) -> 1977 | F34: =IF('Prezenční listina'!F41=0,"",'Prezenční listina'!E41) -> Triatlon křepice | G34: =IF('Prezenční listina'!F41=0,"",'Prezenční listina'!H41) -> B
A35: 31 | B35: =IF('Prezenční listina'!F60=0,"",'Prezenční listina'!F60) -> 31 | C35: =IF('Prezenční listina'!F60=0,"",'Prezenční listina'!B60) -> Pešáková | D35: =IF('Prezenční listina'!F60=0,"",'Prezenční listina'!C60) -> Mirka | E35: =IF('Prezenční listina'!F60=0,"",'Prezenční listina'!D60) -> 1985 | F35: =IF('Prezenční listina'!F60=0,"",'Prezenční listina'!E60) -> AC RACERS, Tetčice | G35: =IF('Prezenční listina'!F60=0,"",'Prezenční listina'!H60) -> F
A36: 32 | B36: =IF('Prezenční listina'!F61=0,"",'Prezenční listina'!F61) -> 32 | C36: =IF('Prezenční listina'!F61=0,"",'Prezenční listina'!B61) -> Sinkule | D36: =IF('Prezenční listina'!F61=0,"",'Prezenční listina'!C61) -> Pavel | E36: =IF('Prezenční listina'!F61=0,"",'Prezenční listina'!D61) -> 1981 | F36: =IF('Prezenční listina'!F61=0,"",'Prezenční listina'!E61) -> SRTG Brno | G36: =IF('Prezenční listina'!F61=0,"",'Prezenční listina'!H61) -> A
A37: 33 | B37: =IF('Prezenční listina'!F62=0,"",'Prezenční listina'!F62) -> 33 | C37: =IF('Prezenční listina'!F62=0,"",'Prezenční listina'!B62) -> Komárek | D37: =IF('Prezenční listina'!F62=0,"",'Prezenční listina'!C62) -> Michal | E37: =IF('Prezenční listina'!F62=0,"",'Prezenční listina'!D62) -> 1981 | F37: =IF('Prezenční listina'!F62=0,"",'Prezenční listina'!E62) -> Bystřice nad Pernštejnem | G37: =IF('Prezenční listina'!F62=0,"",'Prezenční listina'!H62) -> A
A38: 34 | B38: =IF('Prezenční listina'!F39=0,"",'Prezenční listina'!F39) -> 34 | C38: =IF('Prezenční listina'!F39=0,"",'Prezenční listina'!B39) -> Šimunek | D38: =IF('Prezenční listina'!F39=0,"",'Prezenční listina'!C39) -> Martin | E38: =IF('Prezenční listina'!F39=0,"",'Prezenční listina'!D39) -> 1966 | F38: =IF('Prezenční listina'!F39=0,"",'Prezenční listina'!E39) -> Botanka Running Modřice | G38: =IF('Prezenční listina'!F39=0,"",'Prezenční listina'!H39) -> C
A39: =IF(C39="","",A38+1) -> 35 | B39: =IF('Prezenční listina'!F10=0,"",'Prezenční listina'!F10) -> 35 | C39: =IF('Prezenční listina'!F10=0,"",'Prezenční listina'!B10) -> Hýbl | D39: =IF('Prezenční listina'!F10=0,"",'Prezenční listina'!C10) -> Jiří | E39: =IF('Prezenční listina'!F10=0,"",'Prezenční listina'!D10) -> 1967 | F39: =IF('Prezenční listina'!F10=0,"",'Prezenční listina'!E10) -> Hrušovany u Brna | G39: =IF('Prezenční listina'!F10=0,"",'Prezenční listina'!H10) -> C
A40: =IF(C40="","",A39+1) -> 36 | B40: =IF('Prezenční listina'!F63=0,"",'Prezenční listina'!F63) -> 36 | C40: =IF('Prezenční listina'!F63=0,"",'Prezenční listina'!B63) -> Nováček | D40: =IF('Prezenční listina'!F63=0,"",'Prezenční listina'!C63) -> Tomáš | E40: =IF('Prezenční listina'!F63=0,"",'Prezenční listina'!D63) -> 1983 | F40: =IF('Prezenční listina'!F63=0,"",'Prezenční listina'!E63) -> SDH Kamenná | G40: =IF('Prezenční listina'!F63=0,"",'Prezenční listina'!H63) -> A
A41: 37 | B41: =IF('Prezenční listina'!F37=0,"",'Prezenční listina'!F37) -> 37 | C41: =IF('Prezenční listina'!F37=0,"",'Prezenční listina'!B37) -> Svoboda | D41: =IF('Prezenční listina'!F37=0,"",'Prezenční listina'!C37) -> Petr | E41: =IF('Prezenční listina'!F37=0,"",'Prezenční listina'!D37) -> 1968 | F41: =IF('Prezenční listina'!F37=0,"",'Prezenční listina'!E37) -> AC Moravská Slavia Brno | G41: =IF('Prezenční listina'!F37=0,"",'Prezenční listina'!H37) -> C
A42: 38 | B42: =IF('Prezenční listina'!F17=0,"",'Prezenční listina'!F17) -> 38 | C42: =IF('Prezenční listina'!F17=0,"",'Prezenční listina'!B17) -> Košek | D42: =IF('Prezenční listina'!F17=0,"",'Prezenční listina'!C17) -> Martin | E42: =IF('Prezenční listina'!F17=0,"",'Prezenční listina'!D17) -> 1984 | F42: =IF('Prezenční listina'!F17=0,"",'Prezenční listina'!E17) -> Brno | G42: =IF('Prezenční listina'!F17=0,"",'Prezenční listina'!H17) -> A
A43: 39 | B43: =IF('Prezenční listina'!F35=0,"",'Prezenční listina'!F35) -> 39 | C43: =IF('Prezenční listina'!F35=0,"",'Prezenční listina'!B35) -> Řezníček | D43: =IF('Prezenční listina'!F35=0,"",'Prezenční listina'!C35) -> Petr | E43: =IF('Prezenční listina'!F35=0,"",'Prezenční listina'!D35) -> 1973 | F43: =IF('Prezenční listina'!F35=0,"",'Prezenční listina'!E35) -> Polnička | G43: =IF('Prezenční listina'!F35=0,"",'Prezenční listina'!H35) -> B
A44: 40 | B44: =IF('Prezenční listina'!F42=0,"",'Prezenční listina'!F42) -> 40 | C44: =IF('Prezenční listina'!F42=0,"",'Prezenční listina'!B42) -> Viščor | D44: =IF('Prezenční listina'!F42=0,"",'Prezenční listina'!C42) -> Pavel | E44: =IF('Prezenční listina'!F42=0,"",'Prezenční listina'!D42) -> 1974 | F44: =IF('Prezenční listina'!F42=0,"",'Prezenční listina'!E42) -> Brno | G44: =IF('Prezenční listina'!F42=0,"",'Prezenční listina'!H42) -> B
A45: 41 | B45: =IF('Prezenční listina'!F45=0,"",'Prezenční listina'!F45) -> 41 | C45: =IF('Prezenční listina'!F45=0,"",'Prezenční listina'!B45) -> Žličař | D45: =IF('Prezenční listina'!F45=0,"",'Prezenční listina'!C45) -> Karel | E45: =IF('Prezenční listina'!F45=0,"",'Prezenční listina'!D45) -> 1977 | F45: =IF('Prezenční listina'!F45=0,"",'Prezenční listina'!E45) -> Železárny Štěpánov | G45: =IF('Prezenční listina'!F45=0,"",'Prezenční listina'!H45) -> B
A46: 42 | B46: =IF('Prezenční listina'!F27=0,"",'Prezenční listina'!F27) -> 42 | C46: =IF('Prezenční listina'!F27=0,"",'Prezenční listina'!B27) -> Mareš | D46: =IF('Prezenční listina'!F27=0,"",'Prezenční listina'!C27) -> Bohumil | E46: =IF('Prezenční listina'!F27=0,"",'Prezenční listina'!D27) -> 1951 | F46: =IF('Prezenční listina'!F27=0,"",'Prezenční listina'!E27) -> Posilovna Průvan Brno | G46: =IF('Prezenční listina'!F27=0,"",'Prezenční listina'!H27) -> D
A47: 43 | B47: =IF('Prezenční listina'!F48=0,"",'Prezenční listina'!F48) -> 43 | C47: =IF('Prezenční listina'!F48=0,"",'Prezenční listina'!B48) -> Kocur | D47: =IF('Prezenční listina'!F48=0,"",'Prezenční listina'!C48) -> Lukáš | E47: =IF('Prezenční listina'!F48=0,"",'Prezenční listina'!D48) -> 1977 | F47: =IF('Prezenční listina'!F48=0,"",'Prezenční listina'!E48) -> Orel Šitbořice | G47: =IF('Prezenční listina'!F48=0,"",'Prezenční listina'!H48) -> B
A48: 44 | B48: =IF('Prezenční listina'!F11=0,"",'Prezenční listina'!F11) -> 44 | C48: =IF('Prezenční listina'!F11=0,"",'Prezenční listina'!B11) -> Johaníková | D48: =IF('Prezenční listina'!F11=0,"",'Prezenční listina'!C11) -> Lucie | E48: =IF('Prezenční listina'!F11=0,"",'Prezenční listina'!D11) -> 1986 | F48: =IF('Prezenční listina'!F11=0,"",'Prezenční listina'!E11) -> AC Moravská Slavia Brno | G48: =IF('Prezenční listina'!F11=0,"",'Prezenční listina'!H11) -> F
A49: 45 | B49: =IF('Prezenční listina'!F64=0,"",'Prezenční listina'!F64) -> 45 | C49: =IF('Prezenční listina'!F64=0,"",'Prezenční listina'!B64) -> Kohut | D49: =IF('Prezenční listina'!F64=0,"",'Prezenční listina'!C64) -> Jan | E49: =IF('Prezenční listina'!F64=0,"",'Prezenční listina'!D64) -> 1985 | F49: =IF('Prezenční listina'!F64=0,"",'Prezenční listina'!E64) -> Univerzita Brno | G49: =IF('Prezenční listina'!F64=0,"",'Prezenční listina'!H64) -> A
A50: 46 | B50: =IF('Prezenční listina'!F65=0,"",'Prezenční listina'!F65) -> 46 | C50: =IF('Prezenční listina'!F65=0,"",'Prezenční listina'!B65) -> Dvořáček | D50: =IF('Prezenční listina'!F65=0,"",'Prezenční listina'!C65) -> Jiří | E50: =IF('Prezenční listina'!F65=0,"",'Prezenční listina'!D65) -> 1968 | F50: =IF('Prezenční listina'!F65=0,"",'Prezenční listina'!E65) -> Univerzita Brno | G50: =IF('Prezenční listina'!F65=0,"",'Prezenční listina'!H65) -> C
A51: 47 | B51: =IF('Prezenční listina'!F66=0,"",'Prezenční listina'!F66) -> 47 | C51: =IF('Prezenční listina'!F66=0,"",'Prezenční listina'!B66) -> Fric | D51: =IF('Prezenční listina'!F66=0,"",'Prezenční listina'!C66) -> Petr | E51: =IF('Prezenční listina'!F66=0,"",'Prezenční listina'!D66) -> 1970 | F51: =IF('Prezenční listina'!F66=0,"",'Prezenční listina'!E66) -> Bystré | G51: =IF('Prezenční listina'!F66=0,"",'Prezenční listina'!H66) -> B
A52: 48 | B52: =IF('Prezenční listina'!F6=0,"",'Prezenční listina'!F6) -> 48 | C52: =IF('Prezenční listina'!F6=0,"",'Prezenční listina'!B6) -> Glierová | D52: =IF('Prezenční listina'!F6=0,"",'Prezenční listina'!C6) -> Renata | E52: =IF('Prezenční listina'!F6=0,"",'Prezenční listina'!D6) -> 1985 | F52: =IF('Prezenční listina'!F6=0,"",'Prezenční listina'!E6) -> SDH Doubravník | G52: =IF('Prezenční listina'!F6=0,"",'Prezenční listina'!H6) -> F
A53: 49 | B53: =IF('Prezenční listina'!F5=0,"",'Prezenční listina'!F5) -> 49 | C53: =IF('Prezenční listina'!F5=0,"",'Prezenční listina'!B5) -> Glier | D53: =IF('Prezenční listina'!F5=0,"",'Prezenční listina'!C5) -> Michal | E53: =IF('Prezenční listina'!F5=0,"",'Prezenční listina'!D5) -> 1982 | F53: =IF('Prezenční listina'!F5=0,"",'Prezenční listina'!E5) -> SDH Doubravník | G53: =IF('Prezenční listina'!F5=0,"",'Prezenční listina'!H5) -> A
A54: 50 | B54: =IF('Prezenční listina'!F20=0,"",'Prezenční listina'!F20) -> 50 | C54: =IF('Prezenční listina'!F20=0,"",'Prezenční listina'!B20) -> Král | D54: =IF('Prezenční listina'!F20=0,"",'Prezenční listina'!C20) -> Josef | E54: =IF('Prezenční listina'!F20=0,"",'Prezenční listina'!D20) -> 1958 | F54: =IF('Prezenční listina'!F20=0,"",'Prezenční listina'!E20) -> SDH Bystré | G54: =IF('Prezenční listina'!F20=0,"",'Prezenční listina'!H20) -> D
A55: 51 | B55: =IF('Prezenční listina'!F43=0,"",'Prezenční listina'!F43) -> 51 | C55: =IF('Prezenční listina'!F43=0,"",'Prezenční listina'!B43) -> Vondrová | D55: =IF('Prezenční listina'!F43=0,"",'Prezenční listina'!C43) -> Ludmila | E55: =IF('Prezenční listina'!F43=0,"",'Prezenční listina'!D43) -> 1986 | F55: =IF('Prezenční listina'!F43=0,"",'Prezenční listina'!E43) -> Dalečín | G55: =IF('Prezenční listina'!F43=0,"",'Prezenční listina'!H43) -> F
A56: 52 | B56: =IF('Prezenční listina'!F26=0,"",'Prezenční listina'!F26) -> 52 | C56: =IF('Prezenční listina'!F26=0,"",'Prezenční listina'!B26) -> Lorenčík | D56: =IF('Prezenční listina'!F26=0,"",'Prezenční listina'!C26) -> Aleš | E56: =IF('Prezenční listina'!F26=0,"",'Prezenční listina'!D26) -> 1973 | F56: =IF('Prezenční listina'!F26=0,"",'Prezenční listina'!E26) -> Chrudim | G56: =IF('Prezenční listina'!F26=0,"",'Prezenční listina'!H26) -> B
A57: 53 | B57: =IF('Prezenční listina'!F25=0,"",'Prezenční listina'!F25) -> 53 | C57: =IF('Prezenční listina'!F25=0,"",'Prezenční listina'!B25) -> Kuncová | D57: =IF('Prezenční listina'!F25=0,"",'Prezenční listina'!C25) -> Markéta | E57: =IF('Prezenční listina'!F25=0,"",'Prezenční listina'!D25) -> 1982 | F57: =IF('Prezenční listina'!F25=0,"",'Prezenční listina'!E25) -> Rožná | G57: =IF('Prezenční listina'!F25=0,"",'Prezenční listina'!H25) -> G
A58: 54 | B58: =IF('Prezenční listina'!F47=0,"",'Prezenční listina'!F47) -> 54 | C58: =IF('Prezenční listina'!F47=0,"",'Prezenční listina'!B47) -> Pavlásek | D58: =IF('Prezenční listina'!F47=0,"",'Prezenční listina'!C47) -> Michal | E58: =IF('Prezenční listina'!F47=0,"",'Prezenční listina'!D47) -> 1983 | F58: =IF('Prezenční listina'!F47=0,"",'Prezenční listina'!E47) -> Brno | G58: =IF('Prezenční listina'!F47=0,"",'Prezenční listina'!H47) -> A
A59: 55 | B59: =IF('Prezenční listina'!F46=0,"",'Prezenční listina'!F46) -> 55 | C59: =IF('Prezenční listina'!F46=0,"",'Prezenční listina'!B46) -> Jamrichová | D59: =IF('Prezenční listina'!F46=0,"",'Prezenční listina'!C46) -> Kristina | E59: =IF('Prezenční listina'!F46=0,"",'Prezenční listina'!D46) -> 1987 | F59: =IF('Prezenční listina'!F46=0,"",'Prezenční listina'!E46) -> Brno | G59: =IF('Prezenční listina'!F46=0,"",'Prezenční listina'!H46) -> F
A60: 56 | B60: =IF('Prezenční listina'!F67=0,"",'Prezenční listina'!F67) -> 56 | C60: =IF('Prezenční listina'!F67=0,"",'Prezenční listina'!B67) -> Benc | D60: =IF('Prezenční listina'!F67=0,"",'Prezenční listina'!C67) -> Karel | E60: =IF('Prezenční listina'!F67=0,"",'Prezenční listina'!D67) -> 1975 | F60: =IF('Prezenční listina'!F67=0,"",'Prezenční listina'!E67) -> Pivonice | G60: =IF('Prezenční listina'!F67=0,"",'Prezenční listina'!H67) -> B
A61: 57 | B61: =IF('Prezenční listina'!F24=0,"",'Prezenční listina'!F24) -> 57 | C61: =IF('Prezenční listina'!F24=0,"",'Prezenční listina'!B24) -> Kříž | D61: =IF('Prezenční listina'!F24=0,"",'Prezenční listina'!C24) -> Miloslav | E61: =IF('Prezenční listina'!F24=0,"",'Prezenční listina'!D24) -> 1961 | F61: =IF('Prezenční listina'!F24=0,"",'Prezenční listina'!E24) -> Aspire Dobrochov | G61: =IF('Prezenční listina'!F24=0,"",'Prezenční listina'!H24) -> C
A62: 58 | B62: =IF('Prezenční listina'!F32=0,"",'Prezenční listina'!F32) -> 58 | C62: =IF('Prezenční listina'!F32=0,"",'Prezenční listina'!B32) -> Paleček | D62: =IF('Prezenční listina'!F32=0,"",'Prezenční listina'!C32) -> Miloš | E62: =IF('Prezenční listina'!F32=0,"",'Prezenční listina'!D32) -> 1985 | F62: =IF('Prezenční listina'!F32=0,"",'Prezenční listina'!E32) -> BIKEŘI ROVE | G62: =IF('Prezenční listina'!F32=0,"",'Prezenční listina'!H32) -> A
A63: 59 | B63: =IF('Prezenční listina'!F68=0,"",'Prezenční listina'!F68) -> 59 | C63: =IF('Prezenční listina'!F68=0,"",'Prezenční listina'!B68) -> Pokorný | D63: =IF('Prezenční listina'!F68=0,"",'Prezenční listina'!C68) -> Václav | E63: =IF('Prezenční listina'!F68=0,"",'Prezenční listina'!D68) -> 1978 | F63: =IF('Prezenční listina'!F68=0,"",'Prezenční listina'!E68) -> Brno | G63: =IF('Prezenční listina'!F68=0,"",'Prezenční listina'!H68) -> B
A64: 60 | B64: =IF('Prezenční listina'!F69=0,"",'Prezenční listina'!F69) -> 60 | C64: =IF('Prezenční listina'!F69=0,"",'Prezenční listina'!B69) -> Tyleček | D64: =IF('Prezenční listina'!F69=0,"",'Prezenční listina'!C69) -> Pavel | E64: =IF('Prezenční listina'!F69=0,"",'Prezenční listina'!D69) -> 1973 | F64: =IF('Prezenční listina'!F69=0,"",'Prezenční listina'!E69) -> Jundrováci | G64: =IF('Prezenční listina'!F69=0,"",'Prezenční listina'!H69) -> B
A65: 61 | B65: =IF('Prezenční listina'!F70=0,"",'Prezenční listina'!F70) -> 61 | C65: =IF('Prezenční listina'!F70=0,"",'Prezenční listina'!B70) -> Podmelová | D65: =IF('Prezenční listina'!F70=0,"",'Prezenční listina'!C70) -> Vilma | E65: =IF('Prezenční listina'!F70=0,"",'Prezenční listina'!D70) -> 1962 | F65: =IF('Prezenční listina'!F70=0,"",'Prezenční listina'!E70) -> AC Moravská Slavia Brno | G65: =IF('Prezenční listina'!F70=0,"",'Prezenční listina'!H70) -> H
A66: 62 | B66: =IF('Prezenční listina'!F71=0,"",'Prezenční listina'!F71) -> 62 | C66: =IF('Prezenční listina'!F71=0,"",'Prezenční listina'!B71) -> Exner | D66: =IF('Prezenční listina'!F71=0,"",'Prezenční listina'!C71) -> Jakub | E66: =IF('Prezenční listina'!F71=0,"",'Prezenční listina'!D71) -> 1983 | F66: =IF('Prezenční listina'!F71=0,"",'Prezenční listina'!E71) -> P-Team | G66: =IF('Prezenční listina'!F71=0,"",'Prezenční listina'!H71) -> A
A67: 63 | B67: =IF('Prezenční listina'!F31=0,"",'Prezenční listina'!F31) -> 63 | C67: =IF('Prezenční listina'!F31=0,"",'Prezenční listina'!B31) -> Orálek | D67: =IF('Prezenční listina'!F31=0,"",'Prezenční listina'!C31) -> Daniel | E67: =IF('Prezenční listina'!F31=0,"",'Prezenční listina'!D31) -> 1970 | F67: =IF('Prezenční listina'!F31=0,"",'Prezenční listina'!E31) -> behejbrno.com | G67: =IF('Prezenční listina'!F31=0,"",'Prezenční listina'!H31) -> B
A68: 64 | B68: =IF('Prezenční listina'!F21=0,"",'Prezenční listina'!F21) -> 64 | C68: =IF('Prezenční listina'!F21=0,"",'Prezenční listina'!B21) -> Kratochvíl | D68: =IF('Prezenční listina'!F21=0,"",'Prezenční listina'!C21) -> Jaroslav | E68: =IF('Prezenční listina'!F21=0,"",'Prezenční listina'!D21) -> 1977 | F68: =IF('Prezenční listina'!F21=0,"",'Prezenční listina'!E21) -> SDH Hluboké | G68: =IF('Prezenční listina'!F21=0,"",'Prezenční listina'!H21) -> B
A69: 65 | B69: =IF('Prezenční listina'!F72=0,"",'Prezenční listina'!F72) -> 65 | C69: =IF('Prezenční listina'!F72=0,"",'Prezenční listina'!B72) -> Konečný | D69: =IF('Prezenční listina'!F72=0,"",'Prezenční listina'!C72) -> Libor | E69: =IF('Prezenční listina'!F72=0,"",'Prezenční listina'!D72) -> 1971 | F69: =IF('Prezenční listina'!F72=0,"",'Prezenční listina'!E72) -> Kuřim | G69: =IF('Prezenční listina'!F72=0,"",'Prezenční listina'!H72) -> B
A70: 66 | B70: =IF('Prezenční listina'!F73=0,"",'Prezenční listina'!F73) -> 66 | C70: =IF('Prezenční listina'!F73=0,"",'Prezenční listina'!B73) -> Zourek | D70: =IF('Prezenční listina'!F73=0,"",'Prezenční listina'!C73) -> Karel | E70: =IF('Prezenční listina'!F73=0,"",'Prezenční listina'!D73) -> 1959 | F70: =IF('Prezenční listina'!F73=0,"",'Prezenční listina'!E73) -> Bedřichovice | G70: =IF('Prezenční listina'!F73=0,"",'Prezenční listina'!H73) -> C
A71: 67 | B71: =IF('Prezenční listina'!F74=0,"",'Prezenční listina'!F74) -> 67 | C71: =IF('Prezenční listina'!F74=0,"",'Prezenční listina'!B74) -> Příhoda | D71: =IF('Prezenční listina'!F74=0,"",'Prezenční listina'!C74) -> Jan | E71: =IF('Prezenční listina'!F74=0,"",'Prezenční listina'!D74) -> 1983 | F71: =IF('Prezenční listina'!F74=0,"",'Prezenční listina'!E74) -> Ždánice | G71: =IF('Prezenční listina'!F74=0,"",'Prezenční listina'!H74) -> A
B72: =IF('Prezenční listina'!F7=0,"",'Prezenční listina'!F7) ->  | C72: =IF('Prezenční listina'!F7=0,"",'Prezenční listina'!B7) ->  | D72: =IF('Prezenční listina'!F7=0,"",'Prezenční listina'!C7) ->  | E72: =IF('Prezenční listina'!F7=0,"",'Prezenční listina'!D7) ->  | F72: =IF('Prezenční listina'!F7=0,"",'Prezenční listina'!E7) ->  | G72: =IF('Prezenční listina'!F7=0,"",'Prezenční listina'!H7) -> 
B73: =IF('Prezenční listina'!F8=0,"",'Prezenční listina'!F8) ->  | C73: =IF('Prezenční listina'!F8=0,"",'Prezenční listina'!B8) ->  | D73: =IF('Prezenční listina'!F8=0,"",'Prezenční listina'!C8) ->  | E73: =IF('Prezenční listina'!F8=0,"",'Prezenční listina'!D8) ->  | F73: =IF('Prezenční listina'!F8=0,"",'Prezenční listina'!E8) ->  | G73: =IF('Prezenční listina'!F8=0,"",'Prezenční listina'!H8) -> 
A74: =IF(C74="","",A73+1) ->  | B74: =IF('Prezenční listina'!F23=0,"",'Prezenční listina'!F23) ->  | C74: =IF('Prezenční listina'!F23=0,"",'Prezenční listina'!B23) ->  | D74: =IF('Prezenční listina'!F23=0,"",'Prezenční listina'!C23) ->  | E74: =IF('Prezenční listina'!F23=0,"",'Prezenční listina'!D23) ->  | F74: =IF('Prezenční listina'!F23=0,"",'Prezenční listina'!E23) ->  | G74: =IF('Prezenční listina'!F23=0,"",'Prezenční listina'!H23) -> 
B75: =IF('Prezenční listina'!F29=0,"",'Prezenční listina'!F29) ->  | C75: =IF('Prezenční listina'!F29=0,"",'Prezenční listina'!B29) ->  | D75: =IF('Prezenční listina'!F29=0,"",'Prezenční listina'!C29) ->  | E75: =IF('Prezenční listina'!F29=0,"",'Prezenční listina'!D29) ->  | F75: =IF('Prezenční listina'!F29=0,"",'Prezenční listina'!E29) ->  | G75: =IF('Prezenční listina'!F29=0,"",'Prezenční listina'!H29) -> 
B76: =IF('Prezenční listina'!F30=0,"",'Prezenční listina'!F30) ->  | C76: =IF('Prezenční listina'!F30=0,"",'Prezenční listina'!B30) ->  | D76: =IF('Prezenční listina'!F30=0,"",'Prezenční listina'!C30) ->  | E76: =IF('Prezenční listina'!F30=0,"",'Prezenční listina'!D30) ->  | F76: =IF('Prezenční listina'!F30=0,"",'Prezenční listina'!E30) ->  | G76: =IF('Prezenční listina'!F30=0,"",'Prezenční listina'!H30) -> 
B77: =IF('Prezenční listina'!F75=0,"",'Prezenční listina'!F75) ->  | C77: =IF('Prezenční listina'!F75=0,"",'Prezenční listina'!B75) ->  | D77: =IF('Prezenční listina'!F75=0,"",'Prezenční listina'!C75) ->  | E77: =IF('Prezenční listina'!F75=0,"",'Prezenční listina'!D75) ->  | F77: =IF('Prezenční listina'!F75=0,"",'Prezenční listina'!E75) ->  | G77: =IF('Prezenční listina'!F75=0,"",'Prezenční listina'!H75) -> 
B78: =IF('Prezenční listina'!F76=0,"",'Prezenční listina'!F76) ->  | C78: =IF('Prezenční listina'!F76=0,"",'Prezenční listina'!B76) ->  | D78: =IF('Prezenční listina'!F76=0,"",'Prezenční listina'!C76) ->  | E78: =IF('Prezenční listina'!F76=0,"",'Prezenční listina'!D76) ->  | F78: =IF('Prezenční listina'!F76=0,"",'Prezenční listina'!E76) ->  | G78: =IF('Prezenční listina'!F76=0,"",'Prezenční listina'!H76) -> 
B79: =IF('Prezenční listina'!F77=0,"",'Prezenční listina'!F77) ->  | C79: =IF('Prezenční listina'!F77=0,"",'Prezenční listina'!B77) ->  | D79: =IF('Prezenční listina'!F77=0,"",'Prezenční listina'!C77) ->  | E79: =IF('Prezenční listina'!F77=0,"",'Prezenční listina'!D77) ->  | F79: =IF('Prezenční listina'!F77=0,"",'Prezenční listina'!E77) ->  | G79: =IF('Prezenční listina'!F77=0,"",'Prezenční listina'!H77) -> 
B80: =IF('Prezenční listina'!F78=0,"",'Prezenční listina'!F78) ->  | C80: =IF('Prezenční listina'!F78=0,"",'Prezenční listina'!B78) ->  | D80: =IF('Prezenční listina'!F78=0,"",'Prezenční listina'!C78) ->  | E80: =IF('Prezenční listina'!F78=0,"",'Prezenční listina'!D78) ->  | F80: =IF('Prezenční listina'!F78=0,"",'Prezenční listina'!E78) ->  | G80: =IF('Prezenční listina'!F78=0,"",'Prezenční listina'!H78) -> 
B81: =IF('Prezenční listina'!F79=0,"",'Prezenční listina'!F79) ->  | C81: =IF('Prezenční listina'!F79=0,"",'Prezenční listina'!B79) ->  | D81: =IF('Prezenční listina'!F79=0,"",'Prezenční listina'!C79) ->  | E81: =IF('Prezenční listina'!F79=0,"",'Prezenční listina'!D79) ->  | F81: =IF('Prezenční listina'!F79=0,"",'Prezenční listina'!E79) ->  | G81: =IF('Prezenční listina'!F79=0,"",'Prezenční listina'!H79) -> 
B82: =IF('Prezenční listina'!F80=0,"",'Prezenční listina'!F80) ->  | C82: =IF('Prezenční listina'!F80=0,"",'Prezenční listina'!B80) ->  | D82: =IF('Prezenční listina'!F80=0,"",'Prezenční listina'!C80) ->  | E82: =IF('Prezenční listina'!F80=0,"",'Prezenční listina'!D80) ->  | F82: =IF('Prezenční listina'!F80=0,"",'Prezenční listina'!E80) ->  | G82: =IF('Prezenční listina'!F80=0,"",'Prezenční listina'!H80) -> 
B83: =IF('Prezenční listina'!F81=0,"",'Prezenční listina'!F81) ->  | C83: =IF('Prezenční listina'!F81=0,"",'Prezenční listina'!B81) ->  | D83: =IF('Prezenční listina'!F81=0,"",'Prezenční listina'!C81) ->  | E83: =IF('Prezenční listina'!F81=0,"",'Prezenční listina'!D81) ->  | F83: =IF('Prezenční listina'!F81=0,"",'Prezenční listina'!E81) ->  | G83: =IF('Prezenční listina'!F81=0,"",'Prezenční listina'!H81) -> 
B84: =IF('Prezenční listina'!F82=0,"",'Prezenční listina'!F82) ->  | C84: =IF('Prezenční listina'!F82=0,"",'Prezenční listina'!B82) ->  | D84: =IF('Prezenční listina'!F82=0,"",'Prezenční listina'!C82) ->  | E84: =IF('Prezenční listina'!F82=0,"",'Prezenční listina'!D82) ->  | F84: =IF('Prezenční listina'!F82=0,"",'Prezenční listina'!E82) ->  | G84: =IF('Prezenční listina'!F82=0,"",'Prezenční listina'!H82) -> 
B85: =IF('Prezenční listina'!F83=0,"",'Prezenční listina'!F83) ->  | C85: =IF('Prezenční listina'!F83=0,"",'Prezenční listina'!B83) ->  | D85: =IF('Prezenční listina'!F83=0,"",'Prezenční listina'!C83) ->  | E85: =IF('Prezenční listina'!F83=0,"",'Prezenční listina'!D83) ->  | F85: =IF('Prezenční listina'!F83=0,"",'Prezenční listina'!E83) ->  | G85: =IF('Prezenční listina'!F83=0,"",'Prezenční listina'!H83) -> 
B86: =IF('Prezenční listina'!F84=0,"",'Prezenční listina'!F84) ->  | C86: =IF('Prezenční listina'!F84=0,"",'Prezenční listina'!B84) ->  | D86: =IF('Prezenční listina'!F84=0,"",'Prezenční listina'!C84) ->  | E86: =IF('Prezenční listina'!F84=0,"",'Prezenční listina'!D84) ->  | F86: =IF('Prezenční listina'!F84=0,"",'Prezenční listina'!E84) ->  | G86: =IF('Prezenční listina'!F84=0,"",'Prezenční listina'!H84) -> 
B87: =IF('Prezenční listina'!F85=0,"",'Prezenční listina'!F85) ->  | C87: =IF('Prezenční listina'!F85=0,"",'Prezenční listina'!B85) ->  | D87: =IF('Prezenční listina'!F85=0,"",'Prezenční listina'!C85) ->  | E87: =IF('Prezenční listina'!F85=0,"",'Prezenční listina'!D85) ->  | F87: =IF('Prezenční listina'!F85=0,"",'Prezenční listina'!E85) ->  | G87: =IF('Prezenční listina'!F85=0,"",'Prezenční listina'!H85) -> 
B88: =IF('Prezenční listina'!F86=0,"",'Prezenční listina'!F86) ->  | C88: =IF('Prezenční listina'!F86=0,"",'Prezenční listina'!B86) ->  | D88: =IF('Prezenční listina'!F86=0,"",'Prezenční listina'!C86) ->  | E88: =IF('Prezenční listina'!F86=0,"",'Prezenční listina'!D86) ->  | F88: =IF('Prezenční listina'!F86=0,"",'Prezenční listina'!E86) ->  | G88: =IF('Prezenční listina'!F86=0,"",'Prezenční listina'!H86) -> 
B89: =IF('Prezenční listina'!F87=0,"",'Prezenční listina'!F87) ->  | C89: =IF('Prezenční listina'!F87=0,"",'Prezenční listina'!B87) ->  | D89: =IF('Prezenční listina'!F87=0,"",'Prezenční listina'!C87) ->  | E89: =IF('Prezenční listina'!F87=0,"",'Prezenční listina'!D87) ->  | F89: =IF('Prezenční listina'!F87=0,"",'Prezenční listina'!E87) ->  | G89: =IF('Prezenční listina'!F87=0,"",'Prezenční listina'!H87) -> 
B90: =IF('Prezenční listina'!F88=0,"",'Prezenční listina'!F88) ->  | C90: =IF('Prezenční listina'!F88=0,"",'Prezenční listina'!B88) ->  | D90: =IF('Prezenční listina'!F88=0,"",'Prezenční listina'!C88) ->  | E90: =IF('Prezenční listina'!F88=0,"",'Prezenční listina'!D88) ->  | F90: =IF('Prezenční listina'!F88=0,"",'Prezenční listina'!E88) ->  | G90: =IF('Prezenční listina'!F88=0,"",'Prezenční listina'!H88) -> 
A91: =IF(C91="","",A90+1) ->  | B91: =IF('Prezenční listina'!F89=0,"",'Prezenční listina'!F89) ->  | C91: =IF('Prezenční listina'!F89=0,"",'Prezenční listina'!B89) ->  | D91: =IF('Prezenční listina'!F89=0,"",'Prezenční listina'!C89) ->  | E91: =IF('Prezenční listina'!F89=0,"",'Prezenční listina'!D89) ->  | F91: =IF('Prezenční listina'!F89=0,"",'Prezenční listina'!E89) ->  | G91: =IF('Prezenční listina'!F89=0,"",'Prezenční listina'!H89) -> 
B92: =IF('Prezenční listina'!F90=0,"",'Prezenční listina'!F90) ->  | C92: =IF('Prezenční listina'!F90=0,"",'Prezenční listina'!B90) ->  | D92: =IF('Prezenční listina'!F90=0,"",'Prezenční listina'!C90) ->  | E92: =IF('Prezenční listina'!F90=0,"",'Prezenční listina'!D90) ->  | F92: =IF('Prezenční listina'!F90=0,"",'Prezenční listina'!E90) ->  | G92: =IF('Prezenční listina'!F90=0,"",'Prezenční listina'!H90) -> 
B93: =IF('Prezenční listina'!F91=0,"",'Prezenční listina'!F91) ->  | C93: =IF('Prezenční listina'!F91=0,"",'Prezenční listina'!B91) ->  | D93: =IF('Prezenční listina'!F91=0,"",'Prezenční listina'!C91) ->  | E93: =IF('Prezenční listina'!F91=0,"",'Prezenční listina'!D91) ->  | F93: =IF('Prezenční listina'!F91=0,"",'Prezenční listina'!E91) ->  | G93: =IF('Prezenční listina'!F91=0,"",'Prezenční listina'!H91) -> 
B94: =IF('Prezenční listina'!F92=0,"",'Prezenční listina'!F92) ->  | C94: =IF('Prezenční listina'!F92=0,"",'Prezenční listina'!B92) ->  | D94: =IF('Prezenční listina'!F92=0,"",'Prezenční listina'!C92) ->  | E94: =IF('Prezenční listina'!F92=0,"",'Prezenční listina'!D92) ->  | F94: =IF('Prezenční listina'!F92=0,"",'Prezenční listina'!E92) ->  | G94: =IF('Prezenční listina'!F92=0,"",'Prezenční listina'!H92) -> 
B95: =IF('Prezenční listina'!F93=0,"",'Prezenční listina'!F93) ->  | C95: =IF('Prezenční listina'!F93=0,"",'Prezenční listina'!B93) ->  | D95: =IF('Prezenční listina'!F93=0,"",'Prezenční listina'!C93) ->  | E95: =IF('Prezenční listina'!F93=0,"",'Prezenční listina'!D93) ->  | F95: =IF('Prezenční listina'!F93=0,"",'Prezenční listina'!E93) ->  | G95: =IF('Prezenční listina'!F93=0,"",'Prezenční listina'!H93) -> 
B96: =IF('Prezenční listina'!F94=0,"",'Prezenční listina'!F94) ->  | C96: =IF('Prezenční listina'!F94=0,"",'Prezenční listina'!B94) ->  | D96: =IF('Prezenční listina'!F94=0,"",'Prezenční listina'!C94) ->  | E96: =IF('Prezenční listina'!F94=0,"",'Prezenční listina'!D94) ->  | F96: =IF('Prezenční listina'!F94=0,"",'Prezenční listina'!E94) ->  | G96: =IF('Prezenční listina'!F94=0,"",'Prezenční listina'!H94) -> 
B97: =IF('Prezenční listina'!F95=0,"",'Prezenční listina'!F95) ->  | C97: =IF('Prezenční listina'!F95=0,"",'Prezenční listina'!B95) ->  | D97: =IF('Prezenční listina'!F95=0,"",'Prezenční listina'!C95) ->  | E97: =IF('Prezenční listina'!F95=0,"",'Prezenční listina'!D95) ->  | F97: =IF('Prezenční listina'!F95=0,"",'Prezenční listina'!E95) ->  | G97: =IF('Prezenční listina'!F95=0,"",'Prezenční listina'!H95) -> 
B98: =IF('Prezenční listina'!F96=0,"",'Prezenční listina'!F96) ->  | C98: =IF('Prezenční listina'!F96=0,"",'Prezenční listina'!B96) ->  | D98: =IF('Prezenční listina'!F96=0,"",'Prezenční listina'!C96) ->  | E98: =IF('Prezenční listina'!F96=0,"",'Prezenční listina'!D96) ->  | F98: =IF('Prezenční listina'!F96=0,"",'Prezenční listina'!E96) ->  | G98: =IF('Prezenční listina'!F96=0,"",'Prezenční listina'!H96) -> 
B99: =IF('Prezenční listina'!F97=0,"",'Prezenční listina'!F97) ->  | C99: =IF('Prezenční listina'!F97=0,"",'Prezenční listina'!B97) ->  | D99: =IF('Prezenční listina'!F97=0,"",'Prezenční listina'!C97) ->  | E99: =IF('Prezenční listina'!F97=0,"",'Prezenční listina'!D97) ->  | F99: =IF('Prezenční listina'!F97=0,"",'Prezenční listina'!E97) ->  | G99: =IF('Prezenční listina'!F97=0,"",'Prezenční listina'!H97) -> 
B100: =IF('Prezenční listina'!F98=0,"",'Prezenční listina'!F98) ->  | C100: =IF('Prezenční listina'!F98=0,"",'Prezenční listina'!B98) ->  | D100: =IF('Prezenční listina'!F98=0,"",'Prezenční listina'!C98) ->  | E100: =IF('Prezenční listina'!F98=0,"",'Prezenční listina'!D98) ->  | F100: =IF('Prezenční listina'!F98=0,"",'Prezenční listina'!E98) ->  | G100: =IF('Prezenční listina'!F98=0,"",'Prezenční listina'!H98) -> 
B101: =IF('Prezenční listina'!F99=0,"",'Prezenční listina'!F99) ->  | C101: =IF('Prezenční listina'!F99=0,"",'Prezenční listina'!B99) ->  | D101: =IF('Prezenční listina'!F99=0,"",'Prezenční listina'!C99) ->  | E101: =IF('Prezenční listina'!F99=0,"",'Prezenční listina'!D99) ->  | F101: =IF('Prezenční listina'!F99=0,"",'Prezenční listina'!E99) ->  | G101: =IF('Prezenční listina'!F99=0,"",'Prezenční listina'!H99) -> 
B102: =IF('Prezenční listina'!F100=0,"",'Prezenční listina'!F100) ->  | C102: =IF('Prezenční listina'!F100=0,"",'Prezenční listina'!B100) ->  | D102: =IF('Prezenční listina'!F100=0,"",'Prezenční listina'!C100) ->  | E102: =IF('Prezenční listina'!F100=0,"",'Prezenční listina'!D100) ->  | F102: =IF('Prezenční listina'!F100=0,"",'Prezenční listina'!E100) ->  | G102: =IF('Prezenční listina'!F100=0,"",'Prezenční listina'!H100) -> 
B103: =IF('Prezenční listina'!F101=0,"",'Prezenční listina'!F101) ->  | C103: =IF('Prezenční listina'!F101=0,"",'Prezenční listina'!B101) ->  | D103: =IF('Prezenční listina'!F101=0,"",'Prezenční listina'!C101) ->  | E103: =IF('Prezenční listina'!F101=0,"",'Prezenční listina'!D101) ->  | F103: =IF('Prezenční listina'!F101=0,"",'Prezenční listina'!E101) ->  | G103: =IF('Prezenční listina'!F101=0,"",'Prezenční listina'!H101) -> 
B104: =IF('Prezenční listina'!F102=0,"",'Prezenční listina'!F102) ->  | C104: =IF('Prezenční listina'!F102=0,"",'Prezenční listina'!B102) ->  | D104: =IF('Prezenční listina'!F102=0,"",'Prezenční listina'!C102) ->  | E104: =IF('Prezenční listina'!F102=0,"",'Prezenční listina'!D102) ->  | F104: =IF('Prezenční listina'!F102=0,"",'Prezenční listina'!E102) ->  | G104: =IF('Prezenční listina'!F102=0,"",'Prezenční listina'!H102) -> 
B105: =IF('Prezenční listina'!F103=0,"",'Prezenční listina'!F103) ->  | C105: =IF('Prezenční listina'!F103=0,"",'Prezenční listina'!B103) ->  | D105: =IF('Prezenční listina'!F103=0,"",'Prezenční listina'!C103) ->  | E105: =IF('Prezenční listina'!F103=0,"",'Prezenční listina'!D103) ->  | F105: =IF('Prezenční listina'!F103=0,"",'Prezenční listina'!E103) ->  | G105: =IF('Prezenční listina'!F103=0,"",'Prezenční listina'!H103) -> 
B106: =IF('Prezenční listina'!F104=0,"",'Prezenční listina'!F104) ->  | C106: =IF('Prezenční listina'!F104=0,"",'Prezenční listina'!B104) ->  | D106: =IF('Prezenční listina'!F104=0,"",'Prezenční listina'!C104) ->  | E106: =IF('Prezenční listina'!F104=0,"",'Prezenční listina'!D104) ->  | F106: =IF('Prezenční listina'!F104=0,"",'Prezenční listina'!E104) ->  | G106: =IF('Prezenční listina'!F104=0,"",'Prezenční listina'!H104) -> 
B107: =IF('Prezenční listina'!F105=0,"",'Prezenční listina'!F105) ->  | C107: =IF('Prezenční listina'!F105=0,"",'Prezenční listina'!B105) ->  | D107: =IF('Prezenční listina'!F105=0,"",'Prezenční listina'!C105) ->  | E107: =IF('Prezenční listina'!F105=0,"",'Prezenční listina'!D105) ->  | F107: =IF('Prezenční listina'!F105=0,"",'Prezenční listina'!E105) ->  | G107: =IF('Prezenční listina'!F105=0,"",'Prezenční listina'!H105) -> 
B108: =IF('Prezenční listina'!F106=0,"",'Prezenční listina'!F106) ->  | C108: =IF('Prezenční listina'!F106=0,"",'Prezenční listina'!B106) ->  | D108: =IF('Prezenční listina'!F106=0,"",'Prezenční listina'!C106) ->  | E108: =IF('Prezenční listina'!F106=0,"",'Prezenční listina'!D106) ->  | F108: =IF('Prezenční listina'!F106=0,"",'Prezenční listina'!E106) ->  | G108: =IF('Prezenční listina'!F106=0,"",'Prezenční listina'!H106) -> 
B109: =IF('Prezenční listina'!F107=0,"",'Prezenční listina'!F107) ->  | C109: =IF('Prezenční listina'!F107=0,"",'Prezenční listina'!B107) ->  | D109: =IF('Prezenční listina'!F107=0,"",'Prezenční listina'!C107) ->  | E109: =IF('Prezenční listina'!F107=0,"",'Prezenční listina'!D107) ->  | F109: =IF('Prezenční listina'!F107=0,"",'Prezenční listina'!E107) ->  | G109: =IF('Prezenční listina'!F107=0,"",'Prezenční listina'!H107) -> 
B110: =IF('Prezenční listina'!F108=0,"",'Prezenční listina'!F108) ->  | C110: =IF('Prezenční listina'!F108=0,"",'Prezenční listina'!B108) ->  | D110: =IF('Prezenční listina'!F108=0,"",'Prezenční listina'!C108) ->  | E110: =IF('Prezenční listina'!F108=0,"",'Prezenční listina'!D108) ->  | F110: =IF('Prezenční listina'!F108=0,"",'Prezenční listina'!E108) ->  | G110: =IF('Prezenční listina'!F108=0,"",'Prezenční listina'!H108) -> 
B111: =IF('Prezenční listina'!F109=0,"",'Prezenční listina'!F109) ->  | C111: =IF('Prezenční listina'!F109=0,"",'Prezenční listina'!B109) ->  | D111: =IF('Prezenční listina'!F109=0,"",'Prezenční listina'!C109) ->  | E111: =IF('Prezenční listina'!F109=0,"",'Prezenční listina'!D109) ->  | F111: =IF('Prezenční listina'!F109=0,"",'Prezenční listina'!E109) ->  | G111: =IF('Prezenční listina'!F109=0,"",'Prezenční listina'!H109) -> 
B112: =IF('Prezenční listina'!F110=0,"",'Prezenční listina'!F110) ->  | C112: =IF('Prezenční listina'!F110=0,"",'Prezenční listina'!B110) ->  | D112: =IF('Prezenční listina'!F110=0,"",'Prezenční listina'!C110) ->  | E112: =IF('Prezenční listina'!F110=0,"",'Prezenční listina'!D110) ->  | F112: =IF('Prezenční listina'!F110=0,"",'Prezenční listina'!E110) ->  | G112: =IF('Prezenční listina'!F110=0,"",'Prezenční listina'!H110) -> 
B113: =IF('Prezenční listina'!F111=0,"",'Prezenční listina'!F111) ->  | C113: =IF('Prezenční listina'!F111=0,"",'Prezenční listina'!B111) ->  | D113: =IF('Prezenční listina'!F111=0,"",'Prezenční listina'!C111) ->  | E113: =IF('Prezenční listina'!F111=0,"",'Prezenční listina'!D111) ->  | F113: =IF('Prezenční listina'!F111=0,"",'Prezenční listina'!E111) ->  | G113: =IF('Prezenční listina'!F111=0,"",'Prezenční listina'!H111) -> 
B114: =IF('Prezenční listina'!F112=0,"",'Prezenční listina'!F112) ->  | C114: =IF('Prezenční listina'!F112=0,"",'Prezenční listina'!B112) ->  | D114: =IF('Prezenční listina'!F112=0,"",'Prezenční listina'!C112) ->  | E114: =IF('Prezenční listina'!F112=0,"",'Prezenční listina'!D112) ->  | F114: =IF('Prezenční listina'!F112=0,"",'Prezenční listina'!E112) ->  | G114: =IF('Prezenční listina'!F112=0,"",'Prezenční listina'!H112) -> 
B115: =IF('Prezenční listina'!F113=0,"",'Prezenční listina'!F113) ->  | C115: =IF('Prezenční listina'!F113=0,"",'Prezenční listina'!B113) ->  | D115: =IF('Prezenční listina'!F113=0,"",'Prezenční listina'!C113) ->  | E115: =IF('Prezenční listina'!F113=0,"",'Prezenční listina'!D113) ->  | F115: =IF('Prezenční listina'!F113=0,"",'Prezenční listina'!E113) ->  | G115: =IF('Prezenční listina'!F113=0,"",'Prezenční listina'!H113) -> 
B116: =IF('Prezenční listina'!F114=0,"",'Prezenční listina'!F114) ->  | C116: =IF('Prezenční listina'!F114=0,"",'Prezenční listina'!B114) ->  | D116: =IF('Prezenční listina'!F114=0,"",'Prezenční listina'!C114) ->  | E116: =IF('Prezenční listina'!F114=0,"",'Prezenční listina'!D114) ->  | F116: =IF('Prezenční listina'!F114=0,"",'Prezenční listina'!E114) ->  | G116: =IF('Prezenční listina'!F114=0,"",'Prezenční listina'!H114) -> 
B117: =IF('Prezenční listina'!F115=0,"",'Prezenční listina'!F115) ->  | C117: =IF('Prezenční listina'!F115=0,"",'Prezenční listina'!B115) ->  | D117: =IF('Prezenční listina'!F115=0,"",'Prezenční listina'!C115) ->  | E117: =IF('Prezenční listina'!F115=0,"",'Prezenční listina'!D115) ->  | F117: =IF('Prezenční listina'!F115=0,"",'Prezenční listina'!E115) ->  | G117: =IF('Prezenční listina'!F115=0,"",'Prezenční listina'!H115) -> 
B118: =IF('Prezenční listina'!F116=0,"",'Prezenční listina'!F116) ->  | C118: =IF('Prezenční listina'!F116=0,"",'Prezenční listina'!B116) ->  | D118: =IF('Prezenční listina'!F116=0,"",'Prezenční listina'!C116) ->  | E118: =IF('Prezenční listina'!F116=0,"",'Prezenční listina'!D116) ->  | F118: =IF('Prezenční listina'!F116=0,"",'Prezenční listina'!E116) ->  | G118: =IF('Prezenční listina'!F116=0,"",'Prezenční listina'!H116) -> 
B119: =IF('Prezenční listina'!F117=0,"",'Prezenční listina'!F117) ->  | C119: =IF('Prezenční listina'!F117=0,"",'Prezenční listina'!B117) ->  | D119: =IF('Prezenční listina'!F117=0,"",'Prezenční listina'!C117) ->  | E119: =IF('Prezenční listina'!F117=0,"",'Prezenční listina'!D117) ->  | F119: =IF('Prezenční listina'!F117=0,"",'Prezenční listina'!E117) ->  | G119: =IF('Prezenční listina'!F117=0,"",'Prezenční listina'!H117) -> 
B120: =IF('Prezenční listina'!F118=0,"",'Prezenční listina'!F118) ->  | C120: =IF('Prezenční listina'!F118=0,"",'Prezenční listina'!B118) ->  | D120: =IF('Prezenční listina'!F118=0,"",'Prezenční listina'!C118) ->  | E120: =IF('Prezenční listina'!F118=0,"",'Prezenční listina'!D118) ->  | F120: =IF('Prezenční listina'!F118=0,"",'Prezenční listina'!E118) ->  | G120: =IF('Prezenční listina'!F118=0,"",'Prezenční listina'!H118) -> 
B121: =IF('Prezenční listina'!F119=0,"",'Prezenční listina'!F119) ->  | C121: =IF('Prezenční listina'!F119=0,"",'Prezenční listina'!B119) ->  | D121: =IF('Prezenční listina'!F119=0,"",'Prezenční listina'!C119) ->  | E121: =IF('Prezenční listina'!F119=0,"",'Prezenční listina'!D119) ->  | F121: =IF('Prezenční listina'!F119=0,"",'Prezenční listina'!E119) ->  | G121: =IF('Prezenční listina'!F119=0,"",'Prezenční listina'!H119) -> 
B122: =IF('Prezenční listina'!F120=0,"",'Prezenční listina'!F120) ->  | C122: =IF('Prezenční listina'!F120=0,"",'Prezenční listina'!B120) ->  | D122: =IF('Prezenční listina'!F120=0,"",'Prezenční listina'!C120) ->  | E122: =IF('Prezenční listina'!F120=0,"",'Prezenční listina'!D120) ->  | F122: =IF('Prezenční listina'!F120=0,"",'Prezenční listina'!E120) ->  | G122: =IF('Prezenční listina'!F120=0,"",'Prezenční listina'!H120) -> 
B123: =IF('Prezenční listina'!F121=0,"",'Prezenční listina'!F121) ->  | C123: =IF('Prezenční listina'!F121=0,"",'Prezenční listina'!B121) ->  | D123: =IF('Prezenční listina'!F121=0,"",'Prezenční listina'!C121) ->  | E123: =IF('Prezenční listina'!F121=0,"",'Prezenční listina'!D121) ->  | F123: =IF('Prezenční listina'!F121=0,"",'Prezenční listina'!E121) ->  | G123: =IF('Prezenční listina'!F121=0,"",'Prezenční listina'!H121) -> 
B124: =IF('Prezenční listina'!F122=0,"",'Prezenční listina'!F122) ->  | C124: =IF('Prezenční listina'!F122=0,"",'Prezenční listina'!B122) ->  | D124: =IF('Prezenční listina'!F122=0,"",'Prezenční listina'!C122) ->  | E124: =IF('Prezenční listina'!F122=0,"",'Prezenční listina'!D122) ->  | F124: =IF('Prezenční listina'!F122=0,"",'Prezenční listina'!E122) ->  | G124: =IF('Prezenční listina'!F122=0,"",'Prezenční listina'!H122) -> 
B125: =IF('Prezenční listina'!F123=0,"",'Prezenční listina'!F123) ->  | C125: =IF('Prezenční listina'!F123=0,"",'Prezenční listina'!B123) ->  | D125: =IF('Prezenční listina'!F123=0,"",'Prezenční listina'!C123) ->  | E125: =IF('Prezenční listina'!F123=0,"",'Prezenční listina'!D123) ->  | F125: =IF('Prezenční listina'!F123=0,"",'Prezenční listina'!E123) ->  | G125: =IF('Prezenční listina'!F123=0,"",'Prezenční listina'!H123) -> 
B126: =IF('Prezenční listina'!F124=0,"",'Prezenční listina'!F124) ->  | C126: =IF('Prezenční listina'!F124=0,"",'Prezenční listina'!B124) ->  | D126: =IF('Prezenční listina'!F124=0,"",'Prezenční listina'!C124) ->  | E126: =IF('Prezenční listina'!F124=0,"",'Prezenční listina'!D124) ->  | F126: =IF('Prezenční listina'!F124=0,"",'Prezenční listina'!E124) ->  | G126: =IF('Prezenční listina'!F124=0,"",'Prezenční listina'!H124) -> 
B127: =IF('Prezenční listina'!F125=0,"",'Prezenční listina'!F125) ->  | C127: =IF('Prezenční listina'!F125=0,"",'Prezenční listina'!B125) ->  | D127: =IF('Prezenční listina'!F125=0,"",'Prezenční listina'!C125) ->  | E127: =IF('Prezenční listina'!F125=0,"",'Prezenční listina'!D125) ->  | F127: =IF('Prezenční listina'!F125=0,"",'Prezenční listina'!E125) ->  | G127: =IF('Prezenční listina'!F125=0,"",'Prezenční listina'!H125) -> 
B128: =IF('Prezenční listina'!F126=0,"",'Prezenční listina'!F126) ->  | C128: =IF('Prezenční listina'!F126=0,"",'Prezenční listina'!B126) ->  | D128: =IF('Prezenční listina'!F126=0,"",'Prezenční listina'!C126) ->  | E128: =IF('Prezenční listina'!F126=0,"",'Prezenční listina'!D126) ->  | F128: =IF('Prezenční listina'!F126=0,"",'Prezenční listina'!E126) ->  | G128: =IF('Prezenční listina'!F126=0,"",'Prezenční listina'!H126) -> 
B129: =IF('Prezenční listina'!F127=0,"",'Prezenční listina'!F127) ->  | C129: =IF('Prezenční listina'!F127=0,"",'Prezenční listina'!B127) ->  | D129: =IF('Prezenční listina'!F127=0,"",'Prezenční listina'!C127) ->  | E129: =IF('Prezenční listina'!F127=0,"",'Prezenční listina'!D127) ->  | F129: =IF('Prezenční listina'!F127=0,"",'Prezenční listina'!E127) ->  | G129: =IF('Prezenční listina'!F127=0,"",'Prezenční listina'!H127) -> 
B130: =IF('Prezenční listina'!F128=0,"",'Prezenční listina'!F128) ->  | C130: =IF('Prezenční listina'!F128=0,"",'Prezenční listina'!B128) ->  | D130: =IF('Prezenční listina'!F128=0,"",'Prezenční listina'!C128) ->  | E130: =IF('Prezenční listina'!F128=0,"",'Prezenční listina'!D128) ->  | F130: =IF('Prezenční listina'!F128=0,"",'Prezenční listina'!E128) ->  | G130: =IF('Prezenční listina'!F128=0,"",'Prezenční listina'!H128) -> 
B131: =IF('Prezenční listina'!F129=0,"",'Prezenční listina'!F129) ->  | C131: =IF('Prezenční listina'!F129=0,"",'Prezenční listina'!B129) ->  | D131: =IF('Prezenční listina'!F129=0,"",'Prezenční listina'!C129) ->  | E131: =IF('Prezenční listina'!F129=0,"",'Prezenční listina'!D129) ->  | F131: =IF('Prezenční listina'!F129=0,"",'Prezenční listina'!E129) ->  | G131: =IF('Prezenční listina'!F129=0,"",'Prezenční listina'!H129) -> 
B132: =IF('Prezenční listina'!F130=0,"",'Prezenční listina'!F130) ->  | C132: =IF('Prezenční listina'!F130=0,"",'Prezenční listina'!B130) ->  | D132: =IF('Prezenční listina'!F130=0,"",'Prezenční listina'!C130) ->  | E132: =IF('Prezenční listina'!F130=0,"",'Prezenční listina'!D130) ->  | F132: =IF('Prezenční listina'!F130=0,"",'Prezenční listina'!E130) ->  | G132: =IF('Prezenční listina'!F130=0,"",'Prezenční listina'!H130) -> 
B133: =IF('Prezenční listina'!F131=0,"",'Prezenční listina'!F131) ->  | C133: =IF('Prezenční listina'!F131=0,"",'Prezenční listina'!B131) ->  | D133: =IF('Prezenční listina'!F131=0,"",'Prezenční listina'!C131) ->  | E133: =IF('Prezenční listina'!F131=0,"",'Prezenční listina'!D131) ->  | F133: =IF('Prezenční listina'!F131=0,"",'Prezenční listina'!E131) ->  | G133: =IF('Prezenční listina'!F131=0,"",'Prezenční listina'!H131) -> 
B134: =IF('Prezenční listina'!F132=0,"",'Prezenční listina'!F132) ->  | C134: =IF('Prezenční listina'!F132=0,"",'Prezenční listina'!B132) ->  | D134: =IF('Prezenční listina'!F132=0,"",'Prezenční listina'!C132) ->  | E134: =IF('Prezenční listina'!F132=0,"",'Prezenční listina'!D132) ->  | F134: =IF('Prezenční listina'!F132=0,"",'Prezenční listina'!E132) ->  | G134: =IF('Prezenční listina'!F132=0,"",'Prezenční listina'!H132) -> 
B135: =IF('Prezenční listina'!F133=0,"",'Prezenční listina'!F133) ->  | C135: =IF('Prezenční listina'!F133=0,"",'Prezenční listina'!B133) ->  | D135: =IF('Prezenční listina'!F133=0,"",'Prezenční listina'!C133) ->  | E135: =IF('Prezenční listina'!F133=0,"",'Prezenční listina'!D133) ->  | F135: =IF('Prezenční listina'!F133=0,"",'Prezenční listina'!E133) ->  | G135: =IF('Prezenční listina'!F133=0,"",'Prezenční listina'!H133) -> 
B136: =IF('Prezenční listina'!F134=0,"",'Prezenční listina'!F134) ->  | C136: =IF('Prezenční listina'!F134=0,"",'Prezenční listina'!B134) ->  | D136: =IF('Prezenční listina'!F134=0,"",'Prezenční listina'!C134) ->  | E136: =IF('Prezenční listina'!F134=0,"",'Prezenční listina'!D134) ->  | F136: =IF('Prezenční listina'!F134=0,"",'Prezenční listina'!E134) ->  | G136: =IF('Prezenční listina'!F134=0,"",'Prezenční listina'!H134) -> 
B137: =IF('Prezenční listina'!F135=0,"",'Prezenční listina'!F135) ->  | C137: =IF('Prezenční listina'!F135=0,"",'Prezenční listina'!B135) ->  | D137: =IF('Prezenční listina'!F135=0,"",'Prezenční listina'!C135) ->  | E137: =IF('Prezenční listina'!F135=0,"",'Prezenční listina'!D135) ->  | F137: =IF('Prezenční listina'!F135=0,"",'Prezenční listina'!E135) ->  | G137: =IF('Prezenční listina'!F135=0,"",'Prezenční listina'!H135) -> 
B138: =IF('Prezenční listina'!F136=0,"",'Prezenční listina'!F136) ->  | C138: =IF('Prezenční listina'!F136=0,"",'Prezenční listina'!B136) ->  | D138: =IF('Prezenční listina'!F136=0,"",'Prezenční listina'!C136) ->  | E138: =IF('Prezenční listina'!F136=0,"",'Prezenční listina'!D136) ->  | F138: =IF('Prezenční listina'!F136=0,"",'Prezenční listina'!E136) ->  | G138: =IF('Prezenční listina'!F136=0,"",'Prezenční listina'!H136) -> 
B139: =IF('Prezenční listina'!F137=0,"",'Prezenční listina'!F137) ->  | C139: =IF('Prezenční listina'!F137=0,"",'Prezenční listina'!B137) ->  | D139: =IF('Prezenční listina'!F137=0,"",'Prezenční listina'!C137) ->  | E139: =IF('Prezenční listina'!F137=0,"",'Prezenční listina'!D137) ->  | F139: =IF('Prezenční listina'!F137=0,"",'Prezenční listina'!E137) ->  | G139: =IF('Prezenční listina'!F137=0,"",'Prezenční listina'!H137) -> 
B140: =IF('Prezenční listina'!F138=0,"",'Prezenční listina'!F138) ->  | C140: =IF('Prezenční listina'!F138=0,"",'Prezenční listina'!B138) ->  | D140: =IF('Prezenční listina'!F138=0,"",'Prezenční listina'!C138) ->  | E140: =IF('Prezenční listina'!F138=0,"",'Prezenční listina'!D138) ->  | F140: =IF('Prezenční listina'!F138=0,"",'Prezenční listina'!E138) ->  | G140: =IF('Prezenční listina'!F138=0,"",'Prezenční listina'!H138) -> 
B141: =IF('Prezenční listina'!F139=0,"",'Prezenční listina'!F139) ->  | C141: =IF('Prezenční listina'!F139=0,"",'Prezenční listina'!B139) ->  | D141: =IF('Prezenční listina'!F139=0,"",'Prezenční listina'!C139) ->  | E141: =IF('Prezenční listina'!F139=0,"",'Prezenční listina'!D139) ->  | F141: =IF('Prezenční listina'!F139=0,"",'Prezenční listina'!E139) ->  | G141: =IF('Prezenční listina'!F139=0,"",'Prezenční listina'!H139) -> 

Sheet Výsledková listina
A1: ="Výsledková listina - Malý svratecký maraton "&'Prezenční listina'!O2 -> Výsledková listina - Malý svratecký maraton 2018
A2: 2018-08-25 | K2: Poté, co jsou dopsány časy VŠECH běžců, stisknout tlačítko 1.řazení Ve sloupci B (Pořadí v kategorii) vytvořit posloupnou číselnou řadu pro každou kategorii a poté stisknout tlačítko 2.řazení !!! POZOR!!! Použití tlačítek je nevratný krok!
A3: ='Prezenční listina'!O2-1953&". ročník" -> 65. ročník
A4: Celkové pořadí | B4: Pořadí v kategorii | C4: Kategorie | D4: Startovní číslo | E4: Příjmení | F4: Jméno | G4: Narození | H4: Oddíl / Bydliště | I4: Čas
A5: 1 | B5: 1 | C5: ='Startovní listina'!G49 -> A | D5: ='Startovní listina'!B49 -> 45 | E5: ='Startovní listina'!C49 -> Kohut | F5: ='Startovní listina'!D49 -> Jan | G5: ='Startovní listina'!E49 -> 1985 | H5: ='Startovní listina'!F49 -> Univerzita Brno | I5: 02:02:02
A6: =IF('Výsledková listina'!D5<>"",A5+1,"") -> 2 | B6: 2 | C6: ='Startovní listina'!G66 -> A | D6: ='Startovní listina'!B66 -> 62 | E6: ='Startovní listina'!C66 -> Exner | F6: ='Startovní listina'!D66 -> Jakub | G6: ='Startovní listina'!E66 -> 1983 | H6: ='Startovní listina'!F66 -> P-Team | I6: 02:02:03
A7: =IF('Výsledková listina'!D6<>"",A6+1,"") -> 3 | B7: 1 | C7: ='Startovní listina'!G67 -> B | D7: ='Startovní listina'!B67 -> 63 | E7: ='Startovní listina'!C67 -> Orálek | F7: ='Startovní listina'!D67 -> Daniel | G7: ='Startovní listina'!E67 -> 1970 | H7: ='Startovní listina'!F67 -> behejbrno.com | I7: 02:04:27
A8: =IF('Výsledková listina'!D7<>"",A7+1,"") -> 4 | B8: 3 | C8: ='Startovní listina'!G40 -> A | D8: ='Startovní listina'!B40 -> 36 | E8: ='Startovní listina'!C40 -> Nováček | F8: ='Startovní listina'!D40 -> Tomáš | G8: ='Startovní listina'!E40 -> 1983 | H8: ='Startovní listina'!F40 -> SDH Kamenná | I8: 02:06:25
A9: =IF('Výsledková listina'!D8<>"",A8+1,"") -> 5 | B9: 2 | C9: ='Startovní listina'!G47 -> B | D9: ='Startovní listina'!B47 -> 43 | E9: ='Startovní listina'!C47 -> Kocur | F9: ='Startovní listina'!D47 -> Lukáš | G9: ='Startovní listina'!E47 -> 1977 | H9: ='Startovní listina'!F47 -> Orel Šitbořice | I9: 02:10:30
A10: =IF('Výsledková listina'!D9<>"",A9+1,"") -> 6 | B10: 3 | C10: ='Startovní listina'!G34 -> B | D10: ='Startovní listina'!B34 -> 30 | E10: ='Startovní listina'!C34 -> Vintrlík | F10: ='Startovní listina'!D34 -> Martin | G10: ='Startovní listina'!E34 -> 1977 | H10: ='Startovní listina'!F34 -> Triatlon křepice | I10: 02:12:21
A11: =IF('Výsledková listina'!D10<>"",A10+1,"") -> 7 | B11: 4 | C11: ='Startovní listina'!G71 -> A | D11: ='Startovní listina'!B71 -> 67 | E11: ='Startovní listina'!C71 -> Příhoda | F11: ='Startovní listina'!D71 -> Jan | G11: ='Startovní listina'!E71 -> 1983 | H11: ='Startovní listina'!F71 -> Ždánice | I11: 02:13:17
A12: =IF('Výsledková listina'!D11<>"",A11+1,"") -> 8 | B12: 1 | C12: ='Startovní listina'!G50 -> C | D12: ='Startovní listina'!B50 -> 46 | E12: ='Startovní listina'!C50 -> Dvořáček | F12: ='Startovní listina'!D50 -> Jiří | G12: ='Startovní listina'!E50 -> 1968 | H12: ='Startovní listina'!F50 -> Univerzita Brno | I12: 02:13:30
A13: =IF('Výsledková listina'!D12<>"",A12+1,"") -> 9 | B13: 4 | C13: ='Startovní listina'!G63 -> B | D13: ='Startovní listina'!B63 -> 59 | E13: ='Startovní listina'!C63 -> Pokorný | F13: ='Startovní listina'!D63 -> Václav | G13: ='Startovní listina'!E63 -> 1978 | H13: ='Startovní listina'!F63 -> Brno | I13: 02:14:28
A14: =IF('Výsledková listina'!D13<>"",A13+1,"") -> 10 | B14: 5 | C14: ='Startovní listina'!G53 -> A | D14: ='Startovní listina'!B53 -> 49 | E14: ='Startovní listina'!C53 -> Glier | F14: ='Startovní listina'!D53 -> Michal | G14: ='Startovní listina'!E53 -> 1982 | H14: ='Startovní listina'!F53 -> SDH Doubravník | I14: 02:15:18
A15: =IF('Výsledková listina'!D14<>"",A14+1,"") -> 11 | B15: 2 | C15: ='Startovní listina'!G41 -> C | D15: ='Startovní listina'!B41 -> 37 | E15: ='Startovní listina'!C41 -> Svoboda | F15: ='Startovní listina'!D41 -> Petr | G15: ='Startovní listina'!E41 -> 1968 | H15: ='Startovní listina'!F41 -> AC Moravská Slavia Brno | I15: 02:18:52
A16: =IF('Výsledková listina'!D15<>"",A15+1,"") -> 12 | B16: 5 | C16: ='Startovní listina'!G29 -> B | D16: ='Startovní listina'!B29 -> 25 | E16: ='Startovní listina'!C29 -> Klíma | F16: ='Startovní listina'!D29 -> Miroslav | G16: ='Startovní listina'!E29 -> 1975 | H16: ='Startovní listina'!F29 -> Emanovy červené trenýrky Brno | I16: 02:19:10
A17: =IF('Výsledková listina'!D16<>"",A16+1,"") -> 13 | B17: 1 | C17: ='Startovní listina'!G35 -> F | D17: ='Startovní listina'!B35 -> 31 | E17: ='Startovní listina'!C35 -> Pešáková | F17: ='Startovní listina'!D35 -> Mirka | G17: ='Startovní listina'!E35 -> 1985 | H17: ='Startovní listina'!F35 -> AC RACERS, Tetčice | I17: 02:19:28
A18: =IF('Výsledková listina'!D17<>"",A17+1,"") -> 14 | B18: 6 | C18: ='Startovní listina'!G10 -> B | D18: ='Startovní listina'!B10 -> 6 | E18: ='Startovní listina'!C10 -> Šerák | F18: ='Startovní listina'!D10 -> Martin | G18: ='Startovní listina'!E10 -> 1978 | H18: ='Startovní listina'!F10 -> Liga 100 Olomouc | I18: 02:19:41
A19: =IF('Výsledková listina'!D18<>"",A18+1,"") -> 15 | B19: 7 | C19: ='Startovní listina'!G69 -> B | D19: ='Startovní listina'!B69 -> 65 | E19: ='Startovní listina'!C69 -> Konečný | F19: ='Startovní listina'!D69 -> Libor | G19: ='Startovní listina'!E69 -> 1971 | H19: ='Startovní listina'!F69 -> Kuřim | I19: 02:20:00
A20: =IF('Výsledková listina'!D19<>"",A19+1,"") -> 16 | B20: 3 | C20: ='Startovní listina'!G39 -> C | D20: ='Startovní listina'!B39 -> 35 | E20: ='Startovní listina'!C39 -> Hýbl | F20: ='Startovní listina'!D39 -> Jiří | G20: ='Startovní listina'!E39 -> 1967 | H20: ='Startovní listina'!F39 -> Hrušovany u Brna | I20: 02:20:26
A21: =IF('Výsledková listina'!D20<>"",A20+1,"") -> 17 | B21: 8 | C21: ='Startovní listina'!G44 -> B | D21: ='Startovní listina'!B44 -> 40 | E21: ='Startovní listina'!C44 -> Viščor | F21: ='Startovní listina'!D44 -> Pavel | G21: ='Startovní listina'!E44 -> 1974 | H21: ='Startovní listina'!F44 -> Brno | I21: 02:20:38
A22: =IF('Výsledková listina'!D21<>"",A21+1,"") -> 18 | B22: 9 | C22: ='Startovní listina'!G14 -> B | D22: ='Startovní listina'!B14 -> 10 | E22: ='Startovní listina'!C14 -> Kopečný | F22: ='Startovní listina'!D14 -> Dušan | G22: ='Startovní listina'!E14 -> 1973 | H22: ='Startovní listina'!F14 -> Liga 100 Olomouc | I22: 02:21:19
A23: =IF('Výsledková listina'!D22<>"",A22+1,"") -> 19 | B23: 4 | C23: ='Startovní listina'!G38 -> C | D23: ='Startovní listina'!B38 -> 34 | E23: ='Startovní listina'!C38 -> Šimunek | F23: ='Startovní listina'!D38 -> Martin | G23: ='Startovní listina'!E38 -> 1966 | H23: ='Startovní listina'!F38 -> Botanka Running Modřice | I23: 02:21:57
A24: =IF('Výsledková listina'!D23<>"",A23+1,"") -> 20 | B24: 6 | C24: ='Startovní listina'!G8 -> A | D24: ='Startovní listina'!B8 -> 4 | E24: ='Startovní listina'!C8 -> Kalich | F24: ='Startovní listina'!D8 -> Radim | G24: ='Startovní listina'!E8 -> 1985 | H24: ='Startovní listina'!F8 -> Odranec | I24: 02:29:01
A25: =IF('Výsledková listina'!D24<>"",A24+1,"") -> 21 | B25: 2 | C25: ='Startovní listina'!G30 -> F | D25: ='Startovní listina'!B30 -> 26 | E25: ='Startovní listina'!C30 -> Bartoňková | F25: ='Startovní listina'!D30 -> Nina | G25: ='Startovní listina'!E30 -> 1990 | H25: ='Startovní listina'!F30 -> AK Drnovice | I25: 02:31:47
A26: =IF('Výsledková listina'!D25<>"",A25+1,"") -> 22 | B26: 10 | C26: ='Startovní listina'!G68 -> B | D26: ='Startovní listina'!B68 -> 64 | E26: ='Startovní listina'!C68 -> Kratochvíl | F26: ='Startovní listina'!D68 -> Jaroslav | G26: ='Startovní listina'!E68 -> 1977 | H26: ='Startovní listina'!F68 -> SDH Hluboké | I26: 02:32:26
A27: =IF('Výsledková listina'!D26<>"",A26+1,"") -> 23 | B27: 11 | C27: ='Startovní listina'!G43 -> B | D27: ='Startovní listina'!B43 -> 39 | E27: ='Startovní listina'!C43 -> Řezníček | F27: ='Startovní listina'!D43 -> Petr | G27: ='Startovní listina'!E43 -> 1973 | H27: ='Startovní listina'!F43 -> Polnička | I27: 02:33:52
A28: =IF('Výsledková listina'!D27<>"",A27+1,"") -> 24 | B28: 3 | C28: ='Startovní listina'!G48 -> F | D28: ='Startovní listina'!B48 -> 44 | E28: ='Startovní listina'!C48 -> Johaníková | F28: ='Startovní listina'!D48 -> Lucie | G28: ='Startovní listina'!E48 -> 1986 | H28: ='Startovní listina'!F48 -> AC Moravská Slavia Brno | I28: 02:34:08
A29: =IF('Výsledková listina'!D28<>"",A28+1,"") -> 25 | B29: 7 | C29: ='Startovní listina'!G58 -> A | D29: ='Startovní listina'!B58 -> 54 | E29: ='Startovní listina'!C58 -> Pavlásek | F29: ='Startovní listina'!D58 -> Michal | G29: ='Startovní listina'!E58 -> 1983 | H29: ='Startovní listina'!F58 -> Brno | I29: 02:35:40
A30: =IF('Výsledková listina'!D29<>"",A29+1,"") -> 26 | B30: 8 | C30: ='Startovní listina'!G42 -> A | D30: ='Startovní listina'!B42 -> 38 | E30: ='Startovní listina'!C42 -> Košek | F30: ='Startovní listina'!D42 -> Martin | G30: ='Startovní listina'!E42 -> 1984 | H30: ='Startovní listina'!F42 -> Brno | I30: 02:35:59
A31: =IF('Výsledková listina'!D30<>"",A30+1,"") -> 27 | B31: 1 | C31: ='Startovní listina'!G19 -> D | D31: ='Startovní listina'!B19 -> 15 | E31: ='Startovní listina'!C19 -> Bělehrádek | F31: ='Startovní listina'!D19 -> Pavel | G31: ='Startovní listina'!E19 -> 1958 | H31: ='Startovní listina'!F19 -> TJ ČOLEK | I31: 02:37:32
A32: =IF('Výsledková listina'!D31<>"",A31+1,"") -> 28 | B32: 9 | C32: ='Startovní listina'!G36 -> A | D32: ='Startovní listina'!B36 -> 32 | E32: ='Startovní listina'!C36 -> Sinkule | F32: ='Startovní listina'!D36 -> Pavel | G32: ='Startovní listina'!E36 -> 1981 | H32: ='Startovní listina'!F36 -> SRTG Brno | I32: 02:38:01
A33: =IF('Výsledková listina'!D32<>"",A32+1,"") -> 29 | B33: 12 | C33: ='Startovní listina'!G31 -> B | D33: ='Startovní listina'!B31 -> 27 | E33: ='Startovní listina'!C31 -> Fanfrdla | F33: ='Startovní listina'!D31 -> Dalimil | G33: ='Startovní listina'!E31 -> 1973 | H33: ='Startovní listina'!F31 -> Matyteam Brno | I33: 02:38:52
A34: =IF('Výsledková listina'!D33<>"",A33+1,"") -> 30 | B34: 10 | C34: ='Startovní listina'!G37 -> A | D34: ='Startovní listina'!B37 -> 33 | E34: ='Startovní listina'!C37 -> Komárek | F34: ='Startovní listina'!D37 -> Michal | G34: ='Startovní listina'!E37 -> 1981 | H34: ='Startovní listina'!F37 -> Bystřice nad Pernštejnem | I34: 02:39:54
A35: =IF('Výsledková listina'!D34<>"",A34+1,"") -> 31 | B35: 1 | C35: ='Startovní listina'!G5 -> G | D35: ='Startovní listina'!B5 -> 1 | E35: ='Startovní listina'!C5 -> Komárková | F35: ='Startovní listina'!D5 -> Zdeňka | G35: ='Startovní listina'!E5 -> 1974 | H35: ='Startovní listina'!F5 -> SDH Bolešín | I35: 02:41:14
A36: =IF('Výsledková listina'!D35<>"",A35+1,"") -> 32 | B36: 1 | C36: ='Startovní listina'!G32 -> H | D36: ='Startovní listina'!B32 -> 28 | E36: ='Startovní listina'!C32 -> Hanslová | F36: ='Startovní listina'!D32 -> Lenka | G36: ='Startovní listina'!E32 -> 1973 | H36: ='Startovní listina'!F32 -> Žďár nad Sázavou | I36: 02:42:56
A37: =IF('Výsledková listina'!D36<>"",A36+1,"") -> 33 | B37: 2 | C37: ='Startovní listina'!G7 -> G | D37: ='Startovní listina'!B7 -> 3 | E37: ='Startovní listina'!C7 -> Mlčáková | F37: ='Startovní listina'!D7 -> Hana | G37: ='Startovní listina'!E7 -> 1981 | H37: ='Startovní listina'!F7 -> Strážnice | I37: 02:44:34
A38: =IF('Výsledková listina'!D37<>"",A37+1,"") -> 34 | B38: 2 | C38: ='Startovní listina'!G54 -> D | D38: ='Startovní listina'!B54 -> 50 | E38: ='Startovní listina'!C54 -> Král | F38: ='Startovní listina'!D54 -> Josef | G38: ='Startovní listina'!E54 -> 1958 | H38: ='Startovní listina'!F54 -> SDH Bystré | I38: 02:45:17
A39: =IF('Výsledková listina'!D38<>"",A38+1,"") -> 35 | B39: 11 | C39: ='Startovní listina'!G11 -> A | D39: ='Startovní listina'!B11 -> 7 | E39: ='Startovní listina'!C11 -> Podsedník | F39: ='Startovní listina'!D11 -> Marek | G39: ='Startovní listina'!E11 -> 1985 | H39: ='Startovní listina'!F11 -> Brno | I39: 02:45:57
A40: =IF('Výsledková listina'!D39<>"",A39+1,"") -> 36 | B40: 4 | C40: ='Startovní listina'!G25 -> F | D40: ='Startovní listina'!B25 -> 21 | E40: ='Startovní listina'!C25 -> Trefilová | F40: ='Startovní listina'!D25 -> Ester | G40: ='Startovní listina'!E25 -> 1993 | H40: ='Startovní listina'!F25 -> Vír | I40: 02:46:41
A41: =IF('Výsledková listina'!D40<>"",A40+1,"") -> 37 | B41: 13 | C41: ='Startovní listina'!G56 -> B | D41: ='Startovní listina'!B56 -> 52 | E41: ='Startovní listina'!C56 -> Lorenčík | F41: ='Startovní listina'!D56 -> Aleš | G41: ='Startovní listina'!E56 -> 1973 | H41: ='Startovní listina'!F56 -> Chrudim | I41: 02:47:42
A42: =IF('Výsledková listina'!D41<>"",A41+1,"") -> 38 | B42: 12 | C42: ='Startovní listina'!G27 -> A | D42: ='Startovní listina'!B27 -> 23 | E42: ='Startovní listina'!C27 -> Koutský | F42: ='Startovní listina'!D27 -> Tomáš | G42: ='Startovní listina'!E27 -> 1987 | H42: ='Startovní listina'!F27 -> Ledová stěna Vír | I42: 02:48:37
A43: =IF('Výsledková listina'!D42<>"",A42+1,"") -> 39 | B43: 13 | C43: ='Startovní listina'!G62 -> A | D43: ='Startovní listina'!B62 -> 58 | E43: ='Startovní listina'!C62 -> Paleček | F43: ='Startovní listina'!D62 -> Miloš | G43: ='Startovní listina'!E62 -> 1985 | H43: ='Startovní listina'!F62 -> BIKEŘI ROVE | I43: 02:49:08
A44: =IF('Výsledková listina'!D43<>"",A43+1,"") -> 40 | B44: 14 | C44: ='Startovní listina'!G23 -> A | D44: ='Startovní listina'!B23 -> 19 | E44: ='Startovní listina'!C23 -> Pivec | F44: ='Startovní listina'!D23 -> Jan | G44: ='Startovní listina'!E23 -> 1981 | H44: ='Startovní listina'!F23 -> HAL3000 | I44: 02:49:24
A45: =IF('Výsledková listina'!D44<>"",A44+1,"") -> 41 | B45: 14 | C45: ='Startovní listina'!G45 -> B | D45: ='Startovní listina'!B45 -> 41 | E45: ='Startovní listina'!C45 -> Žličař | F45: ='Startovní listina'!D45 -> Karel | G45: ='Startovní listina'!E45 -> 1977 | H45: ='Startovní listina'!F45 -> Železárny Štěpánov | I45: 02:50:47
A46: =IF('Výsledková listina'!D45<>"",A45+1,"") -> 42 | B46: 5 | C46: ='Startovní listina'!G55 -> F | D46: ='Startovní listina'!B55 -> 51 | E46: ='Startovní listina'!C55 -> Vondrová | F46: ='Startovní listina'!D55 -> Ludmila | G46: ='Startovní listina'!E55 -> 1986 | H46: ='Startovní listina'!F55 -> Dalečín | I46: 02:52:05
A47: =IF('Výsledková listina'!D46<>"",A46+1,"") -> 43 | B47: 3 | C47: ='Startovní listina'!G57 -> G | D47: ='Startovní listina'!B57 -> 53 | E47: ='Startovní listina'!C57 -> Kuncová | F47: ='Startovní listina'!D57 -> Markéta | G47: ='Startovní listina'!E57 -> 1982 | H47: ='Startovní listina'!F57 -> Rožná | I47: 02:52:06
A48: =IF('Výsledková listina'!D47<>"",A47+1,"") -> 44 | B48: 15 | C48: ='Startovní listina'!G28 -> A | D48: ='Startovní listina'!B28 -> 24 | E48: ='Startovní listina'!C28 -> Skula | F48: ='Startovní listina'!D28 -> Miroslav | G48: ='Startovní listina'!E28 -> 1988 | H48: ='Startovní listina'!F28 -> SRTG Žďár nad Sázavou | I48: 02:52:41
A49: =IF('Výsledková listina'!D48<>"",A48+1,"") -> 45 | B49: 6 | C49: ='Startovní listina'!G52 -> F | D49: ='Startovní listina'!B52 -> 48 | E49: ='Startovní listina'!C52 -> Glierová | F49: ='Startovní listina'!D52 -> Renata | G49: ='Startovní listina'!E52 -> 1985 | H49: ='Startovní listina'!F52 -> SDH Doubravník | I49: 02:53:08
A50: =IF('Výsledková listina'!D49<>"",A49+1,"") -> 46 | B50: 15 | C50: ='Startovní listina'!G51 -> B | D50: ='Startovní listina'!B51 -> 47 | E50: ='Startovní listina'!C51 -> Fric | F50: ='Startovní listina'!D51 -> Petr | G50: ='Startovní listina'!E51 -> 1970 | H50: ='Startovní listina'!F51 -> Bystré | I50: 03:00:44
A51: =IF('Výsledková listina'!D50<>"",A50+1,"") -> 47 | B51: 5 | C51: ='Startovní listina'!G61 -> C | D51: ='Startovní listina'!B61 -> 57 | E51: ='Startovní listina'!C61 -> Kříž | F51: ='Startovní listina'!D61 -> Miloslav | G51: ='Startovní listina'!E61 -> 1961 | H51: ='Startovní listina'!F61 -> Aspire Dobrochov | I51: 03:01:52
A52: =IF('Výsledková listina'!D51<>"",A51+1,"") -> 48 | B52: 16 | C52: ='Startovní listina'!G6 -> A | D52: ='Startovní listina'!B6 -> 2 | E52: ='Startovní listina'!C6 -> Ptáček | F52: ='Startovní listina'!D6 -> Michal | G52: ='Startovní listina'!E6 -> 1986 | H52: ='Startovní listina'!F6 -> Hrdá Ves | I52: 03:03:27
A53: =IF('Výsledková listina'!D52<>"",A52+1,"") -> 49 | B53: 17 | C53: ='Startovní listina'!G24 -> A | D53: ='Startovní listina'!B24 -> 20 | E53: ='Startovní listina'!C24 -> Forýtek | F53: ='Startovní listina'!D24 -> Michal | G53: ='Startovní listina'!E24 -> 1982 | H53: ='Startovní listina'!F24 -> HAL3000 | I53: 03:05:03
A54: =IF('Výsledková listina'!D53<>"",A53+1,"") -> 50 | B54: 3 | C54: ='Startovní listina'!G46 -> D | D54: ='Startovní listina'!B46 -> 42 | E54: ='Startovní listina'!C46 -> Mareš | F54: ='Startovní listina'!D46 -> Bohumil | G54: ='Startovní listina'!E46 -> 1951 | H54: ='Startovní listina'!F46 -> Posilovna Průvan Brno | I54: 03:06:55
A55: =IF('Výsledková listina'!D54<>"",A54+1,"") -> 51 | B55: 16 | C55: ='Startovní listina'!G60 -> B | D55: ='Startovní listina'!B60 -> 56 | E55: ='Startovní listina'!C60 -> Benc | F55: ='Startovní listina'!D60 -> Karel | G55: ='Startovní listina'!E60 -> 1975 | H55: ='Startovní listina'!F60 -> Pivonice | I55: 03:07:47
A56: =IF('Výsledková listina'!D55<>"",A55+1,"") -> 52 | B56: 17 | C56: ='Startovní listina'!G33 -> B | D56: ='Startovní listina'!B33 -> 29 | E56: ='Startovní listina'!C33 -> Dvořák | F56: ='Startovní listina'!D33 -> Vojtěch | G56: ='Startovní listina'!E33 -> 1975 | H56: ='Startovní listina'!F33 -> Brno | I56: 03:08:01
A57: =IF('Výsledková listina'!D56<>"",A56+1,"") -> 53 | B57: 6 | C57: ='Startovní listina'!G21 -> C | D57: ='Startovní listina'!B21 -> 17 | E57: ='Startovní listina'!C21 -> Bečička | F57: ='Startovní listina'!D21 -> Petr | G57: ='Startovní listina'!E21 -> 1960 | H57: ='Startovní listina'!F21 -> HAL3000 | I57: 03:10:49
A58: =IF('Výsledková listina'!D57<>"",A57+1,"") -> 54 | B58: 18 | C58: ='Startovní listina'!G64 -> B | D58: ='Startovní listina'!B64 -> 60 | E58: ='Startovní listina'!C64 -> Tyleček | F58: ='Startovní listina'!D64 -> Pavel | G58: ='Startovní listina'!E64 -> 1973 | H58: ='Startovní listina'!F64 -> Jundrováci | I58: 03:14:16
A59: =IF('Výsledková listina'!D58<>"",A58+1,"") -> 55 | B59: 4 | C59: ='Startovní listina'!G12 -> G | D59: ='Startovní listina'!B12 -> 8 | E59: ='Startovní listina'!C12 -> Pichová | F59: ='Startovní listina'!D12 -> Dagmar | G59: ='Startovní listina'!E12 -> 1977 | H59: ='Startovní listina'!F12 -> Brno | I59: 03:14:28
A60: =IF('Výsledková listina'!D59<>"",A59+1,"") -> 56 | B60: 7 | C60: ='Startovní listina'!G17 -> C | D60: ='Startovní listina'!B17 -> 13 | E60: ='Startovní listina'!C17 -> Kresta | F60: ='Startovní listina'!D17 -> Roman | G60: ='Startovní listina'!E17 -> 1965 | H60: ='Startovní listina'!F17 -> Orel Židenice | I60: 03:20:53
A61: =IF('Výsledková listina'!D60<>"",A60+1,"") -> 57 | B61: 4 | C61: ='Startovní listina'!G16 -> D | D61: ='Startovní listina'!B16 -> 12 | E61: ='Startovní listina'!C16 -> Zejda | F61: ='Startovní listina'!D16 -> Ivo | G61: ='Startovní listina'!E16 -> 1958 | H61: ='Startovní listina'!F16 -> AC Moravská Slavia Brno | I61: 03:21:18
A62: =IF('Výsledková listina'!D61<>"",A61+1,"") -> 58 | B62: 5 | C62: ='Startovní listina'!G22 -> G | D62: ='Startovní listina'!B22 -> 18 | E62: ='Startovní listina'!C22 -> Dostálová | F62: ='Startovní listina'!D22 -> Vendula | G62: ='Startovní listina'!E22 -> 1981 | H62: ='Startovní listina'!F22 -> HAL3000 | I62: 03:24:03
A63: =IF('Výsledková listina'!D62<>"",A62+1,"") -> 59 | B63: 19 | C63: ='Startovní listina'!G26 -> B | D63: ='Startovní listina'!B26 -> 22 | E63: ='Startovní listina'!C26 -> Faja | F63: ='Startovní listina'!D26 -> Ondřej | G63: ='Startovní listina'!E26 -> 1976 | H63: ='Startovní listina'!F26 -> Brno | I63: 03:25:14
A64: =IF('Výsledková listina'!D63<>"",A63+1,"") -> 60 | B64: 7 | C64: ='Startovní listina'!G59 -> F | D64: ='Startovní listina'!B59 -> 55 | E64: ='Startovní listina'!C59 -> Jamrichová | F64: ='Startovní listina'!D59 -> Kristina | G64: ='Startovní listina'!E59 -> 1987 | H64: ='Startovní listina'!F59 -> Brno | I64: 03:25:40
A65: =IF('Výsledková listina'!D64<>"",A64+1,"") -> 61 | B65: 6 | C65: ='Startovní listina'!G9 -> G | D65: ='Startovní listina'!B9 -> 5 | E65: ='Startovní listina'!C9 -> Ježová | F65: ='Startovní listina'!D9 -> Martina | G65: ='Startovní listina'!E9 -> 1975 | H65: ='Startovní listina'!F9 -> Brno | I65: 03:30:58
A66: =IF('Výsledková listina'!D65<>"",A65+1,"") -> 62 | B66: 2 | C66: ='Startovní listina'!G13 -> H | D66: ='Startovní listina'!B13 -> 9 | E66: ='Startovní listina'!C13 -> Tesařová | F66: ='Startovní listina'!D13 -> Marie | G66: ='Startovní listina'!E13 -> 1954 | H66: ='Startovní listina'!F13 -> Křižanov | I66: 03:31:28
A67: =IF('Výsledková listina'!D66<>"",A66+1,"") -> 63 | B67: 8 | C67: ='Startovní listina'!G70 -> C | D67: ='Startovní listina'!B70 -> 66 | E67: ='Startovní listina'!C70 -> Zourek | F67: ='Startovní listina'!D70 -> Karel | G67: ='Startovní listina'!E70 -> 1959 | H67: ='Startovní listina'!F70 -> Bedřichovice | I67: 03:38:04
A68: =IF('Výsledková listina'!D67<>"",A67+1,"") -> 64 | B68: 18 | C68: ='Startovní listina'!G20 -> A | D68: ='Startovní listina'!B20 -> 16 | E68: ='Startovní listina'!C20 -> Král | F68: ='Startovní listina'!D20 -> Jan | G68: ='Startovní listina'!E20 -> 1981 | H68: ='Startovní listina'!F20 -> Brno | I68: 03:44:50
A69: =IF('Výsledková listina'!D68<>"",A68+1,"") -> 65 | B69: 3 | C69: ='Startovní listina'!G65 -> H | D69: ='Startovní listina'!B65 -> 61 | E69: ='Startovní listina'!C65 -> Podmelová | F69: ='Startovní listina'!D65 -> Vilma | G69: ='Startovní listina'!E65 -> 1962 | H69: ='Startovní listina'!F65 -> AC Moravská Slavia Brno | I69: 03:48:57
A70: =IF('Výsledková listina'!D69<>"",A69+1,"") -> 66 | B70: 1 | C70: ='Startovní listina'!G15 -> E | D70: ='Startovní listina'!B15 -> 11 | E70: ='Startovní listina'!C15 -> Holý | F70: ='Startovní listina'!D15 -> Josef | G70: ='Startovní listina'!E15 -> 1941 | H70: ='Startovní listina'!F15 -> AC Moravská Slavia Brno | I70: 04:22:58
A71: 67 | C71: ='Startovní listina'!G18 -> A | D71: ='Startovní listina'!B18 -> 14 | E71: ='Startovní listina'!C18 -> Juránek | F71: ='Startovní listina'!D18 -> Jakub | G71: ='Startovní listina'!E18 -> 1995 | H71: ='Startovní listina'!F18 -> S.U.P.I. Martinice | I71: DNF
A72: =IF('Výsledková listina'!D71<>"",A71+1,"") -> 68 | C72: ='Startovní listina'!G72 ->  | D72: ='Startovní listina'!B72 ->  | E72: ='Startovní listina'!C72 ->  | F72: ='Startovní listina'!D72 ->  | G72: ='Startovní listina'!E72 ->  | H72: ='Startovní listina'!F72 -> 
A73: =IF('Výsledková listina'!D72<>"",A72+1,"") ->  | C73: ='Startovní listina'!G73 ->  | D73: ='Startovní listina'!B73 ->  | E73: ='Startovní listina'!C73 ->  | F73: ='Startovní listina'!D73 ->  | G73: ='Startovní listina'!E73 ->  | H73: ='Startovní listina'!F73 -> 
A74: =IF('Výsledková listina'!D73<>"",A73+1,"") ->  | C74: ='Startovní listina'!G74 ->  | D74: ='Startovní listina'!B74 ->  | E74: ='Startovní listina'!C74 ->  | F74: ='Startovní listina'!D74 ->  | G74: ='Startovní listina'!E74 ->  | H74: ='Startovní listina'!F74 -> 
A75: =IF('Výsledková listina'!D74<>"",A74+1,"") ->  | C75: ='Startovní listina'!G75 ->  | D75: ='Startovní listina'!B75 ->  | E75: ='Startovní listina'!C75 ->  | F75: ='Startovní listina'!D75 ->  | G75: ='Startovní listina'!E75 ->  | H75: ='Startovní listina'!F75 -> 
A76: =IF('Výsledková listina'!D75<>"",A75+1,"") ->  | C76: ='Startovní listina'!G76 ->  | D76: ='Startovní listina'!B76 ->  | E76: ='Startovní listina'!C76 ->  | F76: ='Startovní listina'!D76 ->  | G76: ='Startovní listina'!E76 ->  | H76: ='Startovní listina'!F76 -> 
A77: =IF('Výsledková listina'!D76<>"",A76+1,"") ->  | C77: ='Startovní listina'!G77 ->  | D77: ='Startovní listina'!B77 ->  | E77: ='Startovní listina'!C77 ->  | F77: ='Startovní listina'!D77 ->  | G77: ='Startovní listina'!E77 ->  | H77: ='Startovní listina'!F77 -> 
A78: =IF('Výsledková listina'!D77<>"",A77+1,"") ->  | C78: ='Startovní listina'!G78 ->  | D78: ='Startovní listina'!B78 ->  | E78: ='Startovní listina'!C78 ->  | F78: ='Startovní listina'!D78 ->  | G78: ='Startovní listina'!E78 ->  | H78: ='Startovní listina'!F78 -> 
A79: =IF('Výsledková listina'!D78<>"",A78+1,"") ->  | C79: ='Startovní listina'!G79 ->  | D79: ='Startovní listina'!B79 ->  | E79: ='Startovní listina'!C79 ->  | F79: ='Startovní listina'!D79 ->  | G79: ='Startovní listina'!E79 ->  | H79: ='Startovní listina'!F79 -> 
A80: =IF('Výsledková listina'!D79<>"",A79+1,"") ->  | C80: ='Startovní listina'!G80 ->  | D80: ='Startovní listina'!B80 ->  | E80: ='Startovní listina'!C80 ->  | F80: ='Startovní listina'!D80 ->  | G80: ='Startovní listina'!E80 ->  | H80: ='Startovní listina'!F80 -> 
A81: =IF('Výsledková listina'!D80<>"",A80+1,"") ->  | C81: ='Startovní listina'!G81 ->  | D81: ='Startovní listina'!B81 ->  | E81: ='Startovní listina'!C81 ->  | F81: ='Startovní listina'!D81 ->  | G81: ='Startovní listina'!E81 ->  | H81: ='Startovní listina'!F81 -> 
A82: =IF('Výsledková listina'!D81<>"",A81+1,"") ->  | C82: ='Startovní listina'!G82 ->  | D82: ='Startovní listina'!B82 ->  | E82: ='Startovní listina'!C82 ->  | F82: ='Startovní listina'!D82 ->  | G82: ='Startovní listina'!E82 ->  | H82: ='Startovní listina'!F82 -> 
A83: =IF('Výsledková listina'!D82<>"",A82+1,"") ->  | C83: ='Startovní listina'!G83 ->  | D83: ='Startovní listina'!B83 ->  | E83: ='Startovní listina'!C83 ->  | F83: ='Startovní listina'!D83 ->  | G83: ='Startovní listina'!E83 ->  | H83: ='Startovní listina'!F83 -> 
A84: =IF('Výsledková listina'!D83<>"",A83+1,"") ->  | C84: ='Startovní listina'!G84 ->  | D84: ='Startovní listina'!B84 ->  | E84: ='Startovní listina'!C84 ->  | F84: ='Startovní listina'!D84 ->  | G84: ='Startovní listina'!E84 ->  | H84: ='Startovní listina'!F84 -> 
A85: =IF('Výsledková listina'!D84<>"",A84+1,"") ->  | C85: ='Startovní listina'!G85 ->  | D85: ='Startovní listina'!B85 ->  | E85: ='Startovní listina'!C85 ->  | F85: ='Startovní listina'!D85 ->  | G85: ='Startovní listina'!E85 ->  | H85: ='Startovní listina'!F85 -> 
A86: =IF('Výsledková listina'!D85<>"",A85+1,"") ->  | C86: ='Startovní listina'!G86 ->  | D86: ='Startovní listina'!B86 ->  | E86: ='Startovní listina'!C86 ->  | F86: ='Startovní listina'!D86 ->  | G86: ='Startovní listina'!E86 ->  | H86: ='Startovní listina'!F86 -> 
A87: =IF('Výsledková listina'!D86<>"",A86+1,"") ->  | C87: ='Startovní listina'!G87 ->  | D87: ='Startovní listina'!B87 ->  | E87: ='Startovní listina'!C87 ->  | F87: ='Startovní listina'!D87 ->  | G87: ='Startovní listina'!E87 ->  | H87: ='Startovní listina'!F87 -> 
A88: =IF('Výsledková listina'!D87<>"",A87+1,"") ->  | C88: ='Startovní listina'!G88 ->  | D88: ='Startovní listina'!B88 ->  | E88: ='Startovní listina'!C88 ->  | F88: ='Startovní listina'!D88 ->  | G88: ='Startovní listina'!E88 ->  | H88: ='Startovní listina'!F88 -> 
A89: =IF('Výsledková listina'!D88<>"",A88+1,"") ->  | C89: ='Startovní listina'!G89 ->  | D89: ='Startovní listina'!B89 ->  | E89: ='Startovní listina'!C89 ->  | F89: ='Startovní listina'!D89 ->  | G89: ='Startovní listina'!E89 ->  | H89: ='Startovní listina'!F89 -> 
A90: =IF('Výsledková listina'!D89<>"",A89+1,"") ->  | C90: ='Startovní listina'!G90 ->  | D90: ='Startovní listina'!B90 ->  | E90: ='Startovní listina'!C90 ->  | F90: ='Startovní listina'!D90 ->  | G90: ='Startovní listina'!E90 ->  | H90: ='Startovní listina'!F90 -> 
A91: =IF('Výsledková listina'!D90<>"",A90+1,"") ->  | C91: ='Startovní listina'!G91 ->  | D91: ='Startovní listina'!B91 ->  | E91: ='Startovní listina'!C91 ->  | F91: ='Startovní listina'!D91 ->  | G91: ='Startovní listina'!E91 ->  | H91: ='Startovní listina'!F91 -> 
A92: =IF('Výsledková listina'!D91<>"",A91+1,"") ->  | C92: ='Startovní listina'!G92 ->  | D92: ='Startovní listina'!B92 ->  | E92: ='Startovní listina'!C92 ->  | F92: ='Startovní listina'!D92 ->  | G92: ='Startovní listina'!E92 ->  | H92: ='Startovní listina'!F92 -> 
A93: =IF('Výsledková listina'!D92<>"",A92+1,"") ->  | C93: ='Startovní listina'!G93 ->  | D93: ='Startovní listina'!B93 ->  | E93: ='Startovní listina'!C93 ->  | F93: ='Startovní listina'!D93 ->  | G93: ='Startovní listina'!E93 ->  | H93: ='Startovní listina'!F93 -> 
A94: =IF('Výsledková listina'!D93<>"",A93+1,"") ->  | C94: ='Startovní listina'!G94 ->  | D94: ='Startovní listina'!B94 ->  | E94: ='Startovní listina'!C94 ->  | F94: ='Startovní listina'!D94 ->  | G94: ='Startovní listina'!E94 ->  | H94: ='Startovní listina'!F94 -> 
A95: =IF('Výsledková listina'!D94<>"",A94+1,"") ->  | C95: ='Startovní listina'!G95 ->  | D95: ='Startovní listina'!B95 ->  | E95: ='Startovní listina'!C95 ->  | F95: ='Startovní listina'!D95 ->  | G95: ='Startovní listina'!E95 ->  | H95: ='Startovní listina'!F95 -> 
A96: =IF('Výsledková listina'!D95<>"",A95+1,"") ->  | C96: ='Startovní listina'!G96 ->  | D96: ='Startovní listina'!B96 ->  | E96: ='Startovní listina'!C96 ->  | F96: ='Startovní listina'!D96 ->  | G96: ='Startovní listina'!E96 ->  | H96: ='Startovní listina'!F96 -> 
A97: =IF('Výsledková listina'!D96<>"",A96+1,"") ->  | C97: ='Startovní listina'!G97 ->  | D97: ='Startovní listina'!B97 ->  | E97: ='Startovní listina'!C97 ->  | F97: ='Startovní listina'!D97 ->  | G97: ='Startovní listina'!E97 ->  | H97: ='Startovní listina'!F97 -> 
A98: =IF('Výsledková listina'!D97<>"",A97+1,"") ->  | C98: ='Startovní listina'!G98 ->  | D98: ='Startovní listina'!B98 ->  | E98: ='Startovní listina'!C98 ->  | F98: ='Startovní listina'!D98 ->  | G98: ='Startovní listina'!E98 ->  | H98: ='Startovní listina'!F98 -> 
A99: =IF('Výsledková listina'!D98<>"",A98+1,"") ->  | C99: ='Startovní listina'!G99 ->  | D99: ='Startovní listina'!B99 ->  | E99: ='Startovní listina'!C99 ->  | F99: ='Startovní listina'!D99 ->  | G99: ='Startovní listina'!E99 ->  | H99: ='Startovní listina'!F99 -> 
A100: =IF('Výsledková listina'!D99<>"",A99+1,"") ->  | C100: ='Startovní listina'!G100 ->  | D100: ='Startovní listina'!B100 ->  | E100: ='Startovní listina'!C100 ->  | F100: ='Startovní listina'!D100 ->  | G100: ='Startovní listina'!E100 ->  | H100: ='Startovní listina'!F100 -> 
A101: =IF('Výsledková listina'!D100<>"",A100+1,"") ->  | C101: ='Startovní listina'!G101 ->  | D101: ='Startovní listina'!B101 ->  | E101: ='Startovní listina'!C101 ->  | F101: ='Startovní listina'!D101 ->  | G101: ='Startovní listina'!E101 ->  | H101: ='Startovní listina'!F101 -> 
A102: =IF('Výsledková listina'!D101<>"",A101+1,"") ->  | C102: ='Startovní listina'!G102 ->  | D102: ='Startovní listina'!B102 ->  | E102: ='Startovní listina'!C102 ->  | F102: ='Startovní listina'!D102 ->  | G102: ='Startovní listina'!E102 ->  | H102: ='Startovní listina'!F102 -> 
A103: =IF('Výsledková listina'!D102<>"",A102+1,"") ->  | C103: ='Startovní listina'!G103 ->  | D103: ='Startovní listina'!B103 ->  | E103: ='Startovní listina'!C103 ->  | F103: ='Startovní listina'!D103 ->  | G103: ='Startovní listina'!E103 ->  | H103: ='Startovní listina'!F103 -> 
A104: =IF('Výsledková listina'!D103<>"",A103+1,"") ->  | C104: ='Startovní listina'!G104 ->  | D104: ='Startovní listina'!B104 ->  | E104: ='Startovní listina'!C104 ->  | F104: ='Startovní listina'!D104 ->  | G104: ='Startovní listina'!E104 ->  | H104: ='Startovní listina'!F104 -> 

Sheet Výsledková listinadle kategorií
A1: ="Výsledková listina - Malý svratecký maraton "&'Prezenční listina'!O2 -> Výsledková listina - Malý svratecký maraton 2018
A2: 2018-08-25 | K2: Poté, co jsou dopsány časy VŠECH běžců, stisknout tlačítko 1.řazení Ve sloupci B (Pořadí v kategorii) vytvořit posloupnou číselnou řadu pro každou kategorii a poté stisknout tlačítko 2.řazení !!! POZOR!!! Použití tlačítek je nevratný krok!
A3: ='Prezenční listina'!O2-1953&". ročník" -> 65. ročník
A4: Celkové pořadí | B4: Pořadí v kategorii | C4: Kategorie | D4: Startovní číslo | E4: Příjmení | F4: Jméno | G4: Narození | H4: Oddíl / Bydliště | I4: Čas
A5: 1 | B5: 1 | C5: ='Startovní listina'!G49 -> A | D5: ='Startovní listina'!B49 -> 45 | E5: ='Startovní listina'!C49 -> Kohut | F5: ='Startovní listina'!D49 -> Jan | G5: ='Startovní listina'!E49 -> 1985 | H5: ='Startovní listina'!F49 -> Univerzita Brno | I5: 02:02:02
A6: =IF('Výsledková listinadle kategorií'!D5<>"",A5+1,"") -> 2 | B6: 2 | C6: ='Startovní listina'!G66 -> A | D6: ='Startovní listina'!B66 -> 62 | E6: ='Startovní listina'!C66 -> Exner | F6: ='Startovní listina'!D66 -> Jakub | G6: ='Startovní listina'!E66 -> 1983 | H6: ='Startovní listina'!F66 -> P-Team | I6: 02:02:03
A7: =IF('Výsledková listinadle kategorií'!D7<>"",A6+1,"") -> 3 | B7: 3 | C7: ='Startovní listina'!G40 -> A | D7: ='Startovní listina'!B40 -> 36 | E7: ='Startovní listina'!C40 -> Nováček | F7: ='Startovní listina'!D40 -> Tomáš | G7: ='Startovní listina'!E40 -> 1983 | H7: ='Startovní listina'!F40 -> SDH Kamenná | I7: 02:06:25
A8: =IF('Výsledková listinadle kategorií'!D10<>"",A7+1,"") -> 4 | B8: 4 | C8: ='Startovní listina'!G71 -> A | D8: ='Startovní listina'!B71 -> 67 | E8: ='Startovní listina'!C71 -> Příhoda | F8: ='Startovní listina'!D71 -> Jan | G8: ='Startovní listina'!E71 -> 1983 | H8: ='Startovní listina'!F71 -> Ždánice | I8: 02:13:17
A9: =IF('Výsledková listinadle kategorií'!D13<>"",A8+1,"") -> 5 | B9: 5 | C9: ='Startovní listina'!G53 -> A | D9: ='Startovní listina'!B53 -> 49 | E9: ='Startovní listina'!C53 -> Glier | F9: ='Startovní listina'!D53 -> Michal | G9: ='Startovní listina'!E53 -> 1982 | H9: ='Startovní listina'!F53 -> SDH Doubravník | I9: 02:15:18
A10: =IF('Výsledková listinadle kategorií'!D23<>"",A9+1,"") -> 6 | B10: 6 | C10: ='Startovní listina'!G8 -> A | D10: ='Startovní listina'!B8 -> 4 | E10: ='Startovní listina'!C8 -> Kalich | F10: ='Startovní listina'!D8 -> Radim | G10: ='Startovní listina'!E8 -> 1985 | H10: ='Startovní listina'!F8 -> Odranec | I10: 02:29:01
A11: =IF('Výsledková listinadle kategorií'!D28<>"",A10+1,"") -> 7 | B11: 7 | C11: ='Startovní listina'!G58 -> A | D11: ='Startovní listina'!B58 -> 54 | E11: ='Startovní listina'!C58 -> Pavlásek | F11: ='Startovní listina'!D58 -> Michal | G11: ='Startovní listina'!E58 -> 1983 | H11: ='Startovní listina'!F58 -> Brno | I11: 02:35:40
A12: =IF('Výsledková listinadle kategorií'!D29<>"",A11+1,"") -> 8 | B12: 8 | C12: ='Startovní listina'!G42 -> A | D12: ='Startovní listina'!B42 -> 38 | E12: ='Startovní listina'!C42 -> Košek | F12: ='Startovní listina'!D42 -> Martin | G12: ='Startovní listina'!E42 -> 1984 | H12: ='Startovní listina'!F42 -> Brno | I12: 02:35:59
A13: =IF('Výsledková listinadle kategorií'!D31<>"",A12+1,"") -> 9 | B13: 9 | C13: ='Startovní listina'!G36 -> A | D13: ='Startovní listina'!B36 -> 32 | E13: ='Startovní listina'!C36 -> Sinkule | F13: ='Startovní listina'!D36 -> Pavel | G13: ='Startovní listina'!E36 -> 1981 | H13: ='Startovní listina'!F36 -> SRTG Brno | I13: 02:38:01
A14: =IF('Výsledková listinadle kategorií'!D33<>"",A13+1,"") -> 10 | B14: 10 | C14: ='Startovní listina'!G37 -> A | D14: ='Startovní listina'!B37 -> 33 | E14: ='Startovní listina'!C37 -> Komárek | F14: ='Startovní listina'!D37 -> Michal | G14: ='Startovní listina'!E37 -> 1981 | H14: ='Startovní listina'!F37 -> Bystřice nad Pernštejnem | I14: 02:39:54
A15: =IF('Výsledková listinadle kategorií'!D38<>"",A14+1,"") -> 11 | B15: 11 | C15: ='Startovní listina'!G11 -> A | D15: ='Startovní listina'!B11 -> 7 | E15: ='Startovní listina'!C11 -> Podsedník | F15: ='Startovní listina'!D11 -> Marek | G15: ='Startovní listina'!E11 -> 1985 | H15: ='Startovní listina'!F11 -> Brno | I15: 02:45:57
A16: =IF('Výsledková listinadle kategorií'!D41<>"",A15+1,"") -> 12 | B16: 12 | C16: ='Startovní listina'!G27 -> A | D16: ='Startovní listina'!B27 -> 23 | E16: ='Startovní listina'!C27 -> Koutský | F16: ='Startovní listina'!D27 -> Tomáš | G16: ='Startovní listina'!E27 -> 1987 | H16: ='Startovní listina'!F27 -> Ledová stěna Vír | I16: 02:48:37
A17: =IF('Výsledková listinadle kategorií'!D42<>"",A16+1,"") -> 13 | B17: 13 | C17: ='Startovní listina'!G62 -> A | D17: ='Startovní listina'!B62 -> 58 | E17: ='Startovní listina'!C62 -> Paleček | F17: ='Startovní listina'!D62 -> Miloš | G17: ='Startovní listina'!E62 -> 1985 | H17: ='Startovní listina'!F62 -> BIKEŘI ROVE | I17: 02:49:08
A18: =IF('Výsledková listinadle kategorií'!D43<>"",A17+1,"") -> 14 | B18: 14 | C18: ='Startovní listina'!G23 -> A | D18: ='Startovní listina'!B23 -> 19 | E18: ='Startovní listina'!C23 -> Pivec | F18: ='Startovní listina'!D23 -> Jan | G18: ='Startovní listina'!E23 -> 1981 | H18: ='Startovní listina'!F23 -> HAL3000 | I18: 02:49:24
A19: =IF('Výsledková listinadle kategorií'!D47<>"",A18+1,"") -> 15 | B19: 15 | C19: ='Startovní listina'!G28 -> A | D19: ='Startovní listina'!B28 -> 24 | E19: ='Startovní listina'!C28 -> Skula | F19: ='Startovní listina'!D28 -> Miroslav | G19: ='Startovní listina'!E28 -> 1988 | H19: ='Startovní listina'!F28 -> SRTG Žďár nad Sázavou | I19: 02:52:41
A20: =IF('Výsledková listinadle kategorií'!D51<>"",A19+1,"") -> 16 | B20: 16 | C20: ='Startovní listina'!G6 -> A | D20: ='Startovní listina'!B6 -> 2 | E20: ='Startovní listina'!C6 -> Ptáček | F20: ='Startovní listina'!D6 -> Michal | G20: ='Startovní listina'!E6 -> 1986 | H20: ='Startovní listina'!F6 -> Hrdá Ves | I20: 03:03:27
A21: =IF('Výsledková listinadle kategorií'!D52<>"",A20+1,"") -> 17 | B21: 17 | C21: ='Startovní listina'!G24 -> A | D21: ='Startovní listina'!B24 -> 20 | E21: ='Startovní listina'!C24 -> Forýtek | F21: ='Startovní listina'!D24 -> Michal | G21: ='Startovní listina'!E24 -> 1982 | H21: ='Startovní listina'!F24 -> HAL3000 | I21: 03:05:03
A22: =IF('Výsledková listinadle kategorií'!D67<>"",A21+1,"") -> 18 | B22: 18 | C22: ='Startovní listina'!G20 -> A | D22: ='Startovní listina'!B20 -> 16 | E22: ='Startovní listina'!C20 -> Král | F22: ='Startovní listina'!D20 -> Jan | G22: ='Startovní listina'!E20 -> 1981 | H22: ='Startovní listina'!F20 -> Brno | I22: 03:44:50
A23: 67 | C23: ='Startovní listina'!G18 -> A | D23: ='Startovní listina'!B18 -> 14 | E23: ='Startovní listina'!C18 -> Juránek | F23: ='Startovní listina'!D18 -> Jakub | G23: ='Startovní listina'!E18 -> 1995 | H23: ='Startovní listina'!F18 -> S.U.P.I. Martinice | I23: DNF
A24: =IF('Výsledková listinadle kategorií'!D6<>"",A23+1,"") -> 68 | B24: 1 | C24: ='Startovní listina'!G67 -> B | D24: ='Startovní listina'!B67 -> 63 | E24: ='Startovní listina'!C67 -> Orálek | F24: ='Startovní listina'!D67 -> Daniel | G24: ='Startovní listina'!E67 -> 1970 | H24: ='Startovní listina'!F67 -> behejbrno.com | I24: 02:04:27
A25: =IF('Výsledková listinadle kategorií'!D8<>"",A24+1,"") -> 69 | B25: 2 | C25: ='Startovní listina'!G47 -> B | D25: ='Startovní listina'!B47 -> 43 | E25: ='Startovní listina'!C47 -> Kocur | F25: ='Startovní listina'!D47 -> Lukáš | G25: ='Startovní listina'!E47 -> 1977 | H25: ='Startovní listina'!F47 -> Orel Šitbořice | I25: 02:10:30
A26: =IF('Výsledková listinadle kategorií'!D9<>"",A25+1,"") -> 70 | B26: 3 | C26: ='Startovní listina'!G34 -> B | D26: ='Startovní listina'!B34 -> 30 | E26: ='Startovní listina'!C34 -> Vintrlík | F26: ='Startovní listina'!D34 -> Martin | G26: ='Startovní listina'!E34 -> 1977 | H26: ='Startovní listina'!F34 -> Triatlon křepice | I26: 02:12:21
A27: =IF('Výsledková listinadle kategorií'!D12<>"",A26+1,"") -> 71 | B27: 4 | C27: ='Startovní listina'!G63 -> B | D27: ='Startovní listina'!B63 -> 59 | E27: ='Startovní listina'!C63 -> Pokorný | F27: ='Startovní listina'!D63 -> Václav | G27: ='Startovní listina'!E63 -> 1978 | H27: ='Startovní listina'!F63 -> Brno | I27: 02:14:28
A28: =IF('Výsledková listinadle kategorií'!D15<>"",A27+1,"") -> 72 | B28: 5 | C28: ='Startovní listina'!G29 -> B | D28: ='Startovní listina'!B29 -> 25 | E28: ='Startovní listina'!C29 -> Klíma | F28: ='Startovní listina'!D29 -> Miroslav | G28: ='Startovní listina'!E29 -> 1975 | H28: ='Startovní listina'!F29 -> Emanovy červené trenýrky Brno | I28: 02:19:10
A29: =IF('Výsledková listinadle kategorií'!D17<>"",A28+1,"") -> 73 | B29: 6 | C29: ='Startovní listina'!G10 -> B | D29: ='Startovní listina'!B10 -> 6 | E29: ='Startovní listina'!C10 -> Šerák | F29: ='Startovní listina'!D10 -> Martin | G29: ='Startovní listina'!E10 -> 1978 | H29: ='Startovní listina'!F10 -> Liga 100 Olomouc | I29: 02:19:41
A30: =IF('Výsledková listinadle kategorií'!D18<>"",A29+1,"") -> 74 | B30: 7 | C30: ='Startovní listina'!G69 -> B | D30: ='Startovní listina'!B69 -> 65 | E30: ='Startovní listina'!C69 -> Konečný | F30: ='Startovní listina'!D69 -> Libor | G30: ='Startovní listina'!E69 -> 1971 | H30: ='Startovní listina'!F69 -> Kuřim | I30: 02:20:00
A31: =IF('Výsledková listinadle kategorií'!D20<>"",A30+1,"") -> 75 | B31: 8 | C31: ='Startovní listina'!G44 -> B | D31: ='Startovní listina'!B44 -> 40 | E31: ='Startovní listina'!C44 -> Viščor | F31: ='Startovní listina'!D44 -> Pavel | G31: ='Startovní listina'!E44 -> 1974 | H31: ='Startovní listina'!F44 -> Brno | I31: 02:20:38
A32: =IF('Výsledková listinadle kategorií'!D21<>"",A31+1,"") -> 76 | B32: 9 | C32: ='Startovní listina'!G14 -> B | D32: ='Startovní listina'!B14 -> 10 | E32: ='Startovní listina'!C14 -> Kopečný | F32: ='Startovní listina'!D14 -> Dušan | G32: ='Startovní listina'!E14 -> 1973 | H32: ='Startovní listina'!F14 -> Liga 100 Olomouc | I32: 02:21:19
A33: =IF('Výsledková listinadle kategorií'!D25<>"",A32+1,"") -> 77 | B33: 10 | C33: ='Startovní listina'!G68 -> B | D33: ='Startovní listina'!B68 -> 64 | E33: ='Startovní listina'!C68 -> Kratochvíl | F33: ='Startovní listina'!D68 -> Jaroslav | G33: ='Startovní listina'!E68 -> 1977 | H33: ='Startovní listina'!F68 -> SDH Hluboké | I33: 02:32:26
A34: =IF('Výsledková listinadle kategorií'!D26<>"",A33+1,"") -> 78 | B34: 11 | C34: ='Startovní listina'!G43 -> B | D34: ='Startovní listina'!B43 -> 39 | E34: ='Startovní listina'!C43 -> Řezníček | F34: ='Startovní listina'!D43 -> Petr | G34: ='Startovní listina'!E43 -> 1973 | H34: ='Startovní listina'!F43 -> Polnička | I34: 02:33:52
A35: =IF('Výsledková listinadle kategorií'!D32<>"",A34+1,"") -> 79 | B35: 12 | C35: ='Startovní listina'!G31 -> B | D35: ='Startovní listina'!B31 -> 27 | E35: ='Startovní listina'!C31 -> Fanfrdla | F35: ='Startovní listina'!D31 -> Dalimil | G35: ='Startovní listina'!E31 -> 1973 | H35: ='Startovní listina'!F31 -> Matyteam Brno | I35: 02:38:52
A36: =IF('Výsledková listinadle kategorií'!D40<>"",A35+1,"") -> 80 | B36: 13 | C36: ='Startovní listina'!G56 -> B | D36: ='Startovní listina'!B56 -> 52 | E36: ='Startovní listina'!C56 -> Lorenčík | F36: ='Startovní listina'!D56 -> Aleš | G36: ='Startovní listina'!E56 -> 1973 | H36: ='Startovní listina'!F56 -> Chrudim | I36: 02:47:42
A37: =IF('Výsledková listinadle kategorií'!D44<>"",A36+1,"") -> 81 | B37: 14 | C37: ='Startovní listina'!G45 -> B | D37: ='Startovní listina'!B45 -> 41 | E37: ='Startovní listina'!C45 -> Žličař | F37: ='Startovní listina'!D45 -> Karel | G37: ='Startovní listina'!E45 -> 1977 | H37: ='Startovní listina'!F45 -> Železárny Štěpánov | I37: 02:50:47
A38: =IF('Výsledková listinadle kategorií'!D49<>"",A37+1,"") -> 82 | B38: 15 | C38: ='Startovní listina'!G51 -> B | D38: ='Startovní listina'!B51 -> 47 | E38: ='Startovní listina'!C51 -> Fric | F38: ='Startovní listina'!D51 -> Petr | G38: ='Startovní listina'!E51 -> 1970 | H38: ='Startovní listina'!F51 -> Bystré | I38: 03:00:44
A39: =IF('Výsledková listinadle kategorií'!D54<>"",A38+1,"") -> 83 | B39: 16 | C39: ='Startovní listina'!G60 -> B | D39: ='Startovní listina'!B60 -> 56 | E39: ='Startovní listina'!C60 -> Benc | F39: ='Startovní listina'!D60 -> Karel | G39: ='Startovní listina'!E60 -> 1975 | H39: ='Startovní listina'!F60 -> Pivonice | I39: 03:07:47
A40: =IF('Výsledková listinadle kategorií'!D55<>"",A39+1,"") -> 84 | B40: 17 | C40: ='Startovní listina'!G33 -> B | D40: ='Startovní listina'!B33 -> 29 | E40: ='Startovní listina'!C33 -> Dvořák | F40: ='Startovní listina'!D33 -> Vojtěch | G40: ='Startovní listina'!E33 -> 1975 | H40: ='Startovní listina'!F33 -> Brno | I40: 03:08:01
A41: =IF('Výsledková listinadle kategorií'!D57<>"",A40+1,"") -> 85 | B41: 18 | C41: ='Startovní listina'!G64 -> B | D41: ='Startovní listina'!B64 -> 60 | E41: ='Startovní listina'!C64 -> Tyleček | F41: ='Startovní listina'!D64 -> Pavel | G41: ='Startovní listina'!E64 -> 1973 | H41: ='Startovní listina'!F64 -> Jundrováci | I41: 03:14:16
A42: =IF('Výsledková listinadle kategorií'!D62<>"",A41+1,"") -> 86 | B42: 19 | C42: ='Startovní listina'!G26 -> B | D42: ='Startovní listina'!B26 -> 22 | E42: ='Startovní listina'!C26 -> Faja | F42: ='Startovní listina'!D26 -> Ondřej | G42: ='Startovní listina'!E26 -> 1976 | H42: ='Startovní listina'!F26 -> Brno | I42: 03:25:14
A43: =IF('Výsledková listinadle kategorií'!D11<>"",A42+1,"") -> 87 | B43: 1 | C43: ='Startovní listina'!G50 -> C | D43: ='Startovní listina'!B50 -> 46 | E43: ='Startovní listina'!C50 -> Dvořáček | F43: ='Startovní listina'!D50 -> Jiří | G43: ='Startovní listina'!E50 -> 1968 | H43: ='Startovní listina'!F50 -> Univerzita Brno | I43: 02:13:30
A44: =IF('Výsledková listinadle kategorií'!D14<>"",A43+1,"") -> 88 | B44: 2 | C44: ='Startovní listina'!G41 -> C | D44: ='Startovní listina'!B41 -> 37 | E44: ='Startovní listina'!C41 -> Svoboda | F44: ='Startovní listina'!D41 -> Petr | G44: ='Startovní listina'!E41 -> 1968 | H44: ='Startovní listina'!F41 -> AC Moravská Slavia Brno | I44: 02:18:52
A45: =IF('Výsledková listinadle kategorií'!D19<>"",A44+1,"") -> 89 | B45: 3 | C45: ='Startovní listina'!G39 -> C | D45: ='Startovní listina'!B39 -> 35 | E45: ='Startovní listina'!C39 -> Hýbl | F45: ='Startovní listina'!D39 -> Jiří | G45: ='Startovní listina'!E39 -> 1967 | H45: ='Startovní listina'!F39 -> Hrušovany u Brna | I45: 02:20:26
A46: =IF('Výsledková listinadle kategorií'!D22<>"",A45+1,"") -> 90 | B46: 4 | C46: ='Startovní listina'!G38 -> C | D46: ='Startovní listina'!B38 -> 34 | E46: ='Startovní listina'!C38 -> Šimunek | F46: ='Startovní listina'!D38 -> Martin | G46: ='Startovní listina'!E38 -> 1966 | H46: ='Startovní listina'!F38 -> Botanka Running Modřice | I46: 02:21:57
A47: =IF('Výsledková listinadle kategorií'!D50<>"",A46+1,"") -> 91 | B47: 5 | C47: ='Startovní listina'!G61 -> C | D47: ='Startovní listina'!B61 -> 57 | E47: ='Startovní listina'!C61 -> Kříž | F47: ='Startovní listina'!D61 -> Miloslav | G47: ='Startovní listina'!E61 -> 1961 | H47: ='Startovní listina'!F61 -> Aspire Dobrochov | I47: 03:01:52
A48: =IF('Výsledková listinadle kategorií'!D56<>"",A47+1,"") -> 92 | B48: 6 | C48: ='Startovní listina'!G21 -> C | D48: ='Startovní listina'!B21 -> 17 | E48: ='Startovní listina'!C21 -> Bečička | F48: ='Startovní listina'!D21 -> Petr | G48: ='Startovní listina'!E21 -> 1960 | H48: ='Startovní listina'!F21 -> HAL3000 | I48: 03:10:49
A49: =IF('Výsledková listinadle kategorií'!D59<>"",A48+1,"") -> 93 | B49: 7 | C49: ='Startovní listina'!G17 -> C | D49: ='Startovní listina'!B17 -> 13 | E49: ='Startovní listina'!C17 -> Kresta | F49: ='Startovní listina'!D17 -> Roman | G49: ='Startovní listina'!E17 -> 1965 | H49: ='Startovní listina'!F17 -> Orel Židenice | I49: 03:20:53
A50: =IF('Výsledková listinadle kategorií'!D66<>"",A49+1,"") -> 94 | B50: 8 | C50: ='Startovní listina'!G70 -> C | D50: ='Startovní listina'!B70 -> 66 | E50: ='Startovní listina'!C70 -> Zourek | F50: ='Startovní listina'!D70 -> Karel | G50: ='Startovní listina'!E70 -> 1959 | H50: ='Startovní listina'!F70 -> Bedřichovice | I50: 03:38:04
A51: =IF('Výsledková listinadle kategorií'!D30<>"",A50+1,"") -> 95 | B51: 1 | C51: ='Startovní listina'!G19 -> D | D51: ='Startovní listina'!B19 -> 15 | E51: ='Startovní listina'!C19 -> Bělehrádek | F51: ='Startovní listina'!D19 -> Pavel | G51: ='Startovní listina'!E19 -> 1958 | H51: ='Startovní listina'!F19 -> TJ ČOLEK | I51: 02:37:32
A52: =IF('Výsledková listinadle kategorií'!D37<>"",A51+1,"") -> 96 | B52: 2 | C52: ='Startovní listina'!G54 -> D | D52: ='Startovní listina'!B54 -> 50 | E52: ='Startovní listina'!C54 -> Král | F52: ='Startovní listina'!D54 -> Josef | G52: ='Startovní listina'!E54 -> 1958 | H52: ='Startovní listina'!F54 -> SDH Bystré | I52: 02:45:17
A53: =IF('Výsledková listinadle kategorií'!D53<>"",A52+1,"") -> 97 | B53: 3 | C53: ='Startovní listina'!G46 -> D | D53: ='Startovní listina'!B46 -> 42 | E53: ='Startovní listina'!C46 -> Mareš | F53: ='Startovní listina'!D46 -> Bohumil | G53: ='Startovní listina'!E46 -> 1951 | H53: ='Startovní listina'!F46 -> Posilovna Průvan Brno | I53: 03:06:55
A54: =IF('Výsledková listinadle kategorií'!D60<>"",A53+1,"") -> 98 | B54: 4 | C54: ='Startovní listina'!G16 -> D | D54: ='Startovní listina'!B16 -> 12 | E54: ='Startovní listina'!C16 -> Zejda | F54: ='Startovní listina'!D16 -> Ivo | G54: ='Startovní listina'!E16 -> 1958 | H54: ='Startovní listina'!F16 -> AC Moravská Slavia Brno | I54: 03:21:18
A55: =IF('Výsledková listinadle kategorií'!D69<>"",A54+1,"") -> 99 | B55: 1 | C55: ='Startovní listina'!G15 -> E | D55: ='Startovní listina'!B15 -> 11 | E55: ='Startovní listina'!C15 -> Holý | F55: ='Startovní listina'!D15 -> Josef | G55: ='Startovní listina'!E15 -> 1941 | H55: ='Startovní listina'!F15 -> AC Moravská Slavia Brno | I55: 04:22:58
A56: =IF('Výsledková listinadle kategorií'!D16<>"",A55+1,"") -> 100 | B56: 1 | C56: ='Startovní listina'!G35 -> F | D56: ='Startovní listina'!B35 -> 31 | E56: ='Startovní listina'!C35 -> Pešáková | F56: ='Startovní listina'!D35 -> Mirka | G56: ='Startovní listina'!E35 -> 1985 | H56: ='Startovní listina'!F35 -> AC RACERS, Tetčice | I56: 02:19:28
A57: =IF('Výsledková listinadle kategorií'!D24<>"",A56+1,"") -> 101 | B57: 2 | C57: ='Startovní listina'!G30 -> F | D57: ='Startovní listina'!B30 -> 26 | E57: ='Startovní listina'!C30 -> Bartoňková | F57: ='Startovní listina'!D30 -> Nina | G57: ='Startovní listina'!E30 -> 1990 | H57: ='Startovní listina'!F30 -> AK Drnovice | I57: 02:31:47
A58: =IF('Výsledková listinadle kategorií'!D27<>"",A57+1,"") -> 102 | B58: 3 | C58: ='Startovní listina'!G48 -> F | D58: ='Startovní listina'!B48 -> 44 | E58: ='Startovní listina'!C48 -> Johaníková | F58: ='Startovní listina'!D48 -> Lucie | G58: ='Startovní listina'!E48 -> 1986 | H58: ='Startovní listina'!F48 -> AC Moravská Slavia Brno | I58: 02:34:08
A59: =IF('Výsledková listinadle kategorií'!D39<>"",A58+1,"") -> 103 | B59: 4 | C59: ='Startovní listina'!G25 -> F | D59: ='Startovní listina'!B25 -> 21 | E59: ='Startovní listina'!C25 -> Trefilová | F59: ='Startovní listina'!D25 -> Ester | G59: ='Startovní listina'!E25 -> 1993 | H59: ='Startovní listina'!F25 -> Vír | I59: 02:46:41
A60: =IF('Výsledková listinadle kategorií'!D45<>"",A59+1,"") -> 104 | B60: 5 | C60: ='Startovní listina'!G55 -> F | D60: ='Startovní listina'!B55 -> 51 | E60: ='Startovní listina'!C55 -> Vondrová | F60: ='Startovní listina'!D55 -> Ludmila | G60: ='Startovní listina'!E55 -> 1986 | H60: ='Startovní listina'!F55 -> Dalečín | I60: 02:52:05
A61: =IF('Výsledková listinadle kategorií'!D48<>"",A60+1,"") -> 105 | B61: 6 | C61: ='Startovní listina'!G52 -> F | D61: ='Startovní listina'!B52 -> 48 | E61: ='Startovní listina'!C52 -> Glierová | F61: ='Startovní listina'!D52 -> Renata | G61: ='Startovní listina'!E52 -> 1985 | H61: ='Startovní listina'!F52 -> SDH Doubravník | I61: 02:53:08
A62: =IF('Výsledková listinadle kategorií'!D63<>"",A61+1,"") -> 106 | B62: 7 | C62: ='Startovní listina'!G59 -> F | D62: ='Startovní listina'!B59 -> 55 | E62: ='Startovní listina'!C59 -> Jamrichová | F62: ='Startovní listina'!D59 -> Kristina | G62: ='Startovní listina'!E59 -> 1987 | H62: ='Startovní listina'!F59 -> Brno | I62: 03:25:40
A63: =IF('Výsledková listinadle kategorií'!D34<>"",A62+1,"") -> 107 | B63: 1 | C63: ='Startovní listina'!G5 -> G | D63: ='Startovní listina'!B5 -> 1 | E63: ='Startovní listina'!C5 -> Komárková | F63: ='Startovní listina'!D5 -> Zdeňka | G63: ='Startovní listina'!E5 -> 1974 | H63: ='Startovní listina'!F5 -> SDH Bolešín | I63: 02:41:14
A64: =IF('Výsledková listinadle kategorií'!D36<>"",A63+1,"") -> 108 | B64: 2 | C64: ='Startovní listina'!G7 -> G | D64: ='Startovní listina'!B7 -> 3 | E64: ='Startovní listina'!C7 -> Mlčáková | F64: ='Startovní listina'!D7 -> Hana | G64: ='Startovní listina'!E7 -> 1981 | H64: ='Startovní listina'!F7 -> Strážnice | I64: 02:44:34
A65: =IF('Výsledková listinadle kategorií'!D46<>"",A64+1,"") -> 109 | B65: 3 | C65: ='Startovní listina'!G57 -> G | D65: ='Startovní listina'!B57 -> 53 | E65: ='Startovní listina'!C57 -> Kuncová | F65: ='Startovní listina'!D57 -> Markéta | G65: ='Startovní listina'!E57 -> 1982 | H65: ='Startovní listina'!F57 -> Rožná | I65: 02:52:06
A66: =IF('Výsledková listinadle kategorií'!D58<>"",A65+1,"") -> 110 | B66: 4 | C66: ='Startovní listina'!G12 -> G | D66: ='Startovní listina'!B12 -> 8 | E66: ='Startovní listina'!C12 -> Pichová | F66: ='Startovní listina'!D12 -> Dagmar | G66: ='Startovní listina'!E12 -> 1977 | H66: ='Startovní listina'!F12 -> Brno | I66: 03:14:28
A67: =IF('Výsledková listinadle kategorií'!D61<>"",A66+1,"") -> 111 | B67: 5 | C67: ='Startovní listina'!G22 -> G | D67: ='Startovní listina'!B22 -> 18 | E67: ='Startovní listina'!C22 -> Dostálová | F67: ='Startovní listina'!D22 -> Vendula | G67: ='Startovní listina'!E22 -> 1981 | H67: ='Startovní listina'!F22 -> HAL3000 | I67: 03:24:03
A68: =IF('Výsledková listinadle kategorií'!D64<>"",A67+1,"") -> 112 | B68: 6 | C68: ='Startovní listina'!G9 -> G | D68: ='Startovní listina'!B9 -> 5 | E68: ='Startovní listina'!C9 -> Ježová | F68: ='Startovní listina'!D9 -> Martina | G68: ='Startovní listina'!E9 -> 1975 | H68: ='Startovní listina'!F9 -> Brno | I68: 03:30:58
A69: =IF('Výsledková listinadle kategorií'!D35<>"",A68+1,"") -> 113 | B69: 1 | C69: ='Startovní listina'!G32 -> H | D69: ='Startovní listina'!B32 -> 28 | E69: ='Startovní listina'!C32 -> Hanslová | F69: ='Startovní listina'!D32 -> Lenka | G69: ='Startovní listina'!E32 -> 1973 | H69: ='Startovní listina'!F32 -> Žďár nad Sázavou | I69: 02:42:56
A70: =IF('Výsledková listinadle kategorií'!D65<>"",A69+1,"") -> 114 | B70: 2 | C70: ='Startovní listina'!G13 -> H | D70: ='Startovní listina'!B13 -> 9 | E70: ='Startovní listina'!C13 -> Tesařová | F70: ='Startovní listina'!D13 -> Marie | G70: ='Startovní listina'!E13 -> 1954 | H70: ='Startovní listina'!F13 -> Křižanov | I70: 03:31:28
A71: =IF('Výsledková listinadle kategorií'!D68<>"",A70+1,"") -> 115 | B71: 3 | C71: ='Startovní listina'!G65 -> H | D71: ='Startovní listina'!B65 -> 61 | E71: ='Startovní listina'!C65 -> Podmelová | F71: ='Startovní listina'!D65 -> Vilma | G71: ='Startovní listina'!E65 -> 1962 | H71: ='Startovní listina'!F65 -> AC Moravská Slavia Brno | I71: 03:48:57
A72: =IF('Výsledková listinadle kategorií'!D71<>"",A71+1,"") -> 116 | C72: ='Startovní listina'!G72 ->  | D72: ='Startovní listina'!B72 ->  | E72: ='Startovní listina'!C72 ->  | F72: ='Startovní listina'!D72 ->  | G72: ='Startovní listina'!E72 ->  | H72: ='Startovní listina'!F72 -> 
A73: =IF('Výsledková listinadle kategorií'!D72<>"",A72+1,"") ->  | C73: ='Startovní listina'!G73 ->  | D73: ='Startovní listina'!B73 ->  | E73: ='Startovní listina'!C73 ->  | F73: ='Startovní listina'!D73 ->  | G73: ='Startovní listina'!E73 ->  | H73: ='Startovní listina'!F73 -> 
A74: =IF('Výsledková listinadle kategorií'!D73<>"",A73+1,"") ->  | C74: ='Startovní listina'!G74 ->  | D74: ='Startovní listina'!B74 ->  | E74: ='Startovní listina'!C74 ->  | F74: ='Startovní listina'!D74 ->  | G74: ='Startovní listina'!E74 ->  | H74: ='Startovní listina'!F74 -> 
A75: =IF('Výsledková listinadle kategorií'!D74<>"",A74+1,"") ->  | C75: ='Startovní listina'!G75 ->  | D75: ='Startovní listina'!B75 ->  | E75: ='Startovní listina'!C75 ->  | F75: ='Startovní listina'!D75 ->  | G75: ='Startovní listina'!E75 ->  | H75: ='Startovní listina'!F75 -> 
A76: =IF('Výsledková listinadle kategorií'!D75<>"",A75+1,"") ->  | C76: ='Startovní listina'!G76 ->  | D76: ='Startovní listina'!B76 ->  | E76: ='Startovní listina'!C76 ->  | F76: ='Startovní listina'!D76 ->  | G76: ='Startovní listina'!E76 ->  | H76: ='Startovní listina'!F76 -> 
A77: =IF('Výsledková listinadle kategorií'!D76<>"",A76+1,"") ->  | C77: ='Startovní listina'!G77 ->  | D77: ='Startovní listina'!B77 ->  | E77: ='Startovní listina'!C77 ->  | F77: ='Startovní listina'!D77 ->  | G77: ='Startovní listina'!E77 ->  | H77: ='Startovní listina'!F77 -> 
A78: =IF('Výsledková listinadle kategorií'!D77<>"",A77+1,"") ->  | C78: ='Startovní listina'!G78 ->  | D78: ='Startovní listina'!B78 ->  | E78: ='Startovní listina'!C78 ->  | F78: ='Startovní listina'!D78 ->  | G78: ='Startovní listina'!E78 ->  | H78: ='Startovní listina'!F78 -> 
A79: =IF('Výsledková listinadle kategorií'!D78<>"",A78+1,"") ->  | C79: ='Startovní listina'!G79 ->  | D79: ='Startovní listina'!B79 ->  | E79: ='Startovní listina'!C79 ->  | F79: ='Startovní listina'!D79 ->  | G79: ='Startovní listina'!E79 ->  | H79: ='Startovní listina'!F79 -> 
A80: =IF('Výsledková listinadle kategorií'!D79<>"",A79+1,"") ->  | C80: ='Startovní listina'!G80 ->  | D80: ='Startovní listina'!B80 ->  | E80: ='Startovní listina'!C80 ->  | F80: ='Startovní listina'!D80 ->  | G80: ='Startovní listina'!E80 ->  | H80: ='Startovní listina'!F80 -> 
A81: =IF('Výsledková listinadle kategorií'!D80<>"",A80+1,"") ->  | C81: ='Startovní listina'!G81 ->  | D81: ='Startovní listina'!B81 ->  | E81: ='Startovní listina'!C81 ->  | F81: ='Startovní listina'!D81 ->  | G81: ='Startovní listina'!E81 ->  | H81: ='Startovní listina'!F81 -> 
A82: =IF('Výsledková listinadle kategorií'!D81<>"",A81+1,"") ->  | C82: ='Startovní listina'!G82 ->  | D82: ='Startovní listina'!B82 ->  | E82: ='Startovní listina'!C82 ->  | F82: ='Startovní listina'!D82 ->  | G82: ='Startovní listina'!E82 ->  | H82: ='Startovní listina'!F82 -> 
A83: =IF('Výsledková listinadle kategorií'!D82<>"",A82+1,"") ->  | C83: ='Startovní listina'!G83 ->  | D83: ='Startovní listina'!B83 ->  | E83: ='Startovní listina'!C83 ->  | F83: ='Startovní listina'!D83 ->  | G83: ='Startovní listina'!E83 ->  | H83: ='Startovní listina'!F83 -> 
A84: =IF('Výsledková listinadle kategorií'!D83<>"",A83+1,"") ->  | C84: ='Startovní listina'!G84 ->  | D84: ='Startovní listina'!B84 ->  | E84: ='Startovní listina'!C84 ->  | F84: ='Startovní listina'!D84 ->  | G84: ='Startovní listina'!E84 ->  | H84: ='Startovní listina'!F84 -> 
A85: =IF('Výsledková listinadle kategorií'!D84<>"",A84+1,"") ->  | C85: ='Startovní listina'!G85 ->  | D85: ='Startovní listina'!B85 ->  | E85: ='Startovní listina'!C85 ->  | F85: ='Startovní listina'!D85 ->  | G85: ='Startovní listina'!E85 ->  | H85: ='Startovní listina'!F85 -> 
A86: =IF('Výsledková listinadle kategorií'!D85<>"",A85+1,"") ->  | C86: ='Startovní listina'!G86 ->  | D86: ='Startovní listina'!B86 ->  | E86: ='Startovní listina'!C86 ->  | F86: ='Startovní listina'!D86 ->  | G86: ='Startovní listina'!E86 ->  | H86: ='Startovní listina'!F86 -> 
A87: =IF('Výsledková listinadle kategorií'!D86<>"",A86+1,"") ->  | C87: ='Startovní listina'!G87 ->  | D87: ='Startovní listina'!B87 ->  | E87: ='Startovní listina'!C87 ->  | F87: ='Startovní listina'!D87 ->  | G87: ='Startovní listina'!E87 ->  | H87: ='Startovní listina'!F87 -> 
A88: =IF('Výsledková listinadle kategorií'!D87<>"",A87+1,"") ->  | C88: ='Startovní listina'!G88 ->  | D88: ='Startovní listina'!B88 ->  | E88: ='Startovní listina'!C88 ->  | F88: ='Startovní listina'!D88 ->  | G88: ='Startovní listina'!E88 ->  | H88: ='Startovní listina'!F88 -> 
A89: =IF('Výsledková listinadle kategorií'!D88<>"",A88+1,"") ->  | C89: ='Startovní listina'!G89 ->  | D89: ='Startovní listina'!B89 ->  | E89: ='Startovní listina'!C89 ->  | F89: ='Startovní listina'!D89 ->  | G89: ='Startovní listina'!E89 ->  | H89: ='Startovní listina'!F89 -> 
A90: =IF('Výsledková listinadle kategorií'!D89<>"",A89+1,"") ->  | C90: ='Startovní listina'!G90 ->  | D90: ='Startovní listina'!B90 ->  | E90: ='Startovní listina'!C90 ->  | F90: ='Startovní listina'!D90 ->  | G90: ='Startovní listina'!E90 ->  | H90: ='Startovní listina'!F90 -> 
A91: =IF('Výsledková listinadle kategorií'!D90<>"",A90+1,"") ->  | C91: ='Startovní listina'!G91 ->  | D91: ='Startovní listina'!B91 ->  | E91: ='Startovní listina'!C91 ->  | F91: ='Startovní listina'!D91 ->  | G91: ='Startovní listina'!E91 ->  | H91: ='Startovní listina'!F91 -> 
A92: =IF('Výsledková listinadle kategorií'!D91<>"",A91+1,"") ->  | C92: ='Startovní listina'!G92 ->  | D92: ='Startovní listina'!B92 ->  | E92: ='Startovní listina'!C92 ->  | F92: ='Startovní listina'!D92 ->  | G92: ='Startovní listina'!E92 ->  | H92: ='Startovní listina'!F92 -> 
A93: =IF('Výsledková listinadle kategorií'!D92<>"",A92+1,"") ->  | C93: ='Startovní listina'!G93 ->  | D93: ='Startovní listina'!B93 ->  | E93: ='Startovní listina'!C93 ->  | F93: ='Startovní listina'!D93 ->  | G93: ='Startovní listina'!E93 ->  | H93: ='Startovní listina'!F93 -> 
A94: =IF('Výsledková listinadle kategorií'!D93<>"",A93+1,"") ->  | C94: ='Startovní listina'!G94 ->  | D94: ='Startovní listina'!B94 ->  | E94: ='Startovní listina'!C94 ->  | F94: ='Startovní listina'!D94 ->  | G94: ='Startovní listina'!E94 ->  | H94: ='Startovní listina'!F94 -> 
A95: =IF('Výsledková listinadle kategorií'!D94<>"",A94+1,"") ->  | C95: ='Startovní listina'!G95 ->  | D95: ='Startovní listina'!B95 ->  | E95: ='Startovní listina'!C95 ->  | F95: ='Startovní listina'!D95 ->  | G95: ='Startovní listina'!E95 ->  | H95: ='Startovní listina'!F95 -> 
A96: =IF('Výsledková listinadle kategorií'!D95<>"",A95+1,"") ->  | C96: ='Startovní listina'!G96 ->  | D96: ='Startovní listina'!B96 ->  | E96: ='Startovní listina'!C96 ->  | F96: ='Startovní listina'!D96 ->  | G96: ='Startovní listina'!E96 ->  | H96: ='Startovní listina'!F96 -> 
A97: =IF('Výsledková listinadle kategorií'!D96<>"",A96+1,"") ->  | C97: ='Startovní listina'!G97 ->  | D97: ='Startovní listina'!B97 ->  | E97: ='Startovní listina'!C97 ->  | F97: ='Startovní listina'!D97 ->  | G97: ='Startovní listina'!E97 ->  | H97: ='Startovní listina'!F97 -> 
A98: =IF('Výsledková listinadle kategorií'!D97<>"",A97+1,"") ->  | C98: ='Startovní listina'!G98 ->  | D98: ='Startovní listina'!B98 ->  | E98: ='Startovní listina'!C98 ->  | F98: ='Startovní listina'!D98 ->  | G98: ='Startovní listina'!E98 ->  | H98: ='Startovní listina'!F98 -> 
A99: =IF('Výsledková listinadle kategorií'!D98<>"",A98+1,"") ->  | C99: ='Startovní listina'!G99 ->  | D99: ='Startovní listina'!B99 ->  | E99: ='Startovní listina'!C99 ->  | F99: ='Startovní listina'!D99 ->  | G99: ='Startovní listina'!E99 ->  | H99: ='Startovní listina'!F99 -> 
A100: =IF('Výsledková listinadle kategorií'!D99<>"",A99+1,"") ->  | C100: ='Startovní listina'!G100 ->  | D100: ='Startovní listina'!B100 ->  | E100: ='Startovní listina'!C100 ->  | F100: ='Startovní listina'!D100 ->  | G100: ='Startovní listina'!E100 ->  | H100: ='Startovní listina'!F100 -> 
A101: =IF('Výsledková listinadle kategorií'!D100<>"",A100+1,"") ->  | C101: ='Startovní listina'!G101 ->  | D101: ='Startovní listina'!B101 ->  | E101: ='Startovní listina'!C101 ->  | F101: ='Startovní listina'!D101 ->  | G101: ='Startovní listina'!E101 ->  | H101: ='Startovní listina'!F101 -> 
A102: =IF('Výsledková listinadle kategorií'!D101<>"",A101+1,"") ->  | C102: ='Startovní listina'!G102 ->  | D102: ='Startovní listina'!B102 ->  | E102: ='Startovní listina'!C102 ->  | F102: ='Startovní listina'!D102 ->  | G102: ='Startovní listina'!E102 ->  | H102: ='Startovní listina'!F102 -> 
A103: =IF('Výsledková listinadle kategorií'!D102<>"",A102+1,"") ->  | C103: ='Startovní listina'!G103 ->  | D103: ='Startovní listina'!B103 ->  | E103: ='Startovní listina'!C103 ->  | F103: ='Startovní listina'!D103 ->  | G103: ='Startovní listina'!E103 ->  | H103: ='Startovní listina'!F103 -> 
A104: =IF('Výsledková listinadle kategorií'!D103<>"",A103+1,"") ->  | C104: ='Startovní listina'!G104 ->  | D104: ='Startovní listina'!B104 ->  | E104: ='Startovní listina'!C104 ->  | F104: ='Startovní listina'!D104 ->  | G104: ='Startovní listina'!E104 ->  | H104: ='Startovní listina'!F104 -> 

Sheet Družstva
B1: ="Výsledková listina - Malý svratecký maraton "&'Prezenční listina'!O2&" - družstva" -> Výsledková listina - Malý svratecký maraton 2018 - družstva
B2: ='Prezenční listina'!O2-1953&". ročník" -> 65. ročník
B3: Pořadí | C3: Startovní číslo | D3: Příjmení | E3: Jméno | F3: Narození | G3: Oddíl / Bydliště | H3: Čas | I3: Výsledný čas
B4: 1. | C4: 45 | D4: =IF(ISERROR(VLOOKUP(C4,'Startovní listina'!$B$5:$F$141,2)),"",VLOOKUP(C4,'Startovní listina'!$B$5:$F$141,2)) -> Kohut | E4: =IF(ISERROR(VLOOKUP(C4,'Startovní listina'!$B$5:$F$141,3)),"",VLOOKUP(C4,'Startovní listina'!$B$5:$F$141,3)) -> Jan | F4: =IF(ISERROR(VLOOKUP(C4,'Startovní listina'!$B$5:$F$141,4)),"",VLOOKUP(C4,'Startovní listina'!$B$5:$F$141,4)) -> 1985 | G4: =IF(K4=K5,K4,"RŮZNÉ ODDÍLY !!!") -> Univerzita Brno | H4: 02:02:02 | I4: =IF((H4=0),"",H4+H5) -> 04:15:32 | K4: =IF(ISERROR(VLOOKUP(C4,'Startovní listina'!$B$5:$F$141,5)),"",VLOOKUP(C4,'Startovní listina'!$B$5:$F$141,5)) -> Univerzita Brno
C5: 46 | D5: =IF(ISERROR(VLOOKUP(C5,'Startovní listina'!$B$5:$F$141,2)),"",VLOOKUP(C5,'Startovní listina'!$B$5:$F$141,2)) -> Dvořáček | E5: =IF(ISERROR(VLOOKUP(C5,'Startovní listina'!$B$5:$F$141,3)),"",VLOOKUP(C5,'Startovní listina'!$B$5:$F$141,3)) -> Jiří | F5: =IF(ISERROR(VLOOKUP(C5,'Startovní listina'!$B$5:$F$141,4)),"",VLOOKUP(C5,'Startovní listina'!$B$5:$F$141,4)) -> 1968 | H5: 02:13:30 | K5: =IF(ISERROR(VLOOKUP(C5,'Startovní listina'!$B$5:$F$141,5)),"",VLOOKUP(C5,'Startovní listina'!$B$5:$F$141,5)) -> Univerzita Brno
B6: 2. | C6: 10 | D6: =IF(ISERROR(VLOOKUP(C6,'Startovní listina'!$B$5:$F$141,2)),"",VLOOKUP(C6,'Startovní listina'!$B$5:$F$141,2)) -> Kopečný | E6: =IF(ISERROR(VLOOKUP(C6,'Startovní listina'!$B$5:$F$141,3)),"",VLOOKUP(C6,'Startovní listina'!$B$5:$F$141,3)) -> Dušan | F6: =IF(ISERROR(VLOOKUP(C6,'Startovní listina'!$B$5:$F$141,4)),"",VLOOKUP(C6,'Startovní listina'!$B$5:$F$141,4)) -> 1973 | G6: =IF(K6=K7,K6,"RŮZNÉ ODDÍLY !!!") -> Liga 100 Olomouc | H6: 02:21:19 | I6: =IF((H6=0),"",H6+H7) -> 04:41:00 | K6: =IF(ISERROR(VLOOKUP(C6,'Startovní listina'!$B$5:$F$141,5)),"",VLOOKUP(C6,'Startovní listina'!$B$5:$F$141,5)) -> Liga 100 Olomouc
C7: 6 | D7: =IF(ISERROR(VLOOKUP(C7,'Startovní listina'!$B$5:$F$141,2)),"",VLOOKUP(C7,'Startovní listina'!$B$5:$F$141,2)) -> Šerák | E7: =IF(ISERROR(VLOOKUP(C7,'Startovní listina'!$B$5:$F$141,3)),"",VLOOKUP(C7,'Startovní listina'!$B$5:$F$141,3)) -> Martin | F7: =IF(ISERROR(VLOOKUP(C7,'Startovní listina'!$B$5:$F$141,4)),"",VLOOKUP(C7,'Startovní listina'!$B$5:$F$141,4)) -> 1978 | H7: 02:19:41 | K7: =IF(ISERROR(VLOOKUP(C7,'Startovní listina'!$B$5:$F$141,5)),"",VLOOKUP(C7,'Startovní listina'!$B$5:$F$141,5)) -> Liga 100 Olomouc
B8: 3. | C8: 48 | D8: =IF(ISERROR(VLOOKUP(C8,'Startovní listina'!$B$5:$F$141,2)),"",VLOOKUP(C8,'Startovní listina'!$B$5:$F$141,2)) -> Glierová | E8: =IF(ISERROR(VLOOKUP(C8,'Startovní listina'!$B$5:$F$141,3)),"",VLOOKUP(C8,'Startovní listina'!$B$5:$F$141,3)) -> Renata | F8: =IF(ISERROR(VLOOKUP(C8,'Startovní listina'!$B$5:$F$141,4)),"",VLOOKUP(C8,'Startovní listina'!$B$5:$F$141,4)) -> 1985 | G8: =IF(K8=K9,K8,"RŮZNÉ ODDÍLY !!!") -> SDH Doubravník | H8: 02:53:08 | I8: =IF((H8=0),"",H8+H9) -> 05:08:26 | K8: =IF(ISERROR(VLOOKUP(C8,'Startovní listina'!$B$5:$F$141,5)),"",VLOOKUP(C8,'Startovní listina'!$B$5:$F$141,5)) -> SDH Doubravník
C9: 49 | D9: =IF(ISERROR(VLOOKUP(C9,'Startovní listina'!$B$5:$F$141,2)),"",VLOOKUP(C9,'Startovní listina'!$B$5:$F$141,2)) -> Glier | E9: =IF(ISERROR(VLOOKUP(C9,'Startovní listina'!$B$5:$F$141,3)),"",VLOOKUP(C9,'Startovní listina'!$B$5:$F$141,3)) -> Michal | F9: =IF(ISERROR(VLOOKUP(C9,'Startovní listina'!$B$5:$F$141,4)),"",VLOOKUP(C9,'Startovní listina'!$B$5:$F$141,4)) -> 1982 | H9: 02:15:18 | K9: =IF(ISERROR(VLOOKUP(C9,'Startovní listina'!$B$5:$F$141,5)),"",VLOOKUP(C9,'Startovní listina'!$B$5:$F$141,5)) -> SDH Doubravník
B10: 4. | D10: =IF(ISERROR(VLOOKUP(C10,'Startovní listina'!$B$5:$F$141,2)),"",VLOOKUP(C10,'Startovní listina'!$B$5:$F$141,2)) ->  | E10: =IF(ISERROR(VLOOKUP(C10,'Startovní listina'!$B$5:$F$141,3)),"",VLOOKUP(C10,'Startovní listina'!$B$5:$F$141,3)) ->  | F10: =IF(ISERROR(VLOOKUP(C10,'Startovní listina'!$B$5:$F$141,4)),"",VLOOKUP(C10,'Startovní listina'!$B$5:$F$141,4)) ->  | G10: =IF(K10=K11,K10,"RŮZNÉ ODDÍLY !!!") ->  | I10: =IF((H10=0),"",H10+H11) ->  | K10: =IF(ISERROR(VLOOKUP(C10,'Startovní listina'!$B$5:$F$141,5)),"",VLOOKUP(C10,'Startovní listina'!$B$5:$F$141,5)) -> 
D11: =IF(ISERROR(VLOOKUP(C11,'Startovní listina'!$B$5:$F$141,2)),"",VLOOKUP(C11,'Startovní listina'!$B$5:$F$141,2)) ->  | E11: =IF(ISERROR(VLOOKUP(C11,'Startovní listina'!$B$5:$F$141,3)),"",VLOOKUP(C11,'Startovní listina'!$B$5:$F$141,3)) ->  | F11: =IF(ISERROR(VLOOKUP(C11,'Startovní listina'!$B$5:$F$141,4)),"",VLOOKUP(C11,'Startovní listina'!$B$5:$F$141,4)) ->  | K11: =IF(ISERROR(VLOOKUP(C11,'Startovní listina'!$B$5:$F$141,5)),"",VLOOKUP(C11,'Startovní listina'!$B$5:$F$141,5)) -> 
B12: 5. | D12: =IF(ISERROR(VLOOKUP(C12,'Startovní listina'!$B$5:$F$141,2)),"",VLOOKUP(C12,'Startovní listina'!$B$5:$F$141,2)) ->  | E12: =IF(ISERROR(VLOOKUP(C12,'Startovní listina'!$B$5:$F$141,3)),"",VLOOKUP(C12,'Startovní listina'!$B$5:$F$141,3)) ->  | F12: =IF(ISERROR(VLOOKUP(C12,'Startovní listina'!$B$5:$F$141,4)),"",VLOOKUP(C12,'Startovní listina'!$B$5:$F$141,4)) ->  | G12: =IF(K12=K13,K12,"RŮZNÉ ODDÍLY !!!") ->  | I12: =IF((H12=0),"",H12+H13) ->  | K12: =IF(ISERROR(VLOOKUP(C12,'Startovní listina'!$B$5:$F$141,5)),"",VLOOKUP(C12,'Startovní listina'!$B$5:$F$141,5)) -> 
D13: =IF(ISERROR(VLOOKUP(C13,'Startovní listina'!$B$5:$F$141,2)),"",VLOOKUP(C13,'Startovní listina'!$B$5:$F$141,2)) ->  | E13: =IF(ISERROR(VLOOKUP(C13,'Startovní listina'!$B$5:$F$141,3)),"",VLOOKUP(C13,'Startovní listina'!$B$5:$F$141,3)) ->  | F13: =IF(ISERROR(VLOOKUP(C13,'Startovní listina'!$B$5:$F$141,4)),"",VLOOKUP(C13,'Startovní listina'!$B$5:$F$141,4)) ->  | K13: =IF(ISERROR(VLOOKUP(C13,'Startovní listina'!$B$5:$F$141,5)),"",VLOOKUP(C13,'Startovní listina'!$B$5:$F$141,5)) -> 
B14: 6. | D14: =IF(ISERROR(VLOOKUP(C14,'Startovní listina'!$B$5:$F$141,2)),"",VLOOKUP(C14,'Startovní listina'!$B$5:$F$141,2)) ->  | E14: =IF(ISERROR(VLOOKUP(C14,'Startovní listina'!$B$5:$F$141,3)),"",VLOOKUP(C14,'Startovní listina'!$B$5:$F$141,3)) ->  | F14: =IF(ISERROR(VLOOKUP(C14,'Startovní listina'!$B$5:$F$141,4)),"",VLOOKUP(C14,'Startovní listina'!$B$5:$F$141,4)) ->  | G14: =IF(K14=K15,K14,"RŮZNÉ ODDÍLY !!!") ->  | I14: =IF((H14=0),"",H14+H15) ->  | K14: =IF(ISERROR(VLOOKUP(C14,'Startovní listina'!$B$5:$F$141,5)),"",VLOOKUP(C14,'Startovní listina'!$B$5:$F$141,5)) -> 
D15: =IF(ISERROR(VLOOKUP(C15,'Startovní listina'!$B$5:$F$141,2)),"",VLOOKUP(C15,'Startovní listina'!$B$5:$F$141,2)) ->  | E15: =IF(ISERROR(VLOOKUP(C15,'Startovní listina'!$B$5:$F$141,3)),"",VLOOKUP(C15,'Startovní listina'!$B$5:$F$141,3)) ->  | F15: =IF(ISERROR(VLOOKUP(C15,'Startovní listina'!$B$5:$F$141,4)),"",VLOOKUP(C15,'Startovní listina'!$B$5:$F$141,4)) ->  | K15: =IF(ISERROR(VLOOKUP(C15,'Startovní listina'!$B$5:$F$141,5)),"",VLOOKUP(C15,'Startovní listina'!$B$5:$F$141,5)) -> 
B16: 7. | I16: =IF((H16=0),"",H16+H17) ->  | K16: =IF(ISERROR(VLOOKUP(C16,'Startovní listina'!$B$5:$F$141,5)),"",VLOOKUP(C16,'Startovní listina'!$B$5:$F$141,5)) -> 
K17: =IF(ISERROR(VLOOKUP(C17,'Startovní listina'!$B$5:$F$141,5)),"",VLOOKUP(C17,'Startovní listina'!$B$5:$F$141,5)) -> 
B18: 8. | D18: =IF(ISERROR(VLOOKUP(C18,'Startovní listina'!$B$5:$F$141,2)),"",VLOOKUP(C18,'Startovní listina'!$B$5:$F$141,2)) ->  | E18: =IF(ISERROR(VLOOKUP(C18,'Startovní listina'!$B$5:$F$141,3)),"",VLOOKUP(C18,'Startovní listina'!$B$5:$F$141,3)) ->  | F18: =IF(ISERROR(VLOOKUP(C18,'Startovní listina'!$B$5:$F$141,4)),"",VLOOKUP(C18,'Startovní listina'!$B$5:$F$141,4)) ->  | I18: =IF((H18=0),"",H18+H19) ->  | K18: =IF(ISERROR(VLOOKUP(C18,'Startovní listina'!$B$5:$F$141,5)),"",VLOOKUP(C18,'Startovní listina'!$B$5:$F$141,5)) -> 
D19: =IF(ISERROR(VLOOKUP(C19,'Startovní listina'!$B$5:$F$141,2)),"",VLOOKUP(C19,'Startovní listina'!$B$5:$F$141,2)) ->  | E19: =IF(ISERROR(VLOOKUP(C19,'Startovní listina'!$B$5:$F$141,3)),"",VLOOKUP(C19,'Startovní listina'!$B$5:$F$141,3)) ->  | F19: =IF(ISERROR(VLOOKUP(C19,'Startovní listina'!$B$5:$F$141,4)),"",VLOOKUP(C19,'Startovní listina'!$B$5:$F$141,4)) ->  | K19: =IF(ISERROR(VLOOKUP(C19,'Startovní listina'!$B$5:$F$141,5)),"",VLOOKUP(C19,'Startovní listina'!$B$5:$F$141,5)) -> 
B20: 9. | D20: =IF(ISERROR(VLOOKUP(C20,'Startovní listina'!$B$5:$F$141,2)),"",VLOOKUP(C20,'Startovní listina'!$B$5:$F$141,2)) ->  | E20: =IF(ISERROR(VLOOKUP(C20,'Startovní listina'!$B$5:$F$141,3)),"",VLOOKUP(C20,'Startovní listina'!$B$5:$F$141,3)) ->  | F20: =IF(ISERROR(VLOOKUP(C20,'Startovní listina'!$B$5:$F$141,4)),"",VLOOKUP(C20,'Startovní listina'!$B$5:$F$141,4)) ->  | I20: =IF((H20=0),"",H20+H21) ->  | K20: =IF(ISERROR(VLOOKUP(C20,'Startovní listina'!$B$5:$F$141,5)),"",VLOOKUP(C20,'Startovní listina'!$B$5:$F$141,5)) -> 
D21: =IF(ISERROR(VLOOKUP(C21,'Startovní listina'!$B$5:$F$141,2)),"",VLOOKUP(C21,'Startovní listina'!$B$5:$F$141,2)) ->  | E21: =IF(ISERROR(VLOOKUP(C21,'Startovní listina'!$B$5:$F$141,3)),"",VLOOKUP(C21,'Startovní listina'!$B$5:$F$141,3)) ->  | F21: =IF(ISERROR(VLOOKUP(C21,'Startovní listina'!$B$5:$F$141,4)),"",VLOOKUP(C21,'Startovní listina'!$B$5:$F$141,4)) ->  | K21: =IF(ISERROR(VLOOKUP(C21,'Startovní listina'!$B$5:$F$141,5)),"",VLOOKUP(C21,'Startovní listina'!$B$5:$F$141,5)) -> 
B22: 10. | D22: =IF(ISERROR(VLOOKUP(C22,'Startovní listina'!$B$5:$F$141,2)),"",VLOOKUP(C22,'Startovní listina'!$B$5:$F$141,2)) ->  | E22: =IF(ISERROR(VLOOKUP(C22,'Startovní listina'!$B$5:$F$141,3)),"",VLOOKUP(C22,'Startovní listina'!$B$5:$F$141,3)) ->  | F22: =IF(ISERROR(VLOOKUP(C22,'Startovní listina'!$B$5:$F$141,4)),"",VLOOKUP(C22,'Startovní listina'!$B$5:$F$141,4)) ->  | I22: =IF((H22=0),"",H22+H23) ->  | K22: =IF(ISERROR(VLOOKUP(C22,'Startovní listina'!$B$5:$F$141,5)),"",VLOOKUP(C22,'Startovní listina'!$B$5:$F$141,5)) -> 
D23: =IF(ISERROR(VLOOKUP(C23,'Startovní listina'!$B$5:$F$141,2)),"",VLOOKUP(C23,'Startovní listina'!$B$5:$F$141,2)) ->  | E23: =IF(ISERROR(VLOOKUP(C23,'Startovní listina'!$B$5:$F$141,3)),"",VLOOKUP(C23,'Startovní listina'!$B$5:$F$141,3)) ->  | F23: =IF(ISERROR(VLOOKUP(C23,'Startovní listina'!$B$5:$F$141,4)),"",VLOOKUP(C23,'Startovní listina'!$B$5:$F$141,4)) ->  | K23: =IF(ISERROR(VLOOKUP(C23,'Startovní listina'!$B$5:$F$141,5)),"",VLOOKUP(C23,'Startovní listina'!$B$5:$F$141,5)) -> 
B24: 11. | D24: =IF(ISERROR(VLOOKUP(C24,'Startovní listina'!$B$5:$F$141,2)),"",VLOOKUP(C24,'Startovní listina'!$B$5:$F$141,2)) ->  | E24: =IF(ISERROR(VLOOKUP(C24,'Startovní listina'!$B$5:$F$141,3)),"",VLOOKUP(C24,'Startovní listina'!$B$5:$F$141,3)) ->  | F24: =IF(ISERROR(VLOOKUP(C24,'Startovní listina'!$B$5:$F$141,4)),"",VLOOKUP(C24,'Startovní listina'!$B$5:$F$141,4)) ->  | I24: =IF((H24=0),"",H24+H25) ->  | K24: =IF(ISERROR(VLOOKUP(C24,'Startovní listina'!$B$5:$F$141,5)),"",VLOOKUP(C24,'Startovní listina'!$B$5:$F$141,5)) -> 
D25: =IF(ISERROR(VLOOKUP(C25,'Startovní listina'!$B$5:$F$141,2)),"",VLOOKUP(C25,'Startovní listina'!$B$5:$F$141,2)) ->  | E25: =IF(ISERROR(VLOOKUP(C25,'Startovní listina'!$B$5:$F$141,3)),"",VLOOKUP(C25,'Startovní listina'!$B$5:$F$141,3)) ->  | F25: =IF(ISERROR(VLOOKUP(C25,'Startovní listina'!$B$5:$F$141,4)),"",VLOOKUP(C25,'Startovní listina'!$B$5:$F$141,4)) ->  | K25: =IF(ISERROR(VLOOKUP(C25,'Startovní listina'!$B$5:$F$141,5)),"",VLOOKUP(C25,'Startovní listina'!$B$5:$F$141,5)) -> 

Sheet Běh Vírem
A1: ="Běh Vírem "&'Prezenční listina'!O2 -> Běh Vírem 2018
D2: ='Startovní listina'!$A$2 -> 2018-08-25 | E2: ='Startovní listina'!$A$2 -> 2018-08-25
D3: ='Prezenční listina'!$O$2-1966&" . ročník" -> 52 . ročník
A4: # | B4: Příjmení | C4: Jméno | D4: Narození | E4: Oddíl / Bydliště | F4: Startovní číslo | G4: Čas | H4: Pohlaví
A5: 1 | B5: Coural | C5: Jaroslav | D5: 2002 | E5: Vír | F5: 149 | G5: 00:11:14 | H5: =IF(LEN(B5)=0," ",IF(MID(B5,LEN(B5),1)="á","Ž","M")) -> M
A6: 2 | B6: Dobrovský | C6: Michal | D6: 2004 | E6: Biatlon Blansko | F6: 130 | G6: 00:12:10 | H6: M
A7: 3 | B7: Lorenčík | C7: Kryštof | D7: 2004 | E7: Atletika Chrudim | F7: 142 | G7: 00:12:23 | H7: M
A8: 4 | B8: Jílek | C8: František | D8: 2004 | E8: Velké Tresné | F8: 138 | G8: 00:12:37 | H8: M
A9: 5 | B9: Píbil | C9: Patrik | D9: 2005 | E9: Chotěboř | F9: 129 | G9: 00:12:53 | H9: M
A10: 6 | B10: Zeman | C10: Martin | D10: 2008 | E10: Moravany u Brna | F10: 134 | G10: 00:13:51 | H10: M
A12: 1 | B12: Křenková | C12: Kateřina | D12: 2001 | E12: Plzeň Petřín | F12: 143 | G12: 00:11:46 | H12: Ž
A13: 2 | B13: Lorenčíková | C13: Adéla | D13: 2000 | E13: AC Čáslav | F13: 145 | G13: 00:13:16 | H13: Ž | L13: ;
A14: 3 | B14: Dostálová | C14: Daniela | D14: 2003 | E14: Nyklovice | F14: 144 | G14: 00:14:30 | H14: Ž
A15: 4 | B15: Kostyšynová | C15: Zora | D15: 2005 | E15: Náchod | F15: 148 | G15: 00:15:26 | H15: Ž
K26: ,

Sheet mezičasy 2017 (hidden)
A1: 5. km | C1: 10. km | E1: 16. km | G1: 25. km
A2: číslo | B2: čas | C2: číslo | D2: čas | E2: číslo | F2: čas | G2: číslo | H2: čas
A3: 82 | B3: 00:17:36 | C3: 82 | D3: 00:35:34 | E3: 82 | F3: 00:57:57 | G3: 64 | H3: 01:34:10
A4: 64 | B4: 00:17:53 | C4: 64 | D4: 00:35:50 | E4: 64 | F4: 00:57:57 | G4: 82 | H4: 01:34:40
A5: 48 | B5: 00:18:54 | C5: 48 | D5: 00:37:43 | E5: 48 | F5: 01:00:45 | G5: 48 | H5: 01:37:47
A6: 19 | B6: 00:18:59 | C6: 19 | D6: 00:39:11 | E6: 49 | F6: 01:03:42 | G6: 19 | H6: 01:44:00
A7: 49 | B7: 00:19:14 | C7: 49 | D7: 00:39:28 | E7: 19 | F7: 01:03:56 | G7: 49 | H7: 01:44:00
A8: 18 | B8: 00:19:52 | C8: 18 | D8: 00:39:57 | E8: 8 | F8: 01:05:23 | G8: 8 | H8: 01:44:10
A9: 77/8 | B9: 00:20:11 | D9: : : | E9: 77 | F9: 01:05:50 | G9: 79 | H9: 01:46:00
B10: : : | D10: : : | E10: 79 | F10: 01:06:02 | H10: : :
A11: 22 | B11: 00:20:46 | C11: 22 | D11: 00:41:55 | E11: 22 | F11: 01:07:23 | G11: 22 | H11: 01:46:00
A12: 46 | B12: 00:21:27 | D12: : : | F12: : : | H12: : :
B13: : : | D13: : : | F13: : : | H13: : :
B14: : : | D14: : : | F14: : : | H14: : :
B15: : : | D15: : : | F15: : : | H15: : :
B16: : : | D16: : : | F16: : : | H16: : :
B17: : : | D17: : : | F17: : : | H17: : :
B18: : : | D18: : : | F18: : : | H18: : :
B19: : : | D19: : : | F19: : : | H19: : :
B20: : : | D20: : : | F20: : : | H20: : :
B21: : : | D21: : : | F21: : : | H21: : :
B22: : : | D22: : : | F22: : : | H22: : :
B23: : : | D23: : : | F23: : : | H23: : :
B24: : : | D24: : : | F24: : : | H24: : :
B25: : : | D25: : : | F25: : : | H25: : :
B26: : : | D26: : : | F26: : : | H26: : :
B27: : : | D27: : : | F27: : : | H27: : :
B28: : : | D28: : : | F28: : : | H28: : :
B29: : : | D29: : : | F29: : : | H29: : :
B30: : : | D30: : : | F30: : : | H30: : :

Sheet mezičasy 2018 (hidden)
A1: 5. km | C1: 10. km | E1: 16. km | G1: 25. km
A2: číslo | B2: čas | C2: číslo | D2: čas | E2: číslo | F2: čas | G2: číslo | H2: čas
A3: 63 | B3: 00:18:04 | C3: 63 | D3: 00:36:48 | E3: 63 | F3: 00:59:44 | G3: 63,45,62 | H3: 01:34:34
A4: 45,62,43,30,36 | B4: 00:18:51 | C4: 45,62,43,36 | D4: 00:37:33 | E4: 45.62 | F4: 00:59:59 | G4: 36 | H4: 01:35:57
A5: 49 | B5: 00:19:50 | C5: 30 | D5: 00:37:45 | E5: 36 | F5: 01:00:24 | G5: 43 | H5: 01:39:38
A6: 6 | B6: 00:20:39 | C6: 49 | D6: 00:40:11 | E6: 43 | F6: 01:01:19 | H6: : :
A7: 40,37,25 | B7: 00:20:50 | D7: : : | E7: 30 | F7: 01:01:40 | H7: : :
B8: : : | D8: : : | E8: 49 | F8: 01:04:54 | H8: : :
B9: : : | D9: : : | F9: : : | H9: : :
A10: 31 | B10: 00:21:30 | C10: 31 | D10: 00:43:23 | E10: 31 | F10: 01:09:30 | H10: : :
A11: 26,44,28 | B11: 00:22:51 | D11: : : | F11: : : | H11: : :
B12: : : | D12: : : | F12: : : | H12: : :
B13: : : | D13: : : | F13: : : | H13: : :
B14: : : | D14: : : | F14: : : | H14: : :
B15: : : | D15: : : | F15: : : | H15: : :
B16: : : | D16: : : | F16: : : | H16: : :
B17: : : | D17: : : | F17: : : | H17: : :
B18: : : | D18: : : | F18: : : | H18: : :
B19: : : | D19: : : | F19: : : | H19: : :
B20: : : | D20: : : | F20: : : | H20: : :
B21: : : | D21: : : | F21: : : | H21: : :
B22: : : | D22: : : | F22: : : | H22: : :
B23: : : | D23: : : | F23: : : | H23: : :
B24: : : | D24: : : | F24: : : | H24: : :
B25: : : | D25: : : | F25: : : | H25: : :
B26: : : | D26: : : | F26: : : | H26: : :
B27: : : | D27: : : | F27: : : | H27: : :
B28: : : | D28: : : | F28: : : | H28: : :
B29: : : | D29: : : | F29: : : | H29: : :
B30: : : | D30: : : | F30: : : | H30: : :

Sheet Diplom MSM A5 (hidden)
D27: ='Výsledková listina'!E5&" "&'Výsledková listina'!F5 -> Kohut Jan
G30: ='Výsledková listina'!B5&"." -> 1.
D32: ='Výsledková listina'!C5 -> A
M33: ='Výsledková listina'!I5 -> 02:02:02
G36: 20. srpna 2016

Sheet Diplom MSM A5 (2) (hidden)
D27: ='Výsledková listina'!E6&" "&'Výsledková listina'!F6 -> Exner Jakub
G30: ='Výsledková listina'!B6&"." -> 2.
D32: ='Výsledková listina'!C6 -> A
M33: ='Výsledková listina'!I6 -> 02:02:03
G36: 20. srpna 2016

Sheet Družstva (prac.) (hidden)
B1: ="Výsledková listina - Malý svratecký maratón "&'Prezenční listina'!O2&" - družstva" -> Výsledková listina - Malý svratecký maratón 2018 - družstva
B2: ='Prezenční listina'!O2-1953&". ročník" -> 65. ročník
B3: Pořadí | C3: Startovní číslo | D3: Příjmení | E3: Jméno | F3: Narození | G3: Oddíl / Bydliště | H3: Čas | I3: Výsledný čas
B4: 1. | C4: 3 | D4: =IF(ISERROR(VLOOKUP(C4,'Startovní listina'!$B$5:$F$141,2)),"",VLOOKUP(C4,'Startovní listina'!$B$5:$F$141,2)) -> Mlčáková | E4: =IF(ISERROR(VLOOKUP(C4,'Startovní listina'!$B$5:$F$141,3)),"",VLOOKUP(C4,'Startovní listina'!$B$5:$F$141,3)) -> Hana | F4: =IF(ISERROR(VLOOKUP(C4,'Startovní listina'!$B$5:$F$141,4)),"",VLOOKUP(C4,'Startovní listina'!$B$5:$F$141,4)) -> 1981 | G4: =IF(K4=K5,K4,"RŮZNÉ ODDÍLY !!!") -> RŮZNÉ ODDÍLY !!! | H4: 03:07:50 | I4: =IF((H4=0),"",H4+H5) -> 05:48:15 | K4: =IF(ISERROR(VLOOKUP(C4,'Startovní listina'!$B$5:$F$141,5)),"",VLOOKUP(C4,'Startovní listina'!$B$5:$F$141,5)) -> Strážnice
C5: 2 | D5: =IF(ISERROR(VLOOKUP(C5,'Startovní listina'!$B$5:$F$141,2)),"",VLOOKUP(C5,'Startovní listina'!$B$5:$F$141,2)) -> Ptáček | E5: =IF(ISERROR(VLOOKUP(C5,'Startovní listina'!$B$5:$F$141,3)),"",VLOOKUP(C5,'Startovní listina'!$B$5:$F$141,3)) -> Michal | F5: =IF(ISERROR(VLOOKUP(C5,'Startovní listina'!$B$5:$F$141,4)),"",VLOOKUP(C5,'Startovní listina'!$B$5:$F$141,4)) -> 1986 | H5: 02:40:25 | K5: =IF(ISERROR(VLOOKUP(C5,'Startovní listina'!$B$5:$F$141,5)),"",VLOOKUP(C5,'Startovní listina'!$B$5:$F$141,5)) -> Hrdá Ves
B6: 2. | C6: 11 | D6: =IF(ISERROR(VLOOKUP(C6,'Startovní listina'!$B$5:$F$141,2)),"",VLOOKUP(C6,'Startovní listina'!$B$5:$F$141,2)) -> Holý | E6: =IF(ISERROR(VLOOKUP(C6,'Startovní listina'!$B$5:$F$141,3)),"",VLOOKUP(C6,'Startovní listina'!$B$5:$F$141,3)) -> Josef | F6: =IF(ISERROR(VLOOKUP(C6,'Startovní listina'!$B$5:$F$141,4)),"",VLOOKUP(C6,'Startovní listina'!$B$5:$F$141,4)) -> 1941 | G6: =IF(K6=K7,K6,"RŮZNÉ ODDÍLY !!!") -> RŮZNÉ ODDÍLY !!! | H6: 02:01:16 | I6: =IF((H6=0),"",H6+H7) -> 04:06:56 | K6: =IF(ISERROR(VLOOKUP(C6,'Startovní listina'!$B$5:$F$141,5)),"",VLOOKUP(C6,'Startovní listina'!$B$5:$F$141,5)) -> AC Moravská Slavia Brno
C7: 8 | D7: =IF(ISERROR(VLOOKUP(C7,'Startovní listina'!$B$5:$F$141,2)),"",VLOOKUP(C7,'Startovní listina'!$B$5:$F$141,2)) -> Pichová | E7: =IF(ISERROR(VLOOKUP(C7,'Startovní listina'!$B$5:$F$141,3)),"",VLOOKUP(C7,'Startovní listina'!$B$5:$F$141,3)) -> Dagmar | F7: =IF(ISERROR(VLOOKUP(C7,'Startovní listina'!$B$5:$F$141,4)),"",VLOOKUP(C7,'Startovní listina'!$B$5:$F$141,4)) -> 1977 | H7: 02:05:40 | K7: =IF(ISERROR(VLOOKUP(C7,'Startovní listina'!$B$5:$F$141,5)),"",VLOOKUP(C7,'Startovní listina'!$B$5:$F$141,5)) -> Brno
B8: 3. | C8: 9 | D8: =IF(ISERROR(VLOOKUP(C8,'Startovní listina'!$B$5:$F$141,2)),"",VLOOKUP(C8,'Startovní listina'!$B$5:$F$141,2)) -> Tesařová | E8: =IF(ISERROR(VLOOKUP(C8,'Startovní listina'!$B$5:$F$141,3)),"",VLOOKUP(C8,'Startovní listina'!$B$5:$F$141,3)) -> Marie | F8: =IF(ISERROR(VLOOKUP(C8,'Startovní listina'!$B$5:$F$141,4)),"",VLOOKUP(C8,'Startovní listina'!$B$5:$F$141,4)) -> 1954 | G8: =IF(K8=K9,K8,"RŮZNÉ ODDÍLY !!!") -> RŮZNÉ ODDÍLY !!! | H8: 02:40:16 | I8: =IF((H8=0),"",H8+H9) -> 05:12:53 | K8: =IF(ISERROR(VLOOKUP(C8,'Startovní listina'!$B$5:$F$141,5)),"",VLOOKUP(C8,'Startovní listina'!$B$5:$F$141,5)) -> Křižanov
C9: 10 | D9: =IF(ISERROR(VLOOKUP(C9,'Startovní listina'!$B$5:$F$141,2)),"",VLOOKUP(C9,'Startovní listina'!$B$5:$F$141,2)) -> Kopečný | E9: =IF(ISERROR(VLOOKUP(C9,'Startovní listina'!$B$5:$F$141,3)),"",VLOOKUP(C9,'Startovní listina'!$B$5:$F$141,3)) -> Dušan | F9: =IF(ISERROR(VLOOKUP(C9,'Startovní listina'!$B$5:$F$141,4)),"",VLOOKUP(C9,'Startovní listina'!$B$5:$F$141,4)) -> 1973 | H9: 02:32:37 | K9: =IF(ISERROR(VLOOKUP(C9,'Startovní listina'!$B$5:$F$141,5)),"",VLOOKUP(C9,'Startovní listina'!$B$5:$F$141,5)) -> Liga 100 Olomouc
B10: 4. | C10: 23 | D10: =IF(ISERROR(VLOOKUP(C10,'Startovní listina'!$B$5:$F$141,2)),"",VLOOKUP(C10,'Startovní listina'!$B$5:$F$141,2)) -> Koutský | E10: =IF(ISERROR(VLOOKUP(C10,'Startovní listina'!$B$5:$F$141,3)),"",VLOOKUP(C10,'Startovní listina'!$B$5:$F$141,3)) -> Tomáš | F10: =IF(ISERROR(VLOOKUP(C10,'Startovní listina'!$B$5:$F$141,4)),"",VLOOKUP(C10,'Startovní listina'!$B$5:$F$141,4)) -> 1987 | G10: =IF(K10=K11,K10,"RŮZNÉ ODDÍLY !!!") -> RŮZNÉ ODDÍLY !!! | H10: 03:04:10 | I10: =IF((H10=0),"",H10+H11) -> 06:10:48 | K10: =IF(ISERROR(VLOOKUP(C10,'Startovní listina'!$B$5:$F$141,5)),"",VLOOKUP(C10,'Startovní listina'!$B$5:$F$141,5)) -> Ledová stěna Vír
C11: 24 | D11: =IF(ISERROR(VLOOKUP(C11,'Startovní listina'!$B$5:$F$141,2)),"",VLOOKUP(C11,'Startovní listina'!$B$5:$F$141,2)) -> Skula | E11: =IF(ISERROR(VLOOKUP(C11,'Startovní listina'!$B$5:$F$141,3)),"",VLOOKUP(C11,'Startovní listina'!$B$5:$F$141,3)) -> Miroslav | F11: =IF(ISERROR(VLOOKUP(C11,'Startovní listina'!$B$5:$F$141,4)),"",VLOOKUP(C11,'Startovní listina'!$B$5:$F$141,4)) -> 1988 | H11: 03:06:38 | K11: =IF(ISERROR(VLOOKUP(C11,'Startovní listina'!$B$5:$F$141,5)),"",VLOOKUP(C11,'Startovní listina'!$B$5:$F$141,5)) -> SRTG Žďár nad Sázavou
B12: 5. | C12: 35 | D12: =IF(ISERROR(VLOOKUP(C12,'Startovní listina'!$B$5:$F$141,2)),"",VLOOKUP(C12,'Startovní listina'!$B$5:$F$141,2)) -> Hýbl | E12: =IF(ISERROR(VLOOKUP(C12,'Startovní listina'!$B$5:$F$141,3)),"",VLOOKUP(C12,'Startovní listina'!$B$5:$F$141,3)) -> Jiří | F12: =IF(ISERROR(VLOOKUP(C12,'Startovní listina'!$B$5:$F$141,4)),"",VLOOKUP(C12,'Startovní listina'!$B$5:$F$141,4)) -> 1967 | G12: =IF(K12=K13,K12,"RŮZNÉ ODDÍLY !!!") -> RŮZNÉ ODDÍLY !!! | H12: 02:31:40 | I12: =IF((H12=0),"",H12+H13) -> 06:21:15 | K12: =IF(ISERROR(VLOOKUP(C12,'Startovní listina'!$B$5:$F$141,5)),"",VLOOKUP(C12,'Startovní listina'!$B$5:$F$141,5)) -> Hrušovany u Brna
C13: 36 | D13: =IF(ISERROR(VLOOKUP(C13,'Startovní listina'!$B$5:$F$141,2)),"",VLOOKUP(C13,'Startovní listina'!$B$5:$F$141,2)) -> Nováček | E13: =IF(ISERROR(VLOOKUP(C13,'Startovní listina'!$B$5:$F$141,3)),"",VLOOKUP(C13,'Startovní listina'!$B$5:$F$141,3)) -> Tomáš | F13: =IF(ISERROR(VLOOKUP(C13,'Startovní listina'!$B$5:$F$141,4)),"",VLOOKUP(C13,'Startovní listina'!$B$5:$F$141,4)) -> 1983 | H13: 03:49:35 | K13: =IF(ISERROR(VLOOKUP(C13,'Startovní listina'!$B$5:$F$141,5)),"",VLOOKUP(C13,'Startovní listina'!$B$5:$F$141,5)) -> SDH Kamenná
B14: 6. | C14: 82 | D14: =IF(ISERROR(VLOOKUP(C14,'Startovní listina'!$B$5:$F$141,2)),"",VLOOKUP(C14,'Startovní listina'!$B$5:$F$141,2)) -> Příhoda | E14: =IF(ISERROR(VLOOKUP(C14,'Startovní listina'!$B$5:$F$141,3)),"",VLOOKUP(C14,'Startovní listina'!$B$5:$F$141,3)) -> Jan | F14: =IF(ISERROR(VLOOKUP(C14,'Startovní listina'!$B$5:$F$141,4)),"",VLOOKUP(C14,'Startovní listina'!$B$5:$F$141,4)) -> 1983 | G14: =IF(K14=K15,K14,"RŮZNÉ ODDÍLY !!!") -> Ždánice | H14: 02:11:00 | I14: =IF((H14=0),"",H14+H15) -> 04:05:34 | K14: =IF(ISERROR(VLOOKUP(C14,'Startovní listina'!$B$5:$F$141,5)),"",VLOOKUP(C14,'Startovní listina'!$B$5:$F$141,5)) -> Ždánice
C15: 107 | D15: =IF(ISERROR(VLOOKUP(C15,'Startovní listina'!$B$5:$F$141,2)),"",VLOOKUP(C15,'Startovní listina'!$B$5:$F$141,2)) -> Příhoda | E15: =IF(ISERROR(VLOOKUP(C15,'Startovní listina'!$B$5:$F$141,3)),"",VLOOKUP(C15,'Startovní listina'!$B$5:$F$141,3)) -> Jan | F15: =IF(ISERROR(VLOOKUP(C15,'Startovní listina'!$B$5:$F$141,4)),"",VLOOKUP(C15,'Startovní listina'!$B$5:$F$141,4)) -> 1983 | H15: 01:54:34 | K15: =IF(ISERROR(VLOOKUP(C15,'Startovní listina'!$B$5:$F$141,5)),"",VLOOKUP(C15,'Startovní listina'!$B$5:$F$141,5)) -> Ždánice
B16: 7. | C16: 28 | D16: =IF(ISERROR(VLOOKUP(C16,'Startovní listina'!$B$5:$F$141,2)),"",VLOOKUP(C16,'Startovní listina'!$B$5:$F$141,2)) -> Hanslová | E16: =IF(ISERROR(VLOOKUP(C16,'Startovní listina'!$B$5:$F$141,3)),"",VLOOKUP(C16,'Startovní listina'!$B$5:$F$141,3)) -> Lenka | F16: =IF(ISERROR(VLOOKUP(C16,'Startovní listina'!$B$5:$F$141,4)),"",VLOOKUP(C16,'Startovní listina'!$B$5:$F$141,4)) -> 1973 | G16: =IF(K16=K17,K16,"RŮZNÉ ODDÍLY !!!") -> RŮZNÉ ODDÍLY !!! | H16: 02:19:07 | I16: =IF((H16=0),"",H16+H17) -> 04:24:14 | K16: =IF(ISERROR(VLOOKUP(C16,'Startovní listina'!$B$5:$F$141,5)),"",VLOOKUP(C16,'Startovní listina'!$B$5:$F$141,5)) -> Žďár nad Sázavou
C17: 26 | D17: =IF(ISERROR(VLOOKUP(C17,'Startovní listina'!$B$5:$F$141,2)),"",VLOOKUP(C17,'Startovní listina'!$B$5:$F$141,2)) -> Bartoňková | E17: =IF(ISERROR(VLOOKUP(C17,'Startovní listina'!$B$5:$F$141,3)),"",VLOOKUP(C17,'Startovní listina'!$B$5:$F$141,3)) -> Nina | F17: =IF(ISERROR(VLOOKUP(C17,'Startovní listina'!$B$5:$F$141,4)),"",VLOOKUP(C17,'Startovní listina'!$B$5:$F$141,4)) -> 1990 | H17: 02:05:07 | K17: =IF(ISERROR(VLOOKUP(C17,'Startovní listina'!$B$5:$F$141,5)),"",VLOOKUP(C17,'Startovní listina'!$B$5:$F$141,5)) -> AK Drnovice
B18: 8. | D18: =IF(ISERROR(VLOOKUP(C18,'Startovní listina'!$B$5:$F$141,2)),"",VLOOKUP(C18,'Startovní listina'!$B$5:$F$141,2)) ->  | E18: =IF(ISERROR(VLOOKUP(C18,'Startovní listina'!$B$5:$F$141,3)),"",VLOOKUP(C18,'Startovní listina'!$B$5:$F$141,3)) ->  | F18: =IF(ISERROR(VLOOKUP(C18,'Startovní listina'!$B$5:$F$141,4)),"",VLOOKUP(C18,'Startovní listina'!$B$5:$F$141,4)) ->  | G18: =IF(K18=K19,K18,"RŮZNÉ ODDÍLY !!!") ->  | I18: =IF((H18=0),"",H18+H19) ->  | K18: =IF(ISERROR(VLOOKUP(C18,'Startovní listina'!$B$5:$F$141,5)),"",VLOOKUP(C18,'Startovní listina'!$B$5:$F$141,5)) -> 
D19: =IF(ISERROR(VLOOKUP(C19,'Startovní listina'!$B$5:$F$141,2)),"",VLOOKUP(C19,'Startovní listina'!$B$5:$F$141,2)) ->  | E19: =IF(ISERROR(VLOOKUP(C19,'Startovní listina'!$B$5:$F$141,3)),"",VLOOKUP(C19,'Startovní listina'!$B$5:$F$141,3)) ->  | F19: =IF(ISERROR(VLOOKUP(C19,'Startovní listina'!$B$5:$F$141,4)),"",VLOOKUP(C19,'Startovní listina'!$B$5:$F$141,4)) ->  | K19: =IF(ISERROR(VLOOKUP(C19,'Startovní listina'!$B$5:$F$141,5)),"",VLOOKUP(C19,'Startovní listina'!$B$5:$F$141,5)) -> 
B20: 9. | D20: =IF(ISERROR(VLOOKUP(C20,'Startovní listina'!$B$5:$F$141,2)),"",VLOOKUP(C20,'Startovní listina'!$B$5:$F$141,2)) ->  | E20: =IF(ISERROR(VLOOKUP(C20,'Startovní listina'!$B$5:$F$141,3)),"",VLOOKUP(C20,'Startovní listina'!$B$5:$F$141,3)) ->  | F20: =IF(ISERROR(VLOOKUP(C20,'Startovní listina'!$B$5:$F$141,4)),"",VLOOKUP(C20,'Startovní listina'!$B$5:$F$141,4)) ->  | G20: =IF(K20=K21,K20,"RŮZNÉ ODDÍLY !!!") ->  | I20: =IF((H20=0),"",H20+H21) ->  | K20: =IF(ISERROR(VLOOKUP(C20,'Startovní listina'!$B$5:$F$141,5)),"",VLOOKUP(C20,'Startovní listina'!$B$5:$F$141,5)) -> 
D21: =IF(ISERROR(VLOOKUP(C21,'Startovní listina'!$B$5:$F$141,2)),"",VLOOKUP(C21,'Startovní listina'!$B$5:$F$141,2)) ->  | E21: =IF(ISERROR(VLOOKUP(C21,'Startovní listina'!$B$5:$F$141,3)),"",VLOOKUP(C21,'Startovní listina'!$B$5:$F$141,3)) ->  | F21: =IF(ISERROR(VLOOKUP(C21,'Startovní listina'!$B$5:$F$141,4)),"",VLOOKUP(C21,'Startovní listina'!$B$5:$F$141,4)) ->  | K21: =IF(ISERROR(VLOOKUP(C21,'Startovní listina'!$B$5:$F$141,5)),"",VLOOKUP(C21,'Startovní listina'!$B$5:$F$141,5)) -> 

Sheet Výsledková listina (2) (hidden)
A1: ="Výsledková listina - Malý svratecký maraton "&'Prezenční listina'!O2 -> Výsledková listina - Malý svratecký maraton 2018
A2: 2015-08-22 | K2: Poté, co jsou dopsány časy VŠECH běžců, stisknout tlačítko 1.řazení Ve sloupci B (Pořadí v kategorii) vytvořit posloupnou číselnou řadu pro každou kategorii a poté stisknout tlačítko 2.řazení !!! POZOR!!! Použití tlačítek je nevratný krok!
A3: ='Prezenční listina'!O2-1953&". ročník" -> 65. ročník
A4: Celkové pořadí | B4: Pořadí v kategorii | C4: Kategorie | D4: Startovní číslo | E4: Příjmení | F4: Jméno | G4: Narození | H4: Oddíl / Bydliště | I4: Čas
A5: 1 | B5: 1 | C5: ='Startovní listina'!G47 -> B | D5: ='Startovní listina'!B47 -> 43 | E5: ='Startovní listina'!C47 -> Kocur | F5: ='Startovní listina'!D47 -> Lukáš | G5: ='Startovní listina'!E47 -> 1977 | H5: ='Startovní listina'!F47 -> Orel Šitbořice | I5: 02:19:48
A6: =IF('Výsledková listina (2)'!D5<>"",A5+1,"") -> 2 | C6: ='Startovní listina'!G71 -> A | D6: ='Startovní listina'!B71 -> 67 | E6: ='Startovní listina'!C71 -> Příhoda | F6: ='Startovní listina'!D71 -> Jan | G6: ='Startovní listina'!E71 -> 1983 | H6: ='Startovní listina'!F71 -> Ždánice | I6: 02:47:00
A7: =IF('Výsledková listina (2)'!D6<>"",A6+1,"") -> 3 | C7: ='Startovní listina'!G5 -> G | D7: ='Startovní listina'!B5 -> 1 | E7: ='Startovní listina'!C5 -> Komárková | F7: ='Startovní listina'!D5 -> Zdeňka | G7: ='Startovní listina'!E5 -> 1974 | H7: ='Startovní listina'!F5 -> SDH Bolešín | I7: 03:02:17
A8: =IF('Výsledková listina (2)'!D7<>"",A7+1,"") -> 4 | C8: ='Startovní listina'!G85 ->  | D8: ='Startovní listina'!B85 ->  | E8: ='Startovní listina'!C85 ->  | F8: ='Startovní listina'!D85 ->  | G8: ='Startovní listina'!E85 ->  | H8: ='Startovní listina'!F85 ->  | I8: 03:28:11
A9: =IF('Výsledková listina (2)'!D8<>"",A8+1,"") ->  | C9: ='Startovní listina'!G59 -> F | D9: ='Startovní listina'!B59 -> 55 | E9: ='Startovní listina'!C59 -> Jamrichová | F9: ='Startovní listina'!D59 -> Kristina | G9: ='Startovní listina'!E59 -> 1987 | H9: ='Startovní listina'!F59 -> Brno | I9: 02:23:11
A10: =IF('Výsledková listina (2)'!D9<>"",A9+1,"") ->  | C10: ='Startovní listina'!G46 -> D | D10: ='Startovní listina'!B46 -> 42 | E10: ='Startovní listina'!C46 -> Mareš | F10: ='Startovní listina'!D46 -> Bohumil | G10: ='Startovní listina'!E46 -> 1951 | H10: ='Startovní listina'!F46 -> Posilovna Průvan Brno | I10: 02:50:33
A11: =IF('Výsledková listina (2)'!D10<>"",A10+1,"") ->  | C11: ='Startovní listina'!G28 -> A | D11: ='Startovní listina'!B28 -> 24 | E11: ='Startovní listina'!C28 -> Skula | F11: ='Startovní listina'!D28 -> Miroslav | G11: ='Startovní listina'!E28 -> 1988 | H11: ='Startovní listina'!F28 -> SRTG Žďár nad Sázavou | I11: 02:26:07
A12: =IF('Výsledková listina (2)'!D11<>"",A11+1,"") ->  | C12: ='Startovní listina'!G67 -> B | D12: ='Startovní listina'!B67 -> 63 | E12: ='Startovní listina'!C67 -> Orálek | F12: ='Startovní listina'!D67 -> Daniel | G12: ='Startovní listina'!E67 -> 1970 | H12: ='Startovní listina'!F67 -> behejbrno.com | I12: 02:34:42
A13: =IF('Výsledková listina (2)'!D12<>"",A12+1,"") ->  | C13: ='Startovní listina'!G68 -> B | D13: ='Startovní listina'!B68 -> 64 | E13: ='Startovní listina'!C68 -> Kratochvíl | F13: ='Startovní listina'!D68 -> Jaroslav | G13: ='Startovní listina'!E68 -> 1977 | H13: ='Startovní listina'!F68 -> SDH Hluboké | I13: 02:42:43
A14: =IF('Výsledková listina (2)'!D13<>"",A13+1,"") ->  | C14: ='Startovní listina'!G62 -> A | D14: ='Startovní listina'!B62 -> 58 | E14: ='Startovní listina'!C62 -> Paleček | F14: ='Startovní listina'!D62 -> Miloš | G14: ='Startovní listina'!E62 -> 1985 | H14: ='Startovní listina'!F62 -> BIKEŘI ROVE | I14: 02:42:35
A15: =IF('Výsledková listina (2)'!D14<>"",A14+1,"") ->  | C15: ='Startovní listina'!G55 -> F | D15: ='Startovní listina'!B55 -> 51 | E15: ='Startovní listina'!C55 -> Vondrová | F15: ='Startovní listina'!D55 -> Ludmila | G15: ='Startovní listina'!E55 -> 1986 | H15: ='Startovní listina'!F55 -> Dalečín | I15: 02:40:36
A16: =IF('Výsledková listina (2)'!D15<>"",A15+1,"") ->  | C16: ='Startovní listina'!G60 -> B | D16: ='Startovní listina'!B60 -> 56 | E16: ='Startovní listina'!C60 -> Benc | F16: ='Startovní listina'!D60 -> Karel | G16: ='Startovní listina'!E60 -> 1975 | H16: ='Startovní listina'!F60 -> Pivonice | I16: 02:38:54
A17: =IF('Výsledková listina (2)'!D16<>"",A16+1,"") ->  | C17: ='Startovní listina'!G7 -> G | D17: ='Startovní listina'!B7 -> 3 | E17: ='Startovní listina'!C7 -> Mlčáková | F17: ='Startovní listina'!D7 -> Hana | G17: ='Startovní listina'!E7 -> 1981 | H17: ='Startovní listina'!F7 -> Strážnice | I17: 03:07:50
A18: =IF('Výsledková listina (2)'!D17<>"",A17+1,"") ->  | C18: ='Startovní listina'!G63 -> B | D18: ='Startovní listina'!B63 -> 59 | E18: ='Startovní listina'!C63 -> Pokorný | F18: ='Startovní listina'!D63 -> Václav | G18: ='Startovní listina'!E63 -> 1978 | H18: ='Startovní listina'!F63 -> Brno | I18: 02:39:15
A19: =IF('Výsledková listina (2)'!D18<>"",A18+1,"") ->  | C19: ='Startovní listina'!G49 -> A | D19: ='Startovní listina'!B49 -> 45 | E19: ='Startovní listina'!C49 -> Kohut | F19: ='Startovní listina'!D49 -> Jan | G19: ='Startovní listina'!E49 -> 1985 | H19: ='Startovní listina'!F49 -> Univerzita Brno | I19: 02:13:13
A20: =IF('Výsledková listina (2)'!D19<>"",A19+1,"") ->  | C20: ='Startovní listina'!G14 -> B | D20: ='Startovní listina'!B14 -> 10 | E20: ='Startovní listina'!C14 -> Kopečný | F20: ='Startovní listina'!D14 -> Dušan | G20: ='Startovní listina'!E14 -> 1973 | H20: ='Startovní listina'!F14 -> Liga 100 Olomouc | I20: 02:32:37
A21: =IF('Výsledková listina (2)'!D20<>"",A20+1,"") ->  | C21: ='Startovní listina'!G42 -> A | D21: ='Startovní listina'!B42 -> 38 | E21: ='Startovní listina'!C42 -> Košek | F21: ='Startovní listina'!D42 -> Martin | G21: ='Startovní listina'!E42 -> 1984 | H21: ='Startovní listina'!F42 -> Brno | I21: 02:49:46
A22: =IF('Výsledková listina (2)'!D22<>"",A21+1,"") ->  | C22: ='Startovní listina'!G79 ->  | D22: ='Startovní listina'!B79 ->  | E22: ='Startovní listina'!C79 ->  | F22: ='Startovní listina'!D79 ->  | G22: ='Startovní listina'!E79 ->  | H22: ='Startovní listina'!F79 ->  | I22: 02:13:29
A23: =IF('Výsledková listina (2)'!D21<>"",A22+1,"") ->  | C23: ='Startovní listina'!G15 -> E | D23: ='Startovní listina'!B15 -> 11 | E23: ='Startovní listina'!C15 -> Holý | F23: ='Startovní listina'!D15 -> Josef | G23: ='Startovní listina'!E15 -> 1941 | H23: ='Startovní listina'!F15 -> AC Moravská Slavia Brno | I23: 02:01:16
A24: =IF('Výsledková listina (2)'!D23<>"",A23+1,"") ->  | C24: ='Startovní listina'!G91 ->  | D24: ='Startovní listina'!B91 ->  | E24: ='Startovní listina'!C91 ->  | F24: ='Startovní listina'!D91 ->  | G24: ='Startovní listina'!E91 ->  | H24: ='Startovní listina'!F91 ->  | I24: 02:30:31
A25: =IF('Výsledková listina (2)'!D24<>"",A24+1,"") ->  | C25: ='Startovní listina'!G74 ->  | D25: ='Startovní listina'!B74 ->  | E25: ='Startovní listina'!C74 ->  | F25: ='Startovní listina'!D74 ->  | G25: ='Startovní listina'!E74 ->  | H25: ='Startovní listina'!F74 ->  | I25: 02:11:00
A26: =IF('Výsledková listina (2)'!D25<>"",A25+1,"") ->  | C26: ='Startovní listina'!G44 -> B | D26: ='Startovní listina'!B44 -> 40 | E26: ='Startovní listina'!C44 -> Viščor | F26: ='Startovní listina'!D44 -> Pavel | G26: ='Startovní listina'!E44 -> 1974 | H26: ='Startovní listina'!F44 -> Brno | I26: 03:10:37
A27: =IF('Výsledková listina (2)'!D26<>"",A26+1,"") ->  | C27: ='Startovní listina'!G84 ->  | D27: ='Startovní listina'!B84 ->  | E27: ='Startovní listina'!C84 ->  | F27: ='Startovní listina'!D84 ->  | G27: ='Startovní listina'!E84 ->  | H27: ='Startovní listina'!F84 ->  | I27: 02:28:22
A28: =IF('Výsledková listina (2)'!D27<>"",A27+1,"") ->  | C28: ='Startovní listina'!G87 ->  | D28: ='Startovní listina'!B87 ->  | E28: ='Startovní listina'!C87 ->  | F28: ='Startovní listina'!D87 ->  | G28: ='Startovní listina'!E87 ->  | H28: ='Startovní listina'!F87 ->  | I28: 02:29:21
A29: =IF('Výsledková listina (2)'!D28<>"",A28+1,"") ->  | C29: ='Startovní listina'!G75 ->  | D29: ='Startovní listina'!B75 ->  | E29: ='Startovní listina'!C75 ->  | F29: ='Startovní listina'!D75 ->  | G29: ='Startovní listina'!E75 ->  | H29: ='Startovní listina'!F75 ->  | I29: 03:01:37
A30: =IF('Výsledková listina (2)'!D29<>"",A29+1,"") ->  | C30: ='Startovní listina'!G18 -> A | D30: ='Startovní listina'!B18 -> 14 | E30: ='Startovní listina'!C18 -> Juránek | F30: ='Startovní listina'!D18 -> Jakub | G30: ='Startovní listina'!E18 -> 1995 | H30: ='Startovní listina'!F18 -> S.U.P.I. Martinice
A31: =IF('Výsledková listina (2)'!D30<>"",A30+1,"") ->  | C31: ='Startovní listina'!G41 -> C | D31: ='Startovní listina'!B41 -> 37 | E31: ='Startovní listina'!C41 -> Svoboda | F31: ='Startovní listina'!D41 -> Petr | G31: ='Startovní listina'!E41 -> 1968 | H31: ='Startovní listina'!F41 -> AC Moravská Slavia Brno | I31: 02:16:46
A32: =IF('Výsledková listina (2)'!D31<>"",A31+1,"") ->  | C32: ='Startovní listina'!G23 -> A | D32: ='Startovní listina'!B23 -> 19 | E32: ='Startovní listina'!C23 -> Pivec | F32: ='Startovní listina'!D23 -> Jan | G32: ='Startovní listina'!E23 -> 1981 | H32: ='Startovní listina'!F23 -> HAL3000
A33: =IF('Výsledková listina (2)'!D32<>"",A32+1,"") ->  | C33: ='Startovní listina'!G57 -> G | D33: ='Startovní listina'!B57 -> 53 | E33: ='Startovní listina'!C57 -> Kuncová | F33: ='Startovní listina'!D57 -> Markéta | G33: ='Startovní listina'!E57 -> 1982 | H33: ='Startovní listina'!F57 -> Rožná | I33: 02:42:39
A34: =IF('Výsledková listina (2)'!D33<>"",A33+1,"") ->  | C34: ='Startovní listina'!G40 -> A | D34: ='Startovní listina'!B40 -> 36 | E34: ='Startovní listina'!C40 -> Nováček | F34: ='Startovní listina'!D40 -> Tomáš | G34: ='Startovní listina'!E40 -> 1983 | H34: ='Startovní listina'!F40 -> SDH Kamenná | I34: 02:10:10
A35: =IF('Výsledková listina (2)'!D34<>"",A34+1,"") ->  | C35: ='Startovní listina'!G9 -> G | D35: ='Startovní listina'!B9 -> 5 | E35: ='Startovní listina'!C9 -> Ježová | F35: ='Startovní listina'!D9 -> Martina | G35: ='Startovní listina'!E9 -> 1975 | H35: ='Startovní listina'!F9 -> Brno | I35: 02:05:55
A36: =IF('Výsledková listina (2)'!D35<>"",A35+1,"") ->  | C36: ='Startovní listina'!G77 ->  | D36: ='Startovní listina'!B77 ->  | E36: ='Startovní listina'!C77 ->  | F36: ='Startovní listina'!D77 ->  | G36: ='Startovní listina'!E77 ->  | H36: ='Startovní listina'!F77 -> 
A37: =IF('Výsledková listina (2)'!D36<>"",A36+1,"") ->  | C37: ='Startovní listina'!G81 ->  | D37: ='Startovní listina'!B81 ->  | E37: ='Startovní listina'!C81 ->  | F37: ='Startovní listina'!D81 ->  | G37: ='Startovní listina'!E81 ->  | H37: ='Startovní listina'!F81 ->  | I37: 03:24:59
A38: =IF('Výsledková listina (2)'!D37<>"",A37+1,"") ->  | C38: ='Startovní listina'!G54 -> D | D38: ='Startovní listina'!B54 -> 50 | E38: ='Startovní listina'!C54 -> Král | F38: ='Startovní listina'!D54 -> Josef | G38: ='Startovní listina'!E54 -> 1958 | H38: ='Startovní listina'!F54 -> SDH Bystré | I38: 02:37:38
A39: =IF('Výsledková listina (2)'!D38<>"",A38+1,"") ->  | C39: ='Startovní listina'!G94 ->  | D39: ='Startovní listina'!B94 ->  | E39: ='Startovní listina'!C94 ->  | F39: ='Startovní listina'!D94 ->  | G39: ='Startovní listina'!E94 ->  | H39: ='Startovní listina'!F94 ->  | I39: 03:13:50
A40: =IF('Výsledková listina (2)'!D39<>"",A39+1,"") ->  | C40: ='Startovní listina'!G20 -> A | D40: ='Startovní listina'!B20 -> 16 | E40: ='Startovní listina'!C20 -> Král | F40: ='Startovní listina'!D20 -> Jan | G40: ='Startovní listina'!E20 -> 1981 | H40: ='Startovní listina'!F20 -> Brno | I40: 02:43:21
A41: =IF('Výsledková listina (2)'!D40<>"",A40+1,"") ->  | C41: ='Startovní listina'!G19 -> D | D41: ='Startovní listina'!B19 -> 15 | E41: ='Startovní listina'!C19 -> Bělehrádek | F41: ='Startovní listina'!D19 -> Pavel | G41: ='Startovní listina'!E19 -> 1958 | H41: ='Startovní listina'!F19 -> TJ ČOLEK | I41: 03:01:04
A42: =IF('Výsledková listina (2)'!D41<>"",A41+1,"") ->  | C42: ='Startovní listina'!G69 -> B | D42: ='Startovní listina'!B69 -> 65 | E42: ='Startovní listina'!C69 -> Konečný | F42: ='Startovní listina'!D69 -> Libor | G42: ='Startovní listina'!E69 -> 1971 | H42: ='Startovní listina'!F69 -> Kuřim | I42: DNF
A43: =IF('Výsledková listina (2)'!D42<>"",A42+1,"") ->  | C43: ='Startovní listina'!G38 -> C | D43: ='Startovní listina'!B38 -> 34 | E43: ='Startovní listina'!C38 -> Šimunek | F43: ='Startovní listina'!D38 -> Martin | G43: ='Startovní listina'!E38 -> 1966 | H43: ='Startovní listina'!F38 -> Botanka Running Modřice | I43: 02:26:38
A44: =IF('Výsledková listina (2)'!D43<>"",A43+1,"") ->  | C44: ='Startovní listina'!G80 ->  | D44: ='Startovní listina'!B80 ->  | E44: ='Startovní listina'!C80 ->  | F44: ='Startovní listina'!D80 ->  | G44: ='Startovní listina'!E80 ->  | H44: ='Startovní listina'!F80 ->  | I44: 02:45:32
A45: =IF('Výsledková listina (2)'!D44<>"",A44+1,"") ->  | C45: ='Startovní listina'!G53 -> A | D45: ='Startovní listina'!B53 -> 49 | E45: ='Startovní listina'!C53 -> Glier | F45: ='Startovní listina'!D53 -> Michal | G45: ='Startovní listina'!E53 -> 1982 | H45: ='Startovní listina'!F53 -> SDH Doubravník | I45: 02:46:25
A46: =IF('Výsledková listina (2)'!D45<>"",A45+1,"") ->  | C46: ='Startovní listina'!G11 -> A | D46: ='Startovní listina'!B11 -> 7 | E46: ='Startovní listina'!C11 -> Podsedník | F46: ='Startovní listina'!D11 -> Marek | G46: ='Startovní listina'!E11 -> 1985 | H46: ='Startovní listina'!F11 -> Brno | I46: 02:45:37
A47: =IF('Výsledková listina (2)'!D46<>"",A46+1,"") ->  | C47: ='Startovní listina'!G89 ->  | D47: ='Startovní listina'!B89 ->  | E47: ='Startovní listina'!C89 ->  | F47: ='Startovní listina'!D89 ->  | G47: ='Startovní listina'!E89 ->  | H47: ='Startovní listina'!F89 ->  | I47: 02:23:07
A48: =IF('Výsledková listina (2)'!D47<>"",A47+1,"") ->  | C48: ='Startovní listina'!G93 ->  | D48: ='Startovní listina'!B93 ->  | E48: ='Startovní listina'!C93 ->  | F48: ='Startovní listina'!D93 ->  | G48: ='Startovní listina'!E93 ->  | H48: ='Startovní listina'!F93 -> 
A49: =IF('Výsledková listina (2)'!D48<>"",A48+1,"") ->  | C49: ='Startovní listina'!G78 ->  | D49: ='Startovní listina'!B78 ->  | E49: ='Startovní listina'!C78 ->  | F49: ='Startovní listina'!D78 ->  | G49: ='Startovní listina'!E78 ->  | H49: ='Startovní listina'!F78 ->  | I49: 02:49:04
A50: =IF('Výsledková listina (2)'!D49<>"",A49+1,"") ->  | C50: ='Startovní listina'!G35 -> F | D50: ='Startovní listina'!B35 -> 31 | E50: ='Startovní listina'!C35 -> Pešáková | F50: ='Startovní listina'!D35 -> Mirka | G50: ='Startovní listina'!E35 -> 1985 | H50: ='Startovní listina'!F35 -> AC RACERS, Tetčice | I50: 02:31:40
A51: =IF('Výsledková listina (2)'!D50<>"",A50+1,"") ->  | C51: ='Startovní listina'!G36 -> A | D51: ='Startovní listina'!B36 -> 32 | E51: ='Startovní listina'!C36 -> Sinkule | F51: ='Startovní listina'!D36 -> Pavel | G51: ='Startovní listina'!E36 -> 1981 | H51: ='Startovní listina'!F36 -> SRTG Brno
A52: =IF('Výsledková listina (2)'!D51<>"",A51+1,"") ->  | C52: ='Startovní listina'!G29 -> B | D52: ='Startovní listina'!B29 -> 25 | E52: ='Startovní listina'!C29 -> Klíma | F52: ='Startovní listina'!D29 -> Miroslav | G52: ='Startovní listina'!E29 -> 1975 | H52: ='Startovní listina'!F29 -> Emanovy červené trenýrky Brno | I52: 02:19:07
A53: =IF('Výsledková listina (2)'!D52<>"",A52+1,"") ->  | C53: ='Startovní listina'!G86 ->  | D53: ='Startovní listina'!B86 ->  | E53: ='Startovní listina'!C86 ->  | F53: ='Startovní listina'!D86 ->  | G53: ='Startovní listina'!E86 ->  | H53: ='Startovní listina'!F86 ->  | I53: 02:21:00
A54: =IF('Výsledková listina (2)'!D53<>"",A53+1,"") ->  | C54: ='Startovní listina'!G17 -> C | D54: ='Startovní listina'!B17 -> 13 | E54: ='Startovní listina'!C17 -> Kresta | F54: ='Startovní listina'!D17 -> Roman | G54: ='Startovní listina'!E17 -> 1965 | H54: ='Startovní listina'!F17 -> Orel Židenice | I54: 03:06:22
A55: =IF('Výsledková listina (2)'!D54<>"",A54+1,"") ->  | C55: ='Startovní listina'!G37 -> A | D55: ='Startovní listina'!B37 -> 33 | E55: ='Startovní listina'!C37 -> Komárek | F55: ='Startovní listina'!D37 -> Michal | G55: ='Startovní listina'!E37 -> 1981 | H55: ='Startovní listina'!F37 -> Bystřice nad Pernštejnem | I55: 02:32:28
A56: =IF('Výsledková listina (2)'!D55<>"",A55+1,"") ->  | C56: ='Startovní listina'!G32 -> H | D56: ='Startovní listina'!B32 -> 28 | E56: ='Startovní listina'!C32 -> Hanslová | F56: ='Startovní listina'!D32 -> Lenka | G56: ='Startovní listina'!E32 -> 1973 | H56: ='Startovní listina'!F32 -> Žďár nad Sázavou | I56: 02:59:30
A57: =IF('Výsledková listina (2)'!D56<>"",A56+1,"") ->  | C57: ='Startovní listina'!G58 -> A | D57: ='Startovní listina'!B58 -> 54 | E57: ='Startovní listina'!C58 -> Pavlásek | F57: ='Startovní listina'!D58 -> Michal | G57: ='Startovní listina'!E58 -> 1983 | H57: ='Startovní listina'!F58 -> Brno | I57: 02:07:54
A58: =IF('Výsledková listina (2)'!D57<>"",A57+1,"") ->  | C58: ='Startovní listina'!G26 -> B | D58: ='Startovní listina'!B26 -> 22 | E58: ='Startovní listina'!C26 -> Faja | F58: ='Startovní listina'!D26 -> Ondřej | G58: ='Startovní listina'!E26 -> 1976 | H58: ='Startovní listina'!F26 -> Brno | I58: 03:06:38
A59: =IF('Výsledková listina (2)'!D58<>"",A58+1,"") ->  | C59: ='Startovní listina'!G52 -> F | D59: ='Startovní listina'!B52 -> 48 | E59: ='Startovní listina'!C52 -> Glierová | F59: ='Startovní listina'!D52 -> Renata | G59: ='Startovní listina'!E52 -> 1985 | H59: ='Startovní listina'!F52 -> SDH Doubravník | I59: 03:14:48
A60: =IF('Výsledková listina (2)'!D59<>"",A59+1,"") ->  | C60: ='Startovní listina'!G66 -> A | D60: ='Startovní listina'!B66 -> 62 | E60: ='Startovní listina'!C66 -> Exner | F60: ='Startovní listina'!D66 -> Jakub | G60: ='Startovní listina'!E66 -> 1983 | H60: ='Startovní listina'!F66 -> P-Team | I60: 02:46:48
A61: =IF('Výsledková listina (2)'!D60<>"",A60+1,"") ->  | C61: ='Startovní listina'!G31 -> B | D61: ='Startovní listina'!B31 -> 27 | E61: ='Startovní listina'!C31 -> Fanfrdla | F61: ='Startovní listina'!D31 -> Dalimil | G61: ='Startovní listina'!E31 -> 1973 | H61: ='Startovní listina'!F31 -> Matyteam Brno | I61: 02:38:44
A62: =IF('Výsledková listina (2)'!D61<>"",A61+1,"") ->  | C62: ='Startovní listina'!G92 ->  | D62: ='Startovní listina'!B92 ->  | E62: ='Startovní listina'!C92 ->  | F62: ='Startovní listina'!D92 ->  | G62: ='Startovní listina'!E92 ->  | H62: ='Startovní listina'!F92 ->  | I62: 03:04:27
A63: =IF('Výsledková listina (2)'!D62<>"",A62+1,"") ->  | C63: ='Startovní listina'!G45 -> B | D63: ='Startovní listina'!B45 -> 41 | E63: ='Startovní listina'!C45 -> Žličař | F63: ='Startovní listina'!D45 -> Karel | G63: ='Startovní listina'!E45 -> 1977 | H63: ='Startovní listina'!F45 -> Železárny Štěpánov | I63: 03:21:11
A64: =IF('Výsledková listina (2)'!D63<>"",A63+1,"") ->  | C64: ='Startovní listina'!G34 -> B | D64: ='Startovní listina'!B34 -> 30 | E64: ='Startovní listina'!C34 -> Vintrlík | F64: ='Startovní listina'!D34 -> Martin | G64: ='Startovní listina'!E34 -> 1977 | H64: ='Startovní listina'!F34 -> Triatlon křepice | I64: 03:00:59
A65: =IF('Výsledková listina (2)'!D64<>"",A64+1,"") ->  | C65: ='Startovní listina'!G8 -> A | D65: ='Startovní listina'!B8 -> 4 | E65: ='Startovní listina'!C8 -> Kalich | F65: ='Startovní listina'!D8 -> Radim | G65: ='Startovní listina'!E8 -> 1985 | H65: ='Startovní listina'!F8 -> Odranec | I65: 03:30:08
A66: =IF('Výsledková listina (2)'!D65<>"",A65+1,"") ->  | C66: ='Startovní listina'!G73 ->  | D66: ='Startovní listina'!B73 ->  | E66: ='Startovní listina'!C73 ->  | F66: ='Startovní listina'!D73 ->  | G66: ='Startovní listina'!E73 ->  | H66: ='Startovní listina'!F73 ->  | I66: 03:01:32
A67: =IF('Výsledková listina (2)'!D66<>"",A66+1,"") ->  | C67: ='Startovní listina'!G27 -> A | D67: ='Startovní listina'!B27 -> 23 | E67: ='Startovní listina'!C27 -> Koutský | F67: ='Startovní listina'!D27 -> Tomáš | G67: ='Startovní listina'!E27 -> 1987 | H67: ='Startovní listina'!F27 -> Ledová stěna Vír | I67: 02:05:07
A68: =IF('Výsledková listina (2)'!D67<>"",A67+1,"") ->  | C68: ='Startovní listina'!G70 -> C | D68: ='Startovní listina'!B70 -> 66 | E68: ='Startovní listina'!C70 -> Zourek | F68: ='Startovní listina'!D70 -> Karel | G68: ='Startovní listina'!E70 -> 1959 | H68: ='Startovní listina'!F70 -> Bedřichovice | I68: 02:57:35
A69: =IF('Výsledková listina (2)'!D68<>"",A68+1,"") ->  | C69: ='Startovní listina'!G51 -> B | D69: ='Startovní listina'!B51 -> 47 | E69: ='Startovní listina'!C51 -> Fric | F69: ='Startovní listina'!D51 -> Petr | G69: ='Startovní listina'!E51 -> 1970 | H69: ='Startovní listina'!F51 -> Bystré | I69: 02:19:36
A70: =IF('Výsledková listina (2)'!D69<>"",A69+1,"") ->  | C70: ='Startovní listina'!G98 ->  | D70: ='Startovní listina'!B98 ->  | E70: ='Startovní listina'!C98 ->  | F70: ='Startovní listina'!D98 ->  | G70: ='Startovní listina'!E98 ->  | H70: ='Startovní listina'!F98 ->  | I70: 01:54:34
A71: =IF('Výsledková listina (2)'!D70<>"",A70+1,"") ->  | C71: ='Startovní listina'!G50 -> C | D71: ='Startovní listina'!B50 -> 46 | E71: ='Startovní listina'!C50 -> Dvořáček | F71: ='Startovní listina'!D50 -> Jiří | G71: ='Startovní listina'!E50 -> 1968 | H71: ='Startovní listina'!F50 -> Univerzita Brno | I71: 02:21:57
A72: =IF('Výsledková listina (2)'!D71<>"",A71+1,"") ->  | C72: ='Startovní listina'!G21 -> C | D72: ='Startovní listina'!B21 -> 17 | E72: ='Startovní listina'!C21 -> Bečička | F72: ='Startovní listina'!D21 -> Petr | G72: ='Startovní listina'!E21 -> 1960 | H72: ='Startovní listina'!F21 -> HAL3000
A73: =IF('Výsledková listina (2)'!D72<>"",A72+1,"") ->  | C73: ='Startovní listina'!G6 -> A | D73: ='Startovní listina'!B6 -> 2 | E73: ='Startovní listina'!C6 -> Ptáček | F73: ='Startovní listina'!D6 -> Michal | G73: ='Startovní listina'!E6 -> 1986 | H73: ='Startovní listina'!F6 -> Hrdá Ves | I73: 02:40:25
A74: =IF('Výsledková listina (2)'!D73<>"",A73+1,"") ->  | C74: ='Startovní listina'!G48 -> F | D74: ='Startovní listina'!B48 -> 44 | E74: ='Startovní listina'!C48 -> Johaníková | F74: ='Startovní listina'!D48 -> Lucie | G74: ='Startovní listina'!E48 -> 1986 | H74: ='Startovní listina'!F48 -> AC Moravská Slavia Brno | I74: 02:21:35
A75: =IF('Výsledková listina (2)'!D74<>"",A74+1,"") ->  | C75: ='Startovní listina'!G97 ->  | D75: ='Startovní listina'!B97 ->  | E75: ='Startovní listina'!C97 ->  | F75: ='Startovní listina'!D97 ->  | G75: ='Startovní listina'!E97 ->  | H75: ='Startovní listina'!F97 ->  | I75: 03:14:54
A76: =IF('Výsledková listina (2)'!D75<>"",A75+1,"") ->  | C76: ='Startovní listina'!G22 -> G | D76: ='Startovní listina'!B22 -> 18 | E76: ='Startovní listina'!C22 -> Dostálová | F76: ='Startovní listina'!D22 -> Vendula | G76: ='Startovní listina'!E22 -> 1981 | H76: ='Startovní listina'!F22 -> HAL3000 | I76: 02:25:09
A77: =IF('Výsledková listina (2)'!D76<>"",A76+1,"") ->  | C77: ='Startovní listina'!G82 ->  | D77: ='Startovní listina'!B82 ->  | E77: ='Startovní listina'!C82 ->  | F77: ='Startovní listina'!D82 ->  | G77: ='Startovní listina'!E82 ->  | H77: ='Startovní listina'!F82 ->  | I77: 02:50:59
A78: =IF('Výsledková listina (2)'!D77<>"",A77+1,"") ->  | C78: ='Startovní listina'!G96 ->  | D78: ='Startovní listina'!B96 ->  | E78: ='Startovní listina'!C96 ->  | F78: ='Startovní listina'!D96 ->  | G78: ='Startovní listina'!E96 ->  | H78: ='Startovní listina'!F96 ->  | I78: 03:12:26
A79: =IF('Výsledková listina (2)'!D78<>"",A78+1,"") ->  | C79: ='Startovní listina'!G30 -> F | D79: ='Startovní listina'!B30 -> 26 | E79: ='Startovní listina'!C30 -> Bartoňková | F79: ='Startovní listina'!D30 -> Nina | G79: ='Startovní listina'!E30 -> 1990 | H79: ='Startovní listina'!F30 -> AK Drnovice | I79: 02:37:53
A80: =IF('Výsledková listina (2)'!D79<>"",A79+1,"") ->  | C80: ='Startovní listina'!G64 -> B | D80: ='Startovní listina'!B64 -> 60 | E80: ='Startovní listina'!C64 -> Tyleček | F80: ='Startovní listina'!D64 -> Pavel | G80: ='Startovní listina'!E64 -> 1973 | H80: ='Startovní listina'!F64 -> Jundrováci | I80: 03:18:47
A81: =IF('Výsledková listina (2)'!D80<>"",A80+1,"") ->  | C81: ='Startovní listina'!G39 -> C | D81: ='Startovní listina'!B39 -> 35 | E81: ='Startovní listina'!C39 -> Hýbl | F81: ='Startovní listina'!D39 -> Jiří | G81: ='Startovní listina'!E39 -> 1967 | H81: ='Startovní listina'!F39 -> Hrušovany u Brna | I81: 02:07:35
A82: =IF('Výsledková listina (2)'!D81<>"",A81+1,"") ->  | C82: ='Startovní listina'!G56 -> B | D82: ='Startovní listina'!B56 -> 52 | E82: ='Startovní listina'!C56 -> Lorenčík | F82: ='Startovní listina'!D56 -> Aleš | G82: ='Startovní listina'!E56 -> 1973 | H82: ='Startovní listina'!F56 -> Chrudim | I82: 02:24:19
A83: =IF('Výsledková listina (2)'!D82<>"",A82+1,"") ->  | C83: ='Startovní listina'!G83 ->  | D83: ='Startovní listina'!B83 ->  | E83: ='Startovní listina'!C83 ->  | F83: ='Startovní listina'!D83 ->  | G83: ='Startovní listina'!E83 ->  | H83: ='Startovní listina'!F83 ->  | I83: 02:31:15
A84: =IF('Výsledková listina (2)'!D83<>"",A83+1,"") ->  | C84: ='Startovní listina'!G61 -> C | D84: ='Startovní listina'!B61 -> 57 | E84: ='Startovní listina'!C61 -> Kříž | F84: ='Startovní listina'!D61 -> Miloslav | G84: ='Startovní listina'!E61 -> 1961 | H84: ='Startovní listina'!F61 -> Aspire Dobrochov | I84: 02:27:55
A85: =IF('Výsledková listina (2)'!D84<>"",A84+1,"") ->  | C85: ='Startovní listina'!G95 ->  | D85: ='Startovní listina'!B95 ->  | E85: ='Startovní listina'!C95 ->  | F85: ='Startovní listina'!D95 ->  | G85: ='Startovní listina'!E95 ->  | H85: ='Startovní listina'!F95 ->  | I85: 02:34:44
A86: =IF('Výsledková listina (2)'!D85<>"",A85+1,"") ->  | C86: ='Startovní listina'!G65 -> H | D86: ='Startovní listina'!B65 -> 61 | E86: ='Startovní listina'!C65 -> Podmelová | F86: ='Startovní listina'!D65 -> Vilma | G86: ='Startovní listina'!E65 -> 1962 | H86: ='Startovní listina'!F65 -> AC Moravská Slavia Brno | I86: 02:58:55
A87: =IF('Výsledková listina (2)'!D86<>"",A86+1,"") ->  | C87: ='Startovní listina'!G43 -> B | D87: ='Startovní listina'!B43 -> 39 | E87: ='Startovní listina'!C43 -> Řezníček | F87: ='Startovní listina'!D43 -> Petr | G87: ='Startovní listina'!E43 -> 1973 | H87: ='Startovní listina'!F43 -> Polnička | I87: 02:32:49
A88: =IF('Výsledková listina (2)'!D87<>"",A87+1,"") ->  | C88: ='Startovní listina'!G33 -> B | D88: ='Startovní listina'!B33 -> 29 | E88: ='Startovní listina'!C33 -> Dvořák | F88: ='Startovní listina'!D33 -> Vojtěch | G88: ='Startovní listina'!E33 -> 1975 | H88: ='Startovní listina'!F33 -> Brno
A89: =IF('Výsledková listina (2)'!D88<>"",A88+1,"") ->  | C89: ='Startovní listina'!G76 ->  | D89: ='Startovní listina'!B76 ->  | E89: ='Startovní listina'!C76 ->  | F89: ='Startovní listina'!D76 ->  | G89: ='Startovní listina'!E76 ->  | H89: ='Startovní listina'!F76 ->  | I89: 03:18:56
A90: =IF('Výsledková listina (2)'!D89<>"",A89+1,"") ->  | C90: ='Startovní listina'!G12 -> G | D90: ='Startovní listina'!B12 -> 8 | E90: ='Startovní listina'!C12 -> Pichová | F90: ='Startovní listina'!D12 -> Dagmar | G90: ='Startovní listina'!E12 -> 1977 | H90: ='Startovní listina'!F12 -> Brno | I90: 02:05:40
A91: =IF('Výsledková listina (2)'!D90<>"",A90+1,"") ->  | C91: ='Startovní listina'!G24 -> A | D91: ='Startovní listina'!B24 -> 20 | E91: ='Startovní listina'!C24 -> Forýtek | F91: ='Startovní listina'!D24 -> Michal | G91: ='Startovní listina'!E24 -> 1982 | H91: ='Startovní listina'!F24 -> HAL3000 | I91: 02:08:44
A92: =IF('Výsledková listina (2)'!D91<>"",A91+1,"") ->  | C92: ='Startovní listina'!G16 -> D | D92: ='Startovní listina'!B16 -> 12 | E92: ='Startovní listina'!C16 -> Zejda | F92: ='Startovní listina'!D16 -> Ivo | G92: ='Startovní listina'!E16 -> 1958 | H92: ='Startovní listina'!F16 -> AC Moravská Slavia Brno
A93: =IF('Výsledková listina (2)'!D92<>"",A92+1,"") ->  | C93: ='Startovní listina'!G88 ->  | D93: ='Startovní listina'!B88 ->  | E93: ='Startovní listina'!C88 ->  | F93: ='Startovní listina'!D88 ->  | G93: ='Startovní listina'!E88 ->  | H93: ='Startovní listina'!F88 ->  | I93: 02:53:55
A94: =IF('Výsledková listina (2)'!D93<>"",A93+1,"") ->  | C94: ='Startovní listina'!G90 ->  | D94: ='Startovní listina'!B90 ->  | E94: ='Startovní listina'!C90 ->  | F94: ='Startovní listina'!D90 ->  | G94: ='Startovní listina'!E90 ->  | H94: ='Startovní listina'!F90 ->  | I94: 02:55:52
A95: =IF('Výsledková listina (2)'!D94<>"",A94+1,"") ->  | C95: ='Startovní listina'!G25 -> F | D95: ='Startovní listina'!B25 -> 21 | E95: ='Startovní listina'!C25 -> Trefilová | F95: ='Startovní listina'!D25 -> Ester | G95: ='Startovní listina'!E25 -> 1993 | H95: ='Startovní listina'!F25 -> Vír | I95: 03:04:10
A96: =IF('Výsledková listina (2)'!D95<>"",A95+1,"") ->  | C96: ='Startovní listina'!G72 ->  | D96: ='Startovní listina'!B72 ->  | E96: ='Startovní listina'!C72 ->  | F96: ='Startovní listina'!D72 ->  | G96: ='Startovní listina'!E72 ->  | H96: ='Startovní listina'!F72 -> 
A97: =IF('Výsledková listina (2)'!D96<>"",A96+1,"") ->  | C97: ='Startovní listina'!G13 -> H | D97: ='Startovní listina'!B13 -> 9 | E97: ='Startovní listina'!C13 -> Tesařová | F97: ='Startovní listina'!D13 -> Marie | G97: ='Startovní listina'!E13 -> 1954 | H97: ='Startovní listina'!F13 -> Křižanov | I97: 02:40:16
A98: =IF('Výsledková listina (2)'!D97<>"",A97+1,"") ->  | C98: ='Startovní listina'!G10 -> B | D98: ='Startovní listina'!B10 -> 6 | E98: ='Startovní listina'!C10 -> Šerák | F98: ='Startovní listina'!D10 -> Martin | G98: ='Startovní listina'!E10 -> 1978 | H98: ='Startovní listina'!F10 -> Liga 100 Olomouc | I98: 03:00:21
A99: =IF('Výsledková listina (2)'!D98<>"",A98+1,"") ->  | C99: ='Startovní listina'!G99 ->  | D99: ='Startovní listina'!B99 ->  | E99: ='Startovní listina'!C99 ->  | F99: ='Startovní listina'!D99 ->  | G99: ='Startovní listina'!E99 ->  | H99: ='Startovní listina'!F99 -> 
A100: =IF('Výsledková listina (2)'!D99<>"",A99+1,"") ->  | C100: ='Startovní listina'!G100 ->  | D100: ='Startovní listina'!B100 ->  | E100: ='Startovní listina'!C100 ->  | F100: ='Startovní listina'!D100 ->  | G100: ='Startovní listina'!E100 ->  | H100: ='Startovní listina'!F100 -> 
A101: =IF('Výsledková listina (2)'!D100<>"",A100+1,"") ->  | C101: ='Startovní listina'!G101 ->  | D101: ='Startovní listina'!B101 ->  | E101: ='Startovní listina'!C101 ->  | F101: ='Startovní listina'!D101 ->  | G101: ='Startovní listina'!E101 ->  | H101: ='Startovní listina'!F101 -> 
A102: =IF('Výsledková listina (2)'!D101<>"",A101+1,"") ->  | C102: ='Startovní listina'!G102 ->  | D102: ='Startovní listina'!B102 ->  | E102: ='Startovní listina'!C102 ->  | F102: ='Startovní listina'!D102 ->  | G102: ='Startovní listina'!E102 ->  | H102: ='Startovní listina'!F102 -> 
A103: =IF('Výsledková listina (2)'!D102<>"",A102+1,"") ->  | C103: ='Startovní listina'!G103 ->  | D103: ='Startovní listina'!B103 ->  | E103: ='Startovní listina'!C103 ->  | F103: ='Startovní listina'!D103 ->  | G103: ='Startovní listina'!E103 ->  | H103: ='Startovní listina'!F103 -> 
